College_Name,Check_Number,Payee,Date,Amount,Funding_Source,Purpose
J. F. Drake State CC & TC,10013284,Acro Service Corporation ,10/8/2020,811.2,Unrestricted Shared Services,Other Contractual Services - PS
J. F. Drake State CC & TC,10013285,ACT Inc ,10/8/2020,24,Unrestricted Shared Services,Testing Expense
J. F. Drake State CC & TC,10013286,Dynamic Security Inc ,10/8/2020,2909.92,Unrestricted Shared Services,Other Contractual Services - PS
J. F. Drake State CC & TC,10013287,Ecampus.com ,10/8/2020,70165.28,Unrestricted Shared Services,Bookstore - AP
J. F. Drake State CC & TC,10013288,Green Joseph,10/8/2020,283.43,Unrestricted Shared Services,Student 3rd Party Reimbursement-AR
J. F. Drake State CC & TC,10013289,Scales Jeremy,10/8/2020,35,Unrestricted Shared Services,Student 3rd Party Reimbursement-AR
J. F. Drake State CC & TC,10013290,State of Alabama ,10/8/2020,34385,Unrestricted Shared Services,Insurance and Bonding - PS
J. F. Drake State CC & TC,10013291,State of Alabama ,10/8/2020,250,Unrestricted Shared Services,Memberships - PS
J. F. Drake State CC & TC,10013292,The Pitney Bowes Bank Inc ,10/8/2020,698.46,Unrestricted Shared Services,Short-Term Equipment Rentals - OOS
J. F. Drake State CC & TC,10013293,Brown Raven,10/12/2020,63,Unrestricted Shared Services,Testing Fees - TF
J. F. Drake State CC & TC,10013294,Dynamic Security Inc ,10/12/2020,2909.92,Unrestricted Shared Services,Other Contractual Services - PS
J. F. Drake State CC & TC,10013295,Huntsville Utilities ,10/12/2020,133.02,Unrestricted Shared Services,Gas & Heating Fuel - UC
J. F. Drake State CC & TC,10013295,Huntsville Utilities ,10/12/2020,1158.41,Unrestricted Shared Services,Water & Sewer - UC
J. F. Drake State CC & TC,10013295,Huntsville Utilities ,10/12/2020,21019.2,Unrestricted Shared Services,Electricity - UC
J. F. Drake State CC & TC,10013296,J F Drake State Community College & Technical College ,10/12/2020,7,Unrestricted Shared Services,Maintenance & Repairs  - OOS
J. F. Drake State CC & TC,10013296,J F Drake State Community College & Technical College ,10/12/2020,10,Unrestricted Shared Services,Other Travel Expenses - IS
J. F. Drake State CC & TC,10013297,Loomis ,10/12/2020,631.17,Unrestricted Shared Services,Other Contractual Services - PS
J. F. Drake State CC & TC,10013298,RP Media ,10/12/2020,8339.72,Unrestricted Shared Services,Advertising & Promotions - OOS
J. F. Drake State CC & TC,10013299,Uline Inc ,10/12/2020,63.3,Unrestricted Shared Services,Materials and Supplies - MS
J. F. Drake State CC & TC,10013300,Waste Management ,10/12/2020,1057.42,Unrestricted Shared Services,Other Contractual Services - PS
J. F. Drake State CC & TC,10013335,AACC ,10/13/2020,75,Unrestricted Shared Services,Memberships - PS
J. F. Drake State CC & TC,10013336,Alabama Community College System President's Association ,10/13/2020,750,Unrestricted Shared Services,Memberships - PS
J. F. Drake State CC & TC,10013337,Alabama Media ,10/13/2020,335.43,Unrestricted Shared Services,Advertising & Promotions - OOS
J. F. Drake State CC & TC,10013338,Better Business Bureau of North Alabama Inc ,10/13/2020,450,Unrestricted Shared Services,Memberships - PS
J. F. Drake State CC & TC,10013339,President's Round Table ,10/13/2020,600,Unrestricted Shared Services,Memberships - PS
J. F. Drake State CC & TC,10013340,Spencer Anthony,10/13/2020,281.95,Unrestricted Shared Services,Student 3rd Party Reimbursement-AR
J. F. Drake State CC & TC,10013341,State of Alabama ,10/13/2020,148533,Unrestricted Shared Services,Institutional Use - OOS
J. F. Drake State CC & TC,10013342,Auto Chlor ,10/15/2020,466.2,Unrestricted Shared Services,Materials and Supplies - MS
J. F. Drake State CC & TC,10013343,Dynamic Security Inc ,10/19/2020,2546.18,Unrestricted Shared Services,Other Contractual Services - PS
J. F. Drake State CC & TC,10013344,Scales Jeremy,10/19/2020,69.99,Unrestricted Shared Services,Student 3rd Party Reimbursement-AR
J. F. Drake State CC & TC,10013345,WideOpen West Inc ,10/19/2020,3006.94,Unrestricted Shared Services,Internet - UC
J. F. Drake State CC & TC,10013346,Berney Office Solutions LLC ,10/20/2020,9720.64,Unrestricted Shared Services,Other Contractual Services - PS
J. F. Drake State CC & TC,10013347,Currie Systems/Printing  Solutions ,10/20/2020,74,Unrestricted Shared Services,Advertising & Promotions - OOS
J. F. Drake State CC & TC,10013348,Waste Management ,10/20/2020,1057.42,Unrestricted Shared Services,Other Contractual Services - PS
J. F. Drake State CC & TC,10013349,Acro Service Corporation ,10/22/2020,1622.4,Unrestricted Shared Services,Other Contractual Services - PS
J. F. Drake State CC & TC,10013350,Castle Branch Inc. ,10/22/2020,102.75,Unrestricted Shared Services,Other - AP
J. F. Drake State CC & TC,10013351,Dynamic Security Inc ,10/22/2020,2909.92,Unrestricted Shared Services,Other Contractual Services - PS
J. F. Drake State CC & TC,10013352,PEEHIP ,10/22/2020,373.33,Unrestricted Shared Services,Group Health Insurance - FB
J. F. Drake State CC & TC,10013353,Acro Service Corporation ,10/23/2020,811.2,Unrestricted Shared Services,Other Contractual Services - PS
J. F. Drake State CC & TC,10013354,Hand Arendall Harrison Sale LLC ,10/23/2020,202.5,Unrestricted Shared Services,Legal Services - PS
J. F. Drake State CC & TC,10013357,Cool Stuff by Austin ,10/28/2020,200,Unrestricted Shared Services,Other Contractual Services - PS
J. F. Drake State CC & TC,10013358,Farmers Insurance ,10/28/2020,826,Unrestricted Shared Services,Insurance and Bonding - PS
J. F. Drake State CC & TC,10013359,Federal Express Corporation ,10/28/2020,51.92,Unrestricted Shared Services,Freight - OOS
J. F. Drake State CC & TC,10013360,Relyco Sales Inc ,10/28/2020,442.48,Unrestricted Shared Services,Materials and Supplies - MS
J. F. Drake State CC & TC,10013361,Turnitin LLC ,10/28/2020,4785.36,Unrestricted Shared Services,Computer Software(non capital) - MS
J. F. Drake State CC & TC,10013362,WEX Inc ,10/28/2020,81.4,Unrestricted Shared Services,Gasoline & Oil - Motor Veh - OOS
J. F. Drake State CC & TC,10013363,Xerox Corporation ,10/28/2020,143.45,Unrestricted Shared Services,Operating Lease Payments
J. F. Drake State CC & TC,10013375,Verified Credentials Inc ,10/30/2020,17.4,Unrestricted Shared Services,Other Contractual Services - PS
J. F. Drake State CC & TC,10013376,Acro Service Corporation ,11/4/2020,547.56,Unrestricted Shared Services,Other Contractual Services - PS
J. F. Drake State CC & TC,10013377,Alabama Lawnmaster Inc ,11/4/2020,3095,Unrestricted Shared Services,Other Contractual Services - PS
J. F. Drake State CC & TC,10013378,Cook's Pest Control ,11/4/2020,331,Unrestricted Shared Services,Other Contractual Services - PS
J. F. Drake State CC & TC,10013379,Currie Systems/Printing  Solutions ,11/4/2020,564.6,Unrestricted Shared Services,Printing and Binding - OOS
J. F. Drake State CC & TC,10013380,Dynamic Security Inc ,11/4/2020,2909.92,Unrestricted Shared Services,Other Contractual Services - PS
J. F. Drake State CC & TC,10013381,Federal Express Corporation ,11/4/2020,19.53,Unrestricted Shared Services,Freight - OOS
J. F. Drake State CC & TC,10013382,In10sity Interactive LLC ,11/4/2020,299,Unrestricted Shared Services,Other Contractual Services - PS
J. F. Drake State CC & TC,10013383,Loomis ,11/4/2020,209.45,Unrestricted Shared Services,Other Contractual Services - PS
J. F. Drake State CC & TC,10013384,Lowe's ,11/4/2020,178.42,Unrestricted Shared Services,Maintenance & Repairs  - OOS
J. F. Drake State CC & TC,10013385,Move Digital LLC ,11/4/2020,2000,Unrestricted Shared Services,Other Contractual Services - PS
J. F. Drake State CC & TC,10013386,R & R Sports ,11/4/2020,500,Unrestricted Shared Services,Advertising & Promotions - OOS
J. F. Drake State CC & TC,10013387,Verizon Wireless ,11/4/2020,743.52,Unrestricted Shared Services,Internet - UC
J. F. Drake State CC & TC,10013388,PEEHIP ,11/9/2020,800,Unrestricted Shared Services,Group Health Insurance - FB
J. F. Drake State CC & TC,10013389,Acro Service Corporation ,11/12/2020,811.2,Unrestricted Shared Services,Other Contractual Services - PS
J. F. Drake State CC & TC,10013390,Alabama Media ,11/12/2020,318.54,Unrestricted Shared Services,Advertising & Promotions - OOS
J. F. Drake State CC & TC,10013391,Berney Office Solutions LLC ,11/12/2020,965,Unrestricted Shared Services,Other Contractual Services - PS
J. F. Drake State CC & TC,10013392,CDW LLC ,11/12/2020,1797,Unrestricted Shared Services,Equipment - non capitalized - MS
J. F. Drake State CC & TC,10013392,CDW LLC ,11/12/2020,16209.34,Unrestricted Shared Services,Taxes & Licenses - OOS
J. F. Drake State CC & TC,10013393,Constant Contact Inc. ,11/12/2020,654.5,Unrestricted Shared Services,Advertising & Promotions - OOS
J. F. Drake State CC & TC,10013394,Currie Systems/Printing  Solutions ,11/12/2020,125,Unrestricted Shared Services,Printing and Binding - OOS
J. F. Drake State CC & TC,10013395,Davis Wendy,11/12/2020,304.11,Unrestricted Shared Services,Student 3rd Party Reimbursement-AR
J. F. Drake State CC & TC,10013396,Dynamic Security Inc ,11/12/2020,5833.83,Unrestricted Shared Services,Other Contractual Services - PS
J. F. Drake State CC & TC,10013397,Elliott Amanda,11/12/2020,1435,Unrestricted Shared Services,Other Contractual Services - PS
J. F. Drake State CC & TC,10013398,Federal Express Corporation ,11/12/2020,4.34,Unrestricted Shared Services,Freight - OOS
J. F. Drake State CC & TC,10013399,Huntsville Utilities ,11/12/2020,250.46,Unrestricted Shared Services,Gas & Heating Fuel - UC
J. F. Drake State CC & TC,10013399,Huntsville Utilities ,11/12/2020,884.72,Unrestricted Shared Services,Water & Sewer - UC
J. F. Drake State CC & TC,10013399,Huntsville Utilities ,11/12/2020,18095.21,Unrestricted Shared Services,Electricity - UC
J. F. Drake State CC & TC,10013400,Office Depot ,11/12/2020,66.61,Unrestricted Shared Services,Materials and Supplies - MS
J. F. Drake State CC & TC,10013401,The Pitney Bowes Bank Inc ,11/12/2020,1500,Unrestricted Shared Services,Postage - OOS
J. F. Drake State CC & TC,10013402,WEX Inc ,11/12/2020,76.15,Unrestricted Shared Services,Gasoline & Oil - Motor Veh - OOS
J. F. Drake State CC & TC,10013403,WideOpen West Inc ,11/12/2020,3006.15,Unrestricted Shared Services,Internet - UC
J. F. Drake State CC & TC,10013406,Accreditation Commission For Ed In Nursing Inc. (ACEN) ,11/18/2020,2500,Unrestricted Shared Services,Accreditation Expense - PS
J. F. Drake State CC & TC,10013408,Castle Branch Inc. ,11/18/2020,32,Unrestricted Shared Services,Other - AP
J. F. Drake State CC & TC,10013409,Copeland Cleaners ,11/18/2020,132.5,Unrestricted Shared Services,Other Contractual Services - PS
J. F. Drake State CC & TC,10013410,ESCO Institute ,11/18/2020,150,Unrestricted Shared Services,Accreditation Expense - PS
J. F. Drake State CC & TC,10013412,Glass Krispin,11/18/2020,291,Unrestricted Shared Services,Clearing Refunds - SP
J. F. Drake State CC & TC,10013413,Gulley Erica,11/18/2020,4,Unrestricted Shared Services,Clearing Refunds - SP
J. F. Drake State CC & TC,10013414,Jones Lavares,11/18/2020,291,Unrestricted Shared Services,Clearing Refunds - SP
J. F. Drake State CC & TC,10013416,Smith-King Meoshee,11/18/2020,8.29,Unrestricted Shared Services,Clearing Refunds - SP
J. F. Drake State CC & TC,10013417,State of Alabama ,11/18/2020,825,Unrestricted Shared Services,Taxes & Licenses - OOS
J. F. Drake State CC & TC,10013418,United Parcel Service Inc ,11/18/2020,13.49,Unrestricted Shared Services,Freight - OOS
J. F. Drake State CC & TC,10013419,Waste Management ,11/18/2020,1057.42,Unrestricted Shared Services,Other Contractual Services - PS
J. F. Drake State CC & TC,10013420,Alabama Lawnmaster Inc ,11/24/2020,3095,Unrestricted Shared Services,Other Contractual Services - PS
J. F. Drake State CC & TC,10013421,Brand Street LLC ,11/24/2020,1468.76,Unrestricted Shared Services,Advertising & Promotions - OOS
J. F. Drake State CC & TC,10013422,Cook's Pest Control ,11/24/2020,331,Unrestricted Shared Services,Other Contractual Services - PS
J. F. Drake State CC & TC,10013423,Currie Systems/Printing  Solutions ,11/24/2020,124.8,Unrestricted Shared Services,Printing and Binding - OOS
J. F. Drake State CC & TC,10013424,Dynamic Security Inc ,11/24/2020,2770.02,Unrestricted Shared Services,Other Contractual Services - PS
J. F. Drake State CC & TC,10013425,Hand Arendall Harrison Sale LLC ,11/24/2020,315,Unrestricted Shared Services,Legal Services - PS
J. F. Drake State CC & TC,10013426,In10sity Interactive LLC ,11/24/2020,299,Unrestricted Shared Services,Other Contractual Services - PS
J. F. Drake State CC & TC,10013427,Insurance Office of America Inc ,11/24/2020,4057.81,Unrestricted Shared Services,Insurance and Bonding - PS
J. F. Drake State CC & TC,10013428,Move Digital LLC ,11/24/2020,2000,Unrestricted Shared Services,Other Contractual Services - PS
J. F. Drake State CC & TC,10013441,ACT Inc ,12/1/2020,2750,Unrestricted Shared Services,Testing Expense
J. F. Drake State CC & TC,10013442,Blackbaud Inc ,12/1/2020,10950.12,Unrestricted Shared Services,Computer Software(non capital) - MS
J. F. Drake State CC & TC,10013443,Burritt Museum Association ,12/1/2020,181,Unrestricted Shared Services,Memberships - PS
J. F. Drake State CC & TC,10013444,Chamber of Commerce Huntsville/Madison County ,12/1/2020,1431.88,Unrestricted Shared Services,Memberships - PS
J. F. Drake State CC & TC,10013445,Council for Opportunity in Education ,12/1/2020,2950,Unrestricted Shared Services,Memberships - PS
J. F. Drake State CC & TC,10013446,Currie Systems/Printing  Solutions ,12/1/2020,62.4,Unrestricted Shared Services,Printing and Binding - OOS
J. F. Drake State CC & TC,10013447,Delta Theta Lambda Ed Foundation ,12/1/2020,500,Unrestricted Shared Services,Advertising & Promotions - OOS
J. F. Drake State CC & TC,10013448,Dynamic Security Inc ,12/1/2020,2909.92,Unrestricted Shared Services,Other Contractual Services - PS
J. F. Drake State CC & TC,10013449,Farmers Insurance ,12/1/2020,17383,Unrestricted Shared Services,Insurance and Bonding - PS
J. F. Drake State CC & TC,10013450,Move Digital LLC ,12/1/2020,2000,Unrestricted Shared Services,Other Contractual Services - PS
J. F. Drake State CC & TC,10013451,Saintjones Jerome,12/1/2020,250,Unrestricted Shared Services,Other Professional Fees - PS
J. F. Drake State CC & TC,10013452,University of Alabama ,12/1/2020,1000,Unrestricted Shared Services,Memberships - PS
J. F. Drake State CC & TC,10013453,WEDC Foundation Inc ,12/1/2020,250,Unrestricted Shared Services,Memberships - PS
J. F. Drake State CC & TC,10013454,WEX Inc ,12/1/2020,48.04,Unrestricted Shared Services,Gasoline & Oil - Motor Veh - OOS
J. F. Drake State CC & TC,10013455,Xerox Corporation ,12/1/2020,151.51,Unrestricted Shared Services,Operating Lease Payments
J. F. Drake State CC & TC,10013456,Dynamic Security Inc ,12/4/2020,2518.32,Unrestricted Shared Services,Other Contractual Services - PS
J. F. Drake State CC & TC,10013457,Federal Express Corporation ,12/4/2020,12.02,Unrestricted Shared Services,Freight - OOS
J. F. Drake State CC & TC,10013458,Loomis ,12/4/2020,210.39,Unrestricted Shared Services,Other Contractual Services - PS
J. F. Drake State CC & TC,10013459,Lowe's ,12/4/2020,430.87,Unrestricted Shared Services,Maintenance & Repairs  - OOS
J. F. Drake State CC & TC,10013460,The Alabama Board of Electrical Contractors ,12/4/2020,250,Unrestricted Shared Services,Memberships - PS
J. F. Drake State CC & TC,10013461,The Catalyst Center ,12/4/2020,500,Unrestricted Shared Services,Advertising & Promotions - OOS
J. F. Drake State CC & TC,10013462,ACT Inc ,12/10/2020,52.5,Unrestricted Shared Services,Testing Expense
J. F. Drake State CC & TC,10013463,Alabama Media ,12/10/2020,318.54,Unrestricted Shared Services,Advertising & Promotions - OOS
J. F. Drake State CC & TC,10013464,CM&F ,12/10/2020,1956,Unrestricted Shared Services,Other - AP
J. F. Drake State CC & TC,10013465,Currie Systems/Printing  Solutions ,12/10/2020,62.4,Unrestricted Shared Services,Printing and Binding - OOS
J. F. Drake State CC & TC,10013466,Dynamic Security Inc ,12/10/2020,2909.92,Unrestricted Shared Services,Other Contractual Services - PS
J. F. Drake State CC & TC,10013467,Farmers Insurance ,12/10/2020,246,Unrestricted Shared Services,Insurance and Bonding - PS
J. F. Drake State CC & TC,10013468,Huntsville Utilities ,12/10/2020,537.44,Unrestricted Shared Services,Gas & Heating Fuel - UC
J. F. Drake State CC & TC,10013468,Huntsville Utilities ,12/10/2020,842.53,Unrestricted Shared Services,Water & Sewer - UC
J. F. Drake State CC & TC,10013468,Huntsville Utilities ,12/10/2020,17303.63,Unrestricted Shared Services,Electricity - UC
J. F. Drake State CC & TC,10013469,In10sity Interactive LLC ,12/10/2020,299,Unrestricted Shared Services,Other Contractual Services - PS
J. F. Drake State CC & TC,10013470,Safety Kleen Systems Inc ,12/10/2020,610,Unrestricted Shared Services,Waste Disposal - UC
J. F. Drake State CC & TC,10013471,United Parcel Service Inc ,12/10/2020,13.49,Unrestricted Shared Services,Freight - OOS
J. F. Drake State CC & TC,10013472,Verizon Wireless ,12/10/2020,743.5,Unrestricted Shared Services,Internet - UC
J. F. Drake State CC & TC,10013473,WEX Inc ,12/10/2020,137.29,Unrestricted Shared Services,Gasoline & Oil - Motor Veh - OOS
J. F. Drake State CC & TC,10013474,WideOpen West Inc ,12/10/2020,3070.96,Unrestricted Shared Services,Internet - UC
J. F. Drake State CC & TC,10013475,PEEHIP ,12/14/2020,773.33,Unrestricted Shared Services,Group Health Insurance - FB
J. F. Drake State CC & TC,10013480,Assessment Technologies Institute LLC ,12/16/2020,41238.12,Unrestricted Shared Services,Other - AP
J. F. Drake State CC & TC,10013481,Dynamic Security Inc ,12/16/2020,2909.92,Unrestricted Shared Services,Other Contractual Services - PS
J. F. Drake State CC & TC,10013482,Cook's Pest Control ,12/17/2020,331,Unrestricted Shared Services,Other Contractual Services - PS
J. F. Drake State CC & TC,10013483,Federal Express Corporation ,12/17/2020,10.94,Unrestricted Shared Services,Freight - OOS
J. F. Drake State CC & TC,10013484,Hand Arendall Harrison Sale LLC ,12/17/2020,67.5,Unrestricted Shared Services,Legal Services - PS
J. F. Drake State CC & TC,10013485,Sims Patricia,12/17/2020,74.25,Unrestricted Shared Services,Other Travel Expenses - OS
J. F. Drake State CC & TC,10013486,Southern Assoc of Colleges & Schools ,12/17/2020,2000,Unrestricted Shared Services,Accreditation Expense - PS
J. F. Drake State CC & TC,10013487,United Parcel Service Inc ,12/17/2020,8.14,Unrestricted Shared Services,Freight - OOS
J. F. Drake State CC & TC,10013488,Waste Management ,12/17/2020,1057.42,Unrestricted Shared Services,Other Contractual Services - PS
J. F. Drake State CC & TC,10013502,In10sity Interactive LLC ,1/4/2021,299,Unrestricted Shared Services,Other Contractual Services - PS
J. F. Drake State CC & TC,10013503,The Solutions Team Inc ,1/4/2021,600,Unrestricted Shared Services,Other Contractual Services - PS
J. F. Drake State CC & TC,10013504,Madison Turf Keeper ,1/5/2021,530,Unrestricted Shared Services,Other Contractual Services - PS
J. F. Drake State CC & TC,10013505,RP Media ,1/5/2021,25609.36,Unrestricted Shared Services,Advertising & Promotions - OOS
J. F. Drake State CC & TC,10013506,Alabama Lawnmaster Inc ,1/6/2021,3095,Unrestricted Shared Services,Other Contractual Services - PS
J. F. Drake State CC & TC,10013507,Castle Branch Inc. ,1/6/2021,32,Unrestricted Shared Services,Other - AP
J. F. Drake State CC & TC,10013508,Cool Stuff by Austin ,1/6/2021,500,Unrestricted Shared Services,Other Contractual Services - PS
J. F. Drake State CC & TC,10013509,Dynamic Security Inc ,1/6/2021,2350.32,Unrestricted Shared Services,Other Contractual Services - PS
J. F. Drake State CC & TC,10013510,Federal Express Corporation ,1/6/2021,148.68,Unrestricted Shared Services,Freight - OOS
J. F. Drake State CC & TC,10013511,J.R. Enterprises ,1/6/2021,1663.5,Unrestricted Shared Services,Advertising & Promotions - OOS
J. F. Drake State CC & TC,10013512,Johnstone Supply ,1/6/2021,207,Unrestricted Shared Services,Materials and Supplies - MS
J. F. Drake State CC & TC,10013513,Loomis ,1/6/2021,226.28,Unrestricted Shared Services,Other Contractual Services - PS
J. F. Drake State CC & TC,10013514,Lowe's ,1/6/2021,157.07,Unrestricted Shared Services,Maintenance & Repairs  - OOS
J. F. Drake State CC & TC,10013516,PEEHIP ,1/6/2021,746.67,Unrestricted Shared Services,Group Health Insurance - FB
J. F. Drake State CC & TC,10013517,The Pitney Bowes Bank Inc ,1/6/2021,698.46,Unrestricted Shared Services,Short-Term Equipment Rentals - OOS
J. F. Drake State CC & TC,10013518,The Valley Weekly ,1/6/2021,4160,Unrestricted Shared Services,Advertising & Promotions - OOS
J. F. Drake State CC & TC,10013519,Verizon Wireless ,1/6/2021,658.48,Unrestricted Shared Services,Internet - UC
J. F. Drake State CC & TC,10013520,Vick Lisa,1/6/2021,750,Unrestricted Shared Services,Other Contractual Services - PS
J. F. Drake State CC & TC,10013521,Xerox Corporation ,1/6/2021,145.42,Unrestricted Shared Services,Operating Lease Payments
J. F. Drake State CC & TC,10013522,Dynamic Security Inc ,1/7/2021,5036.64,Unrestricted Shared Services,Other Contractual Services - PS
J. F. Drake State CC & TC,10013523,Berney Office Solutions LLC ,1/13/2021,7887.37,Unrestricted Shared Services,Other Contractual Services - PS
J. F. Drake State CC & TC,10013524,Brand Street LLC ,1/13/2021,1398.38,Unrestricted Shared Services,Advertising & Promotions - OOS
J. F. Drake State CC & TC,10013525,Fletcher Jacqueline,1/13/2021,7.63,Unrestricted Shared Services,Clearing Refunds - SP
J. F. Drake State CC & TC,10013526,Huntsville Utilities ,1/13/2021,781.21,Unrestricted Shared Services,Water & Sewer - UC
J. F. Drake State CC & TC,10013526,Huntsville Utilities ,1/13/2021,3218.23,Unrestricted Shared Services,Gas & Heating Fuel - UC
J. F. Drake State CC & TC,10013526,Huntsville Utilities ,1/13/2021,21225.95,Unrestricted Shared Services,Electricity - UC
J. F. Drake State CC & TC,10013528,Sweet Gap Inc ,1/13/2021,1325,Unrestricted Shared Services,Other Professional Fees - PS
J. F. Drake State CC & TC,10013529,WEX Inc ,1/13/2021,164.34,Unrestricted Shared Services,Gasoline & Oil - Motor Veh - OOS
J. F. Drake State CC & TC,10013530,WideOpen West Inc ,1/13/2021,3114.07,Unrestricted Shared Services,Internet - UC
J. F. Drake State CC & TC,10013531,Wilson Novella,1/13/2021,452.7,Unrestricted Shared Services,Student 3rd Party Reimbursement-AR
J. F. Drake State CC & TC,10013532,Alabama Lawnmaster Inc ,1/14/2021,3095,Unrestricted Shared Services,Other Contractual Services - PS
J. F. Drake State CC & TC,10013533,The Pitney Bowes Bank Inc ,1/14/2021,1500,Unrestricted Shared Services,Postage - OOS
J. F. Drake State CC & TC,10013536,Alabama Community College System ,1/21/2021,2604.36,Unrestricted Shared Services,Bond Surety Fee Payable - AP
J. F. Drake State CC & TC,10013537,Alabama Media ,1/21/2021,687.41,Unrestricted Shared Services,Advertising & Promotions - OOS
J. F. Drake State CC & TC,10013538,Dynamic Security Inc ,1/21/2021,5819.24,Unrestricted Shared Services,Other Contractual Services - PS
J. F. Drake State CC & TC,10013539,Elliott Amanda,1/21/2021,2600,Unrestricted Shared Services,Other Contractual Services - PS
J. F. Drake State CC & TC,10013540,Red Sage Communications Inc ,1/21/2021,2812,Unrestricted Shared Services,Other Contractual Services - PS
J. F. Drake State CC & TC,10013541,RP Media ,1/21/2021,11111.83,Unrestricted Shared Services,Advertising & Promotions - OOS
J. F. Drake State CC & TC,10013542,Sweet Gap Inc ,1/21/2021,300,Unrestricted Shared Services,Other Professional Fees - PS
J. F. Drake State CC & TC,10013543,The Solutions Team Inc ,1/21/2021,200,Unrestricted Shared Services,Other Contractual Services - PS
J. F. Drake State CC & TC,10013544,Waste Management ,1/21/2021,1057.42,Unrestricted Shared Services,Other Contractual Services - PS
J. F. Drake State CC & TC,10013545,Safety Kleen Systems Inc ,1/26/2021,175,Unrestricted Shared Services,Waste Disposal - UC
J. F. Drake State CC & TC,10013546,United Parcel Service Inc ,1/26/2021,7.35,Unrestricted Shared Services,Freight - OOS
J. F. Drake State CC & TC,10013547,Werle Enterprises LLC ,1/26/2021,829.12,Unrestricted Shared Services,Materials and Supplies - MS
J. F. Drake State CC & TC,10013548,Xerox Corporation ,1/26/2021,144.27,Unrestricted Shared Services,Operating Lease Payments
J. F. Drake State CC & TC,10013549,Assessment Technologies Institute LLC ,1/28/2021,105,Unrestricted Shared Services,Other - AP
J. F. Drake State CC & TC,10013550,Castle Branch Inc. ,1/28/2021,559.25,Unrestricted Shared Services,Other - AP
J. F. Drake State CC & TC,10013551,Cook's Pest Control ,1/28/2021,331,Unrestricted Shared Services,Other Contractual Services - PS
J. F. Drake State CC & TC,10013552,Dynamic Security Inc ,1/28/2021,2490.22,Unrestricted Shared Services,Other Contractual Services - PS
J. F. Drake State CC & TC,10013553,Ecampus.com ,1/28/2021,9957.33,Unrestricted Shared Services,Bookstore - AP
J. F. Drake State CC & TC,10013554,Federal Express Corporation ,1/28/2021,1021.96,Unrestricted Shared Services,Freight - OOS
J. F. Drake State CC & TC,10013555,Fells Wanda,1/28/2021,217.78,Unrestricted Shared Services,Student 3rd Party Reimbursement-AR
J. F. Drake State CC & TC,10013556,In10sity Interactive LLC ,1/28/2021,299,Unrestricted Shared Services,Other Contractual Services - PS
J. F. Drake State CC & TC,10013557,Sallie Mae Disbursement ,1/28/2021,5000,Unrestricted Shared Services,Clearing Refunds - SP
J. F. Drake State CC & TC,10013558,Xerox Corporation ,1/28/2021,1089.83,Unrestricted Shared Services,Taxes & Licenses - OOS
J. F. Drake State CC & TC,10013585,Carney Rose,2/2/2021,171.04,Unrestricted Shared Services,Student 3rd Party Reimbursement-AR
J. F. Drake State CC & TC,10013586,Green Joseph,2/2/2021,135.6,Unrestricted Shared Services,Student 3rd Party Reimbursement-AR
J. F. Drake State CC & TC,10013587,Krueger International Inc ,2/2/2021,478.2,Unrestricted Shared Services,Materials and Supplies - MS
J. F. Drake State CC & TC,10013588,Move Digital LLC ,2/2/2021,2000,Unrestricted Shared Services,Other Contractual Services - PS
J. F. Drake State CC & TC,10013589,Office Depot ,2/2/2021,412.68,Unrestricted Shared Services,Materials and Supplies - MS
J. F. Drake State CC & TC,10013591,Trav-Ad Signs ,2/2/2021,775.29,Unrestricted Shared Services,Other Contractual Services - PS
J. F. Drake State CC & TC,10013592,Verizon Wireless ,2/2/2021,668.82,Unrestricted Shared Services,Internet - UC
J. F. Drake State CC & TC,10013593,Waste Management ,2/2/2021,704.92,Unrestricted Shared Services,Other Contractual Services - PS
J. F. Drake State CC & TC,10013594,Acro Service Corporation ,2/4/2021,405.6,Unrestricted Shared Services,Other Contractual Services - PS
J. F. Drake State CC & TC,10013595,Business Systems & Consultants Inc ,2/4/2021,6667,Unrestricted Shared Services,Taxes & Licenses - OOS
J. F. Drake State CC & TC,10013596,Castle Branch Inc. ,2/4/2021,1400,Unrestricted Shared Services,Other - AP
J. F. Drake State CC & TC,10013597,Elliott Amanda,2/4/2021,290,Unrestricted Shared Services,Other Contractual Services - PS
J. F. Drake State CC & TC,10013598,Federal Express Corporation ,2/4/2021,78.55,Unrestricted Shared Services,Freight - OOS
J. F. Drake State CC & TC,10013599,Loomis ,2/4/2021,229.24,Unrestricted Shared Services,Other Contractual Services - PS
J. F. Drake State CC & TC,10013600,Lowe's ,2/4/2021,51.29,Unrestricted Shared Services,Maintenance & Repairs  - OOS
J. F. Drake State CC & TC,10013602,Alabama Lawnmaster Inc ,2/9/2021,3095,Unrestricted Shared Services,Other Contractual Services - PS
J. F. Drake State CC & TC,10013603,Alabama Media ,2/9/2021,343.54,Unrestricted Shared Services,Advertising & Promotions - OOS
J. F. Drake State CC & TC,10013604,Alabama Possible ,2/9/2021,1000,Unrestricted Shared Services,Memberships - PS
J. F. Drake State CC & TC,10013606,Berney Office Solutions LLC ,2/9/2021,8755.64,Unrestricted Shared Services,Other Contractual Services - PS
J. F. Drake State CC & TC,10013607,Calhoun Community College ,2/9/2021,48,Unrestricted Shared Services,Other Contractual Services - PS
J. F. Drake State CC & TC,10013608,CDW LLC ,2/9/2021,20028,Unrestricted Shared Services,Taxes & Licenses - OOS
J. F. Drake State CC & TC,10013609,Office Depot ,2/9/2021,10.3,Unrestricted Shared Services,Materials and Supplies - MS
J. F. Drake State CC & TC,10013610,ACT Inc ,2/11/2021,31.5,Unrestricted Shared Services,Testing Expense
J. F. Drake State CC & TC,10013611,Dynamic Security Inc ,2/11/2021,5819.84,Unrestricted Shared Services,Other Contractual Services - PS
J. F. Drake State CC & TC,10013612,Federal Express Corporation ,2/11/2021,11.74,Unrestricted Shared Services,Freight - OOS
J. F. Drake State CC & TC,10013613,Huntsville Utilities ,2/11/2021,741.94,Unrestricted Shared Services,Water & Sewer - UC
J. F. Drake State CC & TC,10013613,Huntsville Utilities ,2/11/2021,4606.18,Unrestricted Shared Services,Gas & Heating Fuel - UC
J. F. Drake State CC & TC,10013613,Huntsville Utilities ,2/11/2021,22666.74,Unrestricted Shared Services,Electricity - UC
J. F. Drake State CC & TC,10013615,RP Media ,2/11/2021,6917.14,Unrestricted Shared Services,Advertising & Promotions - OOS
J. F. Drake State CC & TC,10013616,Scales Jeremy,2/11/2021,94.99,Unrestricted Shared Services,Student 3rd Party Reimbursement-AR
J. F. Drake State CC & TC,10013617,WideOpen West Inc ,2/11/2021,3165.39,Unrestricted Shared Services,Internet - UC
J. F. Drake State CC & TC,10013618,Berney Office Solutions LLC ,2/11/2021,1109.75,Unrestricted Shared Services,Other Contractual Services - PS
J. F. Drake State CC & TC,10013619,WEDC Foundation Inc ,2/11/2021,500,Unrestricted Shared Services,Memberships - PS
J. F. Drake State CC & TC,10013620,Rosetta James Foundation ,2/11/2021,1500,Unrestricted Shared Services,Advertising & Promotions - OOS
J. F. Drake State CC & TC,10013621,CDW LLC ,2/17/2021,3855.36,Unrestricted Shared Services,Taxes & Licenses - OOS
J. F. Drake State CC & TC,10013622,Copeland Cleaners ,2/17/2021,95,Unrestricted Shared Services,Other Contractual Services - PS
J. F. Drake State CC & TC,10013623,Federal Express Corporation ,2/17/2021,7.29,Unrestricted Shared Services,Freight - OOS
J. F. Drake State CC & TC,10013624,Office Depot ,2/17/2021,189.51,Unrestricted Shared Services,Materials and Supplies - MS
J. F. Drake State CC & TC,10013625,The Solutions Team Inc ,2/17/2021,200,Unrestricted Shared Services,Other Contractual Services - PS
J. F. Drake State CC & TC,10013627,Castle Branch Inc. ,2/23/2021,436.25,Unrestricted Shared Services,Other - AP
J. F. Drake State CC & TC,10013628,Hand Arendall Harrison Sale LLC ,2/23/2021,67.5,Unrestricted Shared Services,Legal Services - PS
J. F. Drake State CC & TC,10013629,In10sity Interactive LLC ,2/23/2021,299,Unrestricted Shared Services,Other Contractual Services - PS
J. F. Drake State CC & TC,10013630,Scales Jeremy,2/23/2021,95,Unrestricted Shared Services,Student 3rd Party Reimbursement-AR
J. F. Drake State CC & TC,10013641,Move Digital LLC ,2/24/2021,2000,Unrestricted Shared Services,Other Contractual Services - PS
J. F. Drake State CC & TC,10013642,Andrews Darise,2/25/2021,190,Unrestricted Shared Services,Student 3rd Party Reimbursement-AR
J. F. Drake State CC & TC,10013643,Cook's Pest Control ,2/25/2021,331,Unrestricted Shared Services,Other Contractual Services - PS
J. F. Drake State CC & TC,10013644,Dynamic Security Inc ,2/25/2021,2909.92,Unrestricted Shared Services,Other Contractual Services - PS
J. F. Drake State CC & TC,10013645,Walker 360 Inc ,2/25/2021,169.12,Unrestricted Shared Services,Printing and Binding - OOS
J. F. Drake State CC & TC,10013646,Waste Management ,2/25/2021,1057.42,Unrestricted Shared Services,Other Contractual Services - PS
J. F. Drake State CC & TC,10013647,WEX Inc ,2/25/2021,48.95,Unrestricted Shared Services,Gasoline & Oil - Motor Veh - OOS
J. F. Drake State CC & TC,10013648,Wine & Design ,2/25/2021,600,Unrestricted Shared Services,Materials and Supplies - MS
J. F. Drake State CC & TC,10013663,Brown Adrian,3/4/2021,70,Unrestricted Shared Services,Testing Fees - TF
J. F. Drake State CC & TC,10013664,Castle Branch Inc. ,3/4/2021,262.75,Unrestricted Shared Services,Other - AP
J. F. Drake State CC & TC,10013665,Cobbs Allen & Hall Inc. ,3/4/2021,3834.01,Unrestricted Shared Services,Insurance and Bonding - PS
J. F. Drake State CC & TC,10013666,Dynamic Security Inc ,3/4/2021,5400.14,Unrestricted Shared Services,Other Contractual Services - PS
J. F. Drake State CC & TC,10013667,Ecampus.com ,3/4/2021,45058.51,Unrestricted Shared Services,Bookstore - AP
J. F. Drake State CC & TC,10013668,Loomis ,3/4/2021,231.26,Unrestricted Shared Services,Other Contractual Services - PS
J. F. Drake State CC & TC,10013669,Lowe's ,3/4/2021,5.34,Unrestricted Shared Services,Maintenance & Repairs  - OOS
J. F. Drake State CC & TC,10013670,Move Digital LLC ,3/4/2021,2000,Unrestricted Shared Services,Other Contractual Services - PS
J. F. Drake State CC & TC,10013671,North Alabama African American Chamber of Commerce ,3/4/2021,450,Unrestricted Shared Services,Memberships - PS
J. F. Drake State CC & TC,10013672,Safety Kleen Systems Inc ,3/4/2021,610,Unrestricted Shared Services,Waste Disposal - UC
J. F. Drake State CC & TC,10013673,Speakin' Out News ,3/4/2021,4000,Unrestricted Shared Services,Advertising & Promotions - OOS
J. F. Drake State CC & TC,10013674,United Parcel Service Inc ,3/4/2021,13.59,Unrestricted Shared Services,Freight - OOS
J. F. Drake State CC & TC,10013675,Verizon Wireless ,3/4/2021,668.82,Unrestricted Shared Services,Internet - UC
J. F. Drake State CC & TC,10013676,Lowe's ,3/4/2021,31.89,Unrestricted Shared Services,Maintenance & Repairs  - OOS
J. F. Drake State CC & TC,10013677,WEX Inc ,3/4/2021,77.46,Unrestricted Shared Services,Gasoline & Oil - Motor Veh - OOS
J. F. Drake State CC & TC,10013678,Alabama Labor Law Poster ,3/11/2021,209.5,Unrestricted Shared Services,Materials and Supplies - MS
J. F. Drake State CC & TC,10013679,Assessment Technologies Institute LLC ,3/11/2021,45,Unrestricted Shared Services,Other - AP
J. F. Drake State CC & TC,10013680,Dynamic Security Inc ,3/11/2021,2909.92,Unrestricted Shared Services,Other Contractual Services - PS
J. F. Drake State CC & TC,10013681,Huntsville Utilities ,3/11/2021,955.86,Unrestricted Shared Services,Water & Sewer - UC
J. F. Drake State CC & TC,10013681,Huntsville Utilities ,3/11/2021,4501.99,Unrestricted Shared Services,Gas & Heating Fuel - UC
J. F. Drake State CC & TC,10013681,Huntsville Utilities ,3/11/2021,21629.28,Unrestricted Shared Services,Electricity - UC
J. F. Drake State CC & TC,10013682,Office Depot ,3/11/2021,200.8,Unrestricted Shared Services,Materials and Supplies - MS
J. F. Drake State CC & TC,10013683,T & T Appliance ,3/11/2021,3850,Unrestricted Shared Services,Maintenance & Repairs  - OOS
J. F. Drake State CC & TC,10013684,US Space & Rocket Center Education Foundation ,3/11/2021,1300,Unrestricted Shared Services,Advertising & Promotions - OOS
J. F. Drake State CC & TC,10013685,Xerox Corporation ,3/11/2021,143.71,Unrestricted Shared Services,Operating Lease Payments
J. F. Drake State CC & TC,10013688,Alabama Lawnmaster Inc ,3/18/2021,3095,Unrestricted Shared Services,Other Contractual Services - PS
J. F. Drake State CC & TC,10013689,Burritt Museum Association ,3/18/2021,2500,Unrestricted Shared Services,Advertising & Promotions - OOS
J. F. Drake State CC & TC,10013690,Cool Stuff by Austin ,3/18/2021,1155,Unrestricted Shared Services,Other Contractual Services - PS
J. F. Drake State CC & TC,10013691,Farrell Corporation ,3/18/2021,1502.29,Unrestricted Shared Services,Materials and Supplies - MS
J. F. Drake State CC & TC,10013692,J F Drake State Community College & Technical College ,3/18/2021,97,Unrestricted Shared Services,Other Non-Capital Costs
J. F. Drake State CC & TC,10013693,Leslie Martisha,3/18/2021,2.45,Unrestricted Shared Services,Clearing Refunds - SP
J. F. Drake State CC & TC,10013694,RP Media ,3/18/2021,3254.18,Unrestricted Shared Services,Advertising & Promotions - OOS
J. F. Drake State CC & TC,10013695,Rydin Decals ,3/18/2021,508,Unrestricted Shared Services,Materials and Supplies - MS
J. F. Drake State CC & TC,10013696,WideOpen West Inc ,3/18/2021,3130.29,Unrestricted Shared Services,Internet - UC
J. F. Drake State CC & TC,10013697,4Imprint Inc ,3/23/2021,458.19,Unrestricted Shared Services,Advertising & Promotions - OOS
J. F. Drake State CC & TC,10013698,Dynamic Security Inc ,3/23/2021,2846.97,Unrestricted Shared Services,Other Contractual Services - PS
J. F. Drake State CC & TC,10013699,Galindo-Baird Yibeli,3/23/2021,1180.31,Unrestricted Shared Services,Prior Year Refunds/Adjustments - SS
J. F. Drake State CC & TC,10013700,HESI - ELSEVIER ,3/23/2021,143,Unrestricted Shared Services,Other - AP
J. F. Drake State CC & TC,10013701,The Solutions Team Inc ,3/23/2021,200,Unrestricted Shared Services,Other Contractual Services - PS
J. F. Drake State CC & TC,10013702,Waste Management ,3/23/2021,1057.42,Unrestricted Shared Services,Other Contractual Services - PS
J. F. Drake State CC & TC,10013703,Xerox Corporation ,3/23/2021,156.48,Unrestricted Shared Services,Operating Lease Payments
J. F. Drake State CC & TC,10013704,The Pitney Bowes Bank Inc ,3/26/2021,1000,Unrestricted Shared Services,Postage - OOS
J. F. Drake State CC & TC,10013705,ACT Inc ,3/30/2021,31.5,Unrestricted Shared Services,Testing Expense
J. F. Drake State CC & TC,10013706,Assessment Technologies Institute LLC ,3/30/2021,120,Unrestricted Shared Services,Other - AP
J. F. Drake State CC & TC,10013707,Castle Branch Inc. ,3/30/2021,102.75,Unrestricted Shared Services,Other - AP
J. F. Drake State CC & TC,10013708,CDW LLC ,3/30/2021,5346,Unrestricted Shared Services,Taxes & Licenses - OOS
J. F. Drake State CC & TC,10013709,Cook's Pest Control ,3/30/2021,331,Unrestricted Shared Services,Other Contractual Services - PS
J. F. Drake State CC & TC,10013710,Dynamic Security Inc ,3/30/2021,2721.06,Unrestricted Shared Services,Other Contractual Services - PS
J. F. Drake State CC & TC,10013711,North Alabama Engraving Stamp Company ,3/30/2021,72.45,Unrestricted Shared Services,Materials and Supplies - MS
J. F. Drake State CC & TC,10013712,The Pitney Bowes Bank Inc ,3/30/2021,698.46,Unrestricted Shared Services,Short-Term Equipment Rentals - OOS
J. F. Drake State CC & TC,10013713,WEX Inc ,3/30/2021,75.6,Unrestricted Shared Services,Gasoline & Oil - Motor Veh - OOS
J. F. Drake State CC & TC,10013714,WEX Inc ,3/30/2021,27.95,Unrestricted Shared Services,Gasoline & Oil - Motor Veh - OOS
J. F. Drake State CC & TC,10013728,4Imprint Inc ,3/31/2021,1020.88,Unrestricted Shared Services,Advertising & Promotions - OOS
J. F. Drake State CC & TC,10013729,Alabama Community College System President's Association ,3/31/2021,300,Unrestricted Shared Services,Registration Fees- IS
J. F. Drake State CC & TC,10013730,Brand Street LLC ,3/31/2021,200.13,Unrestricted Shared Services,Materials and Supplies - MS
J. F. Drake State CC & TC,10013731,Castle Branch Inc. ,3/31/2021,566,Unrestricted Shared Services,Other - AP
J. F. Drake State CC & TC,10013732,Currie Systems/Printing  Solutions ,3/31/2021,2672.35,Unrestricted Shared Services,Advertising & Promotions - OOS
J. F. Drake State CC & TC,10013733,In10sity Interactive LLC ,3/31/2021,299,Unrestricted Shared Services,Other Contractual Services - PS
J. F. Drake State CC & TC,10013734,Sweet Gap Inc ,3/31/2021,1900,Unrestricted Shared Services,Other Professional Fees - PS
J. F. Drake State CC & TC,10013735,Verizon Wireless ,3/31/2021,668.84,Unrestricted Shared Services,Internet - UC
J. F. Drake State CC & TC,10013736,Walker 360 Inc ,3/31/2021,650.03,Unrestricted Shared Services,Printing and Binding - OOS
J. F. Drake State CC & TC,10013740,ALLDATA LLC ,4/7/2021,975,Unrestricted Shared Services,Computer Software(non capital) - MS
J. F. Drake State CC & TC,10013741,Dynamic Security Inc ,4/7/2021,2812,Unrestricted Shared Services,Other Contractual Services - PS
J. F. Drake State CC & TC,10013742,Elliott Amanda,4/7/2021,750,Unrestricted Shared Services,Other Contractual Services - PS
J. F. Drake State CC & TC,10013743,Federal Express Corporation ,4/7/2021,55.13,Unrestricted Shared Services,Freight - OOS
J. F. Drake State CC & TC,10013744,Loomis ,4/7/2021,238.42,Unrestricted Shared Services,Other Contractual Services - PS
J. F. Drake State CC & TC,10013745,Mitchell 1 ,4/7/2021,1099,Unrestricted Shared Services,Computer Software(non capital) - MS
J. F. Drake State CC & TC,10013746,Move Digital LLC ,4/7/2021,2000,Unrestricted Shared Services,Other Contractual Services - PS
J. F. Drake State CC & TC,10013747,Dynamic Security Inc ,4/8/2021,2350.32,Unrestricted Shared Services,Other Contractual Services - PS
J. F. Drake State CC & TC,10013748,Lowe's ,4/8/2021,108.04,Unrestricted Shared Services,Maintenance & Repairs  - OOS
J. F. Drake State CC & TC,10013749,ACT Inc ,4/13/2021,31.5,Unrestricted Shared Services,Testing Expense
J. F. Drake State CC & TC,10013750,Currie Systems/Printing  Solutions ,4/13/2021,1257.61,Unrestricted Shared Services,Advertising & Promotions - OOS
J. F. Drake State CC & TC,10013751,Huntsville Shred Services ,4/13/2021,4600,Unrestricted Shared Services,Waste Disposal - UC
J. F. Drake State CC & TC,10013752,Huntsville Utilities ,4/13/2021,889.4,Unrestricted Shared Services,Water & Sewer - UC
J. F. Drake State CC & TC,10013752,Huntsville Utilities ,4/13/2021,2963.53,Unrestricted Shared Services,Gas & Heating Fuel - UC
J. F. Drake State CC & TC,10013752,Huntsville Utilities ,4/13/2021,20735.27,Unrestricted Shared Services,Electricity - UC
J. F. Drake State CC & TC,10013753,Imprint Yourself Promotional Products LLC ,4/13/2021,531.09,Unrestricted Shared Services,Advertising & Promotions - OOS
J. F. Drake State CC & TC,10013754,Landers McClarty Dodge Chrysler Jeep Ram ,4/13/2021,871.24,Unrestricted Shared Services,Maintenance & Repairs  - OOS
J. F. Drake State CC & TC,10013755,Oakwood University ,4/13/2021,285.29,Unrestricted Shared Services,Participant Costs-Other
J. F. Drake State CC & TC,10013756,The All-Alabama Academic Team Foundation ,4/13/2021,1800,Unrestricted Shared Services,Participant Costs-Other
J. F. Drake State CC & TC,10013757,WideOpen West Inc ,4/13/2021,3199.01,Unrestricted Shared Services,Internet - UC
J. F. Drake State CC & TC,10013759,Alabama Lawnmaster Inc ,4/20/2021,3095,Unrestricted Shared Services,Other Contractual Services - PS
J. F. Drake State CC & TC,10013760,Berney Office Solutions LLC ,4/20/2021,1109.75,Unrestricted Shared Services,Other Contractual Services - PS
J. F. Drake State CC & TC,10013761,Federal Express Corporation ,4/20/2021,50.76,Unrestricted Shared Services,Freight - OOS
J. F. Drake State CC & TC,10013762,Heartland Campus Solutions Ecsi ,4/20/2021,647.1,Unrestricted Shared Services,Other Contractual Services - PS
J. F. Drake State CC & TC,10013763,J.R. Enterprises ,4/20/2021,1983.25,Unrestricted Shared Services,Advertising & Promotions - OOS
J. F. Drake State CC & TC,10013764,OJs Photography ,4/20/2021,605,Unrestricted Shared Services,Other Professional Fees - PS
J. F. Drake State CC & TC,10013765,RP Media ,4/20/2021,4167.35,Unrestricted Shared Services,Advertising & Promotions - OOS
J. F. Drake State CC & TC,10013766,Sims Patricia,4/20/2021,170,Unrestricted Shared Services,Other Travel Expenses - IS
J. F. Drake State CC & TC,10013767,Society for Human Resource Management ,4/20/2021,219,Unrestricted Shared Services,Memberships - PS
J. F. Drake State CC & TC,10013768,The Solutions Team Inc ,4/20/2021,200,Unrestricted Shared Services,Other Contractual Services - PS
J. F. Drake State CC & TC,10013769,Waste Management ,4/20/2021,1057.42,Unrestricted Shared Services,Other Contractual Services - PS
J. F. Drake State CC & TC,10013771,4Imprint Inc ,4/22/2021,707.04,Unrestricted Shared Services,Materials and Supplies - MS
J. F. Drake State CC & TC,10013771,4Imprint Inc ,4/22/2021,1588.7,Unrestricted Shared Services,Advertising & Promotions - OOS
J. F. Drake State CC & TC,10013772,Dynamic Security Inc ,4/22/2021,5519.06,Unrestricted Shared Services,Other Contractual Services - PS
J. F. Drake State CC & TC,10013773,In10sity Interactive LLC ,4/22/2021,299,Unrestricted Shared Services,Other Contractual Services - PS
J. F. Drake State CC & TC,10013774,LED Orange LLC ,4/22/2021,2600,Unrestricted Shared Services,Graduation Expense
J. F. Drake State CC & TC,10013775,Red Sage Communications Inc ,4/22/2021,1875,Unrestricted Shared Services,Other Contractual Services - PS
J. F. Drake State CC & TC,10013776,WEDC Foundation Inc ,4/22/2021,2500,Unrestricted Shared Services,Advertising & Promotions - OOS
J. F. Drake State CC & TC,10013777,Alabama Lawnmaster Inc ,4/29/2021,600,Unrestricted Shared Services,Maintenance & Repairs  - OOS
J. F. Drake State CC & TC,10013778,Bubba's Catering ,4/29/2021,214.25,Unrestricted Shared Services,Culinary Consumables
J. F. Drake State CC & TC,10013779,Castle Branch Inc. ,4/29/2021,673.75,Unrestricted Shared Services,Other - AP
J. F. Drake State CC & TC,10013780,Cook's Pest Control ,4/29/2021,331,Unrestricted Shared Services,Other Contractual Services - PS
J. F. Drake State CC & TC,10013781,Federal Express Corporation ,4/29/2021,12.31,Unrestricted Shared Services,Freight - OOS
J. F. Drake State CC & TC,10013782,HESI - ELSEVIER ,4/29/2021,467.62,Unrestricted Shared Services,Other - AP
J. F. Drake State CC & TC,10013783,Oakwood University ,4/29/2021,59.43,Unrestricted Shared Services,Participant Costs-Other
J. F. Drake State CC & TC,10013784,R & R Sports ,4/29/2021,325,Unrestricted Shared Services,Advertising & Promotions - OOS
J. F. Drake State CC & TC,10013785,Sam's Club ,4/29/2021,92.94,Unrestricted Shared Services,Culinary Consumables
J. F. Drake State CC & TC,10013786,WEX Inc ,4/29/2021,159.08,Unrestricted Shared Services,Gasoline & Oil - Motor Veh - OOS
J. F. Drake State CC & TC,10013787,WEX Inc ,4/29/2021,26.58,Unrestricted Shared Services,Gasoline & Oil - Motor Veh - OOS
J. F. Drake State CC & TC,10013788,Xerox Corporation ,4/29/2021,151.46,Unrestricted Shared Services,Operating Lease Payments
J. F. Drake State CC & TC,10013801,Redline Striping ,5/3/2021,4890.24,Unrestricted Shared Services,Maintenance & Repairs  - OOS
J. F. Drake State CC & TC,10013803,Alabama Media ,5/5/2021,155.4,Unrestricted Shared Services,Advertising & Promotions - OOS
J. F. Drake State CC & TC,10013804,Berney Office Solutions LLC ,5/5/2021,10068.99,Unrestricted Shared Services,Other Contractual Services - PS
J. F. Drake State CC & TC,10013805,Cool Stuff by Austin ,5/5/2021,1395,Unrestricted Shared Services,Other Contractual Services - PS
J. F. Drake State CC & TC,10013806,Copeland Cleaners ,5/5/2021,96,Unrestricted Shared Services,Other Contractual Services - PS
J. F. Drake State CC & TC,10013807,Council for Higher Edu Accreditation ,5/5/2021,690,Unrestricted Shared Services,Memberships - PS
J. F. Drake State CC & TC,10013808,Dynamic Security Inc ,5/5/2021,2909.92,Unrestricted Shared Services,Other Contractual Services - PS
J. F. Drake State CC & TC,10013809,Loomis ,5/5/2021,234.29,Unrestricted Shared Services,Other Contractual Services - PS
J. F. Drake State CC & TC,10013810,Lowe's ,5/5/2021,332.53,Unrestricted Shared Services,Maintenance & Repairs  - OOS
J. F. Drake State CC & TC,10013811,Move Digital LLC ,5/5/2021,2000,Unrestricted Shared Services,Other Contractual Services - PS
J. F. Drake State CC & TC,10013812,PMT Publishing ,5/5/2021,5560,Unrestricted Shared Services,Advertising & Promotions - OOS
J. F. Drake State CC & TC,10013813,Sims Patricia,5/5/2021,170,Unrestricted Shared Services,Other Travel Expenses - IS
J. F. Drake State CC & TC,10013814,The Pitney Bowes Bank Inc ,5/5/2021,1000,Unrestricted Shared Services,Postage - OOS
J. F. Drake State CC & TC,10013815,Verizon Wireless ,5/5/2021,668.94,Unrestricted Shared Services,Internet - UC
J. F. Drake State CC & TC,10013816,Walker 360 Inc ,5/5/2021,178.25,Unrestricted Shared Services,Printing and Binding - OOS
J. F. Drake State CC & TC,10013817,4Imprint Inc ,5/11/2021,2703.04,Unrestricted Shared Services,Advertising & Promotions - OOS
J. F. Drake State CC & TC,10013818,4Imprint Inc ,5/11/2021,326.36,Unrestricted Shared Services,Graduation Expense
J. F. Drake State CC & TC,10013819,Accreditation Commission For Ed In Nursing Inc. (ACEN) ,5/11/2021,2395.83,Unrestricted Shared Services,Accreditation Expense - PS
J. F. Drake State CC & TC,10013820,Chamber of Commerce of Huntsville/Madison County ,5/11/2021,2000,Unrestricted Shared Services,Advertising & Promotions - OOS
J. F. Drake State CC & TC,10013821,Copeland Cleaners ,5/11/2021,45.5,Unrestricted Shared Services,Graduation Expense
J. F. Drake State CC & TC,10013822,Credentials Solutions LLC ,5/11/2021,325,Unrestricted Shared Services,Transcript Expense
J. F. Drake State CC & TC,10013823,Credentials Solutions LLC ,5/11/2021,412.5,Unrestricted Shared Services,Transcript Expense
J. F. Drake State CC & TC,10013824,Federal Express Corporation ,5/11/2021,80.54,Unrestricted Shared Services,Freight - OOS
J. F. Drake State CC & TC,10013825,Huntsville Utilities ,5/11/2021,930.76,Unrestricted Shared Services,Water & Sewer - UC
J. F. Drake State CC & TC,10013825,Huntsville Utilities ,5/11/2021,1049,Unrestricted Shared Services,Gas & Heating Fuel - UC
J. F. Drake State CC & TC,10013825,Huntsville Utilities ,5/11/2021,20049.74,Unrestricted Shared Services,Electricity - UC
J. F. Drake State CC & TC,10013826,Oak Hall Industries LP ,5/11/2021,5585.17,Unrestricted Shared Services,Graduation Expense
J. F. Drake State CC & TC,10013827,Redline Striping ,5/11/2021,3352,Unrestricted Shared Services,Maintenance & Repairs  - OOS
J. F. Drake State CC & TC,10013828,The Decatur Daily ,5/11/2021,400,Unrestricted Shared Services,Advertising & Promotions - OOS
J. F. Drake State CC & TC,10013829,Thomas Electric Inc ,5/11/2021,1535,Unrestricted Shared Services,Maintenance & Repairs  - OOS
J. F. Drake State CC & TC,10013830,WideOpen West Inc ,5/11/2021,3212.01,Unrestricted Shared Services,Internet - UC
J. F. Drake State CC & TC,10013831,Ballcorps LLC ,5/13/2021,320,Unrestricted Shared Services,Advertising & Promotions - OOS
J. F. Drake State CC & TC,10013832,4Imprint Inc ,5/18/2021,173.84,Unrestricted Shared Services,Materials and Supplies - MS
J. F. Drake State CC & TC,10013832,4Imprint Inc ,5/18/2021,694.16,Unrestricted Shared Services,Graduation Expense
J. F. Drake State CC & TC,10013833,Alabama Lawnmaster Inc ,5/18/2021,3095,Unrestricted Shared Services,Other Contractual Services - PS
J. F. Drake State CC & TC,10013834,Albert's Flowers ,5/18/2021,520,Unrestricted Shared Services,Graduation Expense
J. F. Drake State CC & TC,10013835,Assessment Technologies Institute LLC ,5/18/2021,35,Unrestricted Shared Services,Other - AP
J. F. Drake State CC & TC,10013836,Cool Stuff by Austin ,5/18/2021,400,Unrestricted Shared Services,Other Contractual Services - PS
J. F. Drake State CC & TC,10013837,Credentials Solutions LLC ,5/18/2021,32.5,Unrestricted Shared Services,Transcript Expense
J. F. Drake State CC & TC,10013838,Dynamic Security Inc ,5/18/2021,5596.02,Unrestricted Shared Services,Other Contractual Services - PS
J. F. Drake State CC & TC,10013839,Ecampus.com ,5/18/2021,859.5,Unrestricted Shared Services,Books (Non-Library)
J. F. Drake State CC & TC,10013840,Federal Express Corporation ,5/18/2021,7.32,Unrestricted Shared Services,Freight - OOS
J. F. Drake State CC & TC,10013841,Nebraska Health Care Association ,5/18/2021,522.16,Unrestricted Shared Services,Books (Non-Library)
J. F. Drake State CC & TC,10013842,Northwest-Shoals Community College ,5/18/2021,48,Unrestricted Shared Services,Materials and Supplies - MS
J. F. Drake State CC & TC,10013843,Oakwood University ,5/18/2021,2500,Unrestricted Shared Services,Graduation Expense
J. F. Drake State CC & TC,10013844,Pride Yoneka,5/18/2021,500,Unrestricted Shared Services,Graduation Expense
J. F. Drake State CC & TC,10013845,RP Media ,5/18/2021,4683.35,Unrestricted Shared Services,Advertising & Promotions - OOS
J. F. Drake State CC & TC,10013846,Southern Assoc of Colleges & Schools ,5/18/2021,898,Unrestricted Shared Services,Accreditation Expense - PS
J. F. Drake State CC & TC,10013847,Walker 360 Inc ,5/18/2021,143.56,Unrestricted Shared Services,Advertising & Promotions - OOS
J. F. Drake State CC & TC,10013847,Walker 360 Inc ,5/18/2021,1032.07,Unrestricted Shared Services,Graduation Expense
J. F. Drake State CC & TC,10013848,Waste Management ,5/18/2021,1057.42,Unrestricted Shared Services,Other Contractual Services - PS
J. F. Drake State CC & TC,10013849,ACT Inc ,5/20/2021,42,Unrestricted Shared Services,Testing Expense
J. F. Drake State CC & TC,10013850,LED Orange LLC ,5/20/2021,2600,Unrestricted Shared Services,Graduation Expense
J. F. Drake State CC & TC,10013851,The Solutions Team Inc ,5/20/2021,200,Unrestricted Shared Services,Other Contractual Services - PS
J. F. Drake State CC & TC,10013864,4Imprint Inc ,6/1/2021,742.85,Unrestricted Shared Services,Advertising & Promotions - OOS
J. F. Drake State CC & TC,10013865,Alabama Community College System ,6/1/2021,5820.46,Unrestricted Shared Services,Bond Reserve Fee Expense - OOS
J. F. Drake State CC & TC,10013866,Castle Branch Inc. ,6/1/2021,32,Unrestricted Shared Services,Other - AP
J. F. Drake State CC & TC,10013867,Cook's Pest Control ,6/1/2021,331,Unrestricted Shared Services,Other Contractual Services - PS
J. F. Drake State CC & TC,10013868,Dynamic Security Inc ,6/1/2021,4812.56,Unrestricted Shared Services,Other Contractual Services - PS
J. F. Drake State CC & TC,10013869,Federal Express Corporation ,6/1/2021,7.92,Unrestricted Shared Services,Freight - OOS
J. F. Drake State CC & TC,10013870,In10sity Interactive LLC ,6/1/2021,749,Unrestricted Shared Services,Other Contractual Services - PS
J. F. Drake State CC & TC,10013871,McDaniel Darvin,6/1/2021,128.8,Unrestricted Shared Services,Participant Costs-Other
J. F. Drake State CC & TC,10013872,Move Digital LLC ,6/1/2021,2000,Unrestricted Shared Services,Other Contractual Services - PS
J. F. Drake State CC & TC,10013873,Mullins Special Occasions ,6/1/2021,1104,Unrestricted Shared Services,Graduation Expense
J. F. Drake State CC & TC,10013874,Pataky J,6/1/2021,569.5,Unrestricted Shared Services,Graduation Expense
J. F. Drake State CC & TC,10013875,The Ledges of Huntsville ,6/1/2021,1440,Unrestricted Shared Services,Memberships - PS
J. F. Drake State CC & TC,10013876,The Pitney Bowes Bank Inc ,6/1/2021,347.21,Unrestricted Shared Services,Materials and Supplies - MS
J. F. Drake State CC & TC,10013877,WEX Inc ,6/1/2021,135.93,Unrestricted Shared Services,Gasoline & Oil - Motor Veh - OOS
J. F. Drake State CC & TC,10013878,WEX Inc ,6/1/2021,97.12,Unrestricted Shared Services,Gasoline & Oil - Motor Veh - OOS
J. F. Drake State CC & TC,10013879,Xerox Corporation ,6/1/2021,145.04,Unrestricted Shared Services,Operating Lease Payments
J. F. Drake State CC & TC,10013880,Alabama Media ,6/3/2021,260.43,Unrestricted Shared Services,Advertising & Promotions - OOS
J. F. Drake State CC & TC,10013881,Castle Branch Inc. ,6/3/2021,64,Unrestricted Shared Services,Other - AP
J. F. Drake State CC & TC,10013883,Dynamic Security Inc ,6/3/2021,2763.04,Unrestricted Shared Services,Other Contractual Services - PS
J. F. Drake State CC & TC,10013884,Elliott Amanda,6/3/2021,1850,Unrestricted Shared Services,Other Contractual Services - PS
J. F. Drake State CC & TC,10013885,Farmers Insurance ,6/3/2021,85,Unrestricted Shared Services,Insurance and Bonding - PS
J. F. Drake State CC & TC,10013886,Loomis ,6/3/2021,246.41,Unrestricted Shared Services,Other Contractual Services - PS
J. F. Drake State CC & TC,10013887,Lowe's ,6/3/2021,87.75,Unrestricted Shared Services,Maintenance & Repairs  - OOS
J. F. Drake State CC & TC,10013887,Lowe's ,6/3/2021,190,Unrestricted Shared Services,Graduation Expense
J. F. Drake State CC & TC,10013888,Nebraska Health Care Association ,6/3/2021,522.21,Unrestricted Shared Services,Books (Non-Library)
J. F. Drake State CC & TC,10013889,Office Depot ,6/3/2021,222.86,Unrestricted Shared Services,Materials and Supplies - MS
J. F. Drake State CC & TC,10013890,Safety Kleen Systems Inc ,6/3/2021,610,Unrestricted Shared Services,Waste Disposal - UC
J. F. Drake State CC & TC,10013891,Sam's Club ,6/3/2021,20,Unrestricted Shared Services,Graduation Expense
J. F. Drake State CC & TC,10013892,Sims Patricia,6/3/2021,170,Unrestricted Shared Services,Other Travel Expenses - IS
J. F. Drake State CC & TC,10013893,Verizon Wireless ,6/3/2021,668.98,Unrestricted Shared Services,Internet - UC
J. F. Drake State CC & TC,10013894,Waste Management ,6/3/2021,693.63,Unrestricted Shared Services,Waste Disposal - UC
J. F. Drake State CC & TC,10013895,Assessment Technologies Institute LLC ,6/8/2021,32689.28,Unrestricted Shared Services,Other - AP
J. F. Drake State CC & TC,10013896,Ellucian Company LP ,6/8/2021,132663,Unrestricted Shared Services,Other Contractual Services - PS
J. F. Drake State CC & TC,10013897,Pearson Vue ,6/8/2021,480,Unrestricted Shared Services,Books (Non-Library)
J. F. Drake State CC & TC,10013898,RP Media ,6/8/2021,8867.35,Unrestricted Shared Services,Advertising & Promotions - OOS
J. F. Drake State CC & TC,10013899,Southern Assoc of Colleges & Schools ,6/8/2021,6247,Unrestricted Shared Services,Memberships - PS
J. F. Drake State CC & TC,10013900,Walker 360 Inc ,6/8/2021,148.25,Other Auxiliary- Fund Raising,Printing and Binding - OOS
J. F. Drake State CC & TC,10013900,Walker 360 Inc ,6/8/2021,474.95,Unrestricted Shared Services,Printing and Binding - OOS
J. F. Drake State CC & TC,10013901,Pearson Vue ,6/8/2021,875,Unrestricted Shared Services,Books (Non-Library)
J. F. Drake State CC & TC,10013902,Madison County Service Center ,6/9/2021,32,Unrestricted Shared Services,Taxes & Licenses - OOS
J. F. Drake State CC & TC,10013903,Madison County Service Center ,6/9/2021,32,Unrestricted Shared Services,Taxes & Licenses - OOS
J. F. Drake State CC & TC,10013904,4Imprint Inc ,6/15/2021,343.7,Other Auxiliary- Fund Raising,Advertising & Promotions - OOS
J. F. Drake State CC & TC,10013905,Copeland Cleaners ,6/15/2021,180,Other Auxiliary- Fund Raising,Other Contractual Services - PS
J. F. Drake State CC & TC,10013905,Copeland Cleaners ,6/15/2021,249,Unrestricted Shared Services,Other Contractual Services - PS
J. F. Drake State CC & TC,10013906,Council for Alabama Resource Development ,6/15/2021,300,Unrestricted Shared Services,Memberships - PS
J. F. Drake State CC & TC,10013907,Credentials Solutions LLC ,6/15/2021,12.5,Unrestricted Shared Services,Transcript Expense
J. F. Drake State CC & TC,10013908,Dynamic Security Inc ,6/15/2021,2938.02,Unrestricted Shared Services,Other Contractual Services - PS
J. F. Drake State CC & TC,10013909,Huntsville Utilities ,6/15/2021,586.65,Unrestricted Shared Services,Gas & Heating Fuel - UC
J. F. Drake State CC & TC,10013909,Huntsville Utilities ,6/15/2021,1221.74,Unrestricted Shared Services,Water & Sewer - UC
J. F. Drake State CC & TC,10013909,Huntsville Utilities ,6/15/2021,17989.5,Unrestricted Shared Services,Electricity - UC
J. F. Drake State CC & TC,10013910,Southern Association of Colleges with Associate Degrees ,6/15/2021,150,Unrestricted Shared Services,Memberships - PS
J. F. Drake State CC & TC,10013911,Walker Rachel,6/15/2021,3500,Unrestricted Shared Services,Instructional Salaries(Temp/PT)-SW
J. F. Drake State CC & TC,10013912,WideOpen West Inc ,6/15/2021,3026.65,Unrestricted Shared Services,Internet - UC
J. F. Drake State CC & TC,10013922,Alabama Lawnmaster Inc ,6/17/2021,3095,Unrestricted Shared Services,Other Contractual Services - PS
J. F. Drake State CC & TC,10013923,Alabama Media ,6/17/2021,377.31,Unrestricted Shared Services,Advertising & Promotions - OOS
J. F. Drake State CC & TC,10013924,Decision Sciences Company ,6/17/2021,1500,Unrestricted Shared Services,Other Professional Fees - PS
J. F. Drake State CC & TC,10013925,Dynamic Security Inc ,6/17/2021,2860.96,Unrestricted Shared Services,Other Contractual Services - PS
J. F. Drake State CC & TC,10013926,EDUCAUSE Inc ,6/17/2021,77,Unrestricted Shared Services,Taxes & Licenses - OOS
J. F. Drake State CC & TC,10013927,Federal Express Corporation ,6/17/2021,37.12,Unrestricted Shared Services,Freight - OOS
J. F. Drake State CC & TC,10013928,Irons Jeffrey,6/17/2021,1500,Unrestricted Shared Services,Other Professional Fees - PS
J. F. Drake State CC & TC,10013929,Mankins John,6/17/2021,1500,Unrestricted Shared Services,Other Professional Fees - PS
J. F. Drake State CC & TC,10013930,Southern Assoc of Colleges & Schools ,6/17/2021,500,Unrestricted Shared Services,Accreditation Expense - PS
J. F. Drake State CC & TC,10013931,The Solutions Team Inc ,6/17/2021,200,Unrestricted Shared Services,Other Contractual Services - PS
J. F. Drake State CC & TC,10013932,Walker 360 Inc ,6/17/2021,311,Other Auxiliary- Fund Raising,Printing and Binding - OOS
J. F. Drake State CC & TC,10013933,West Roofing Systems Inc. ,6/17/2021,67165.5,Renewal & Replacement Shared Svcs,Maintenance & Repairs  - OOS
J. F. Drake State CC & TC,10013934,4Imprint Inc ,6/24/2021,1739.46,Unrestricted Shared Services,Advertising & Promotions - OOS
J. F. Drake State CC & TC,10013935,Castle Branch Inc. ,6/24/2021,1292,Unrestricted Shared Services,Other - AP
J. F. Drake State CC & TC,10013936,Cook's Pest Control ,6/24/2021,331,Unrestricted Shared Services,Other Contractual Services - PS
J. F. Drake State CC & TC,10013938,Federal Express Corporation ,6/24/2021,32.19,Unrestricted Shared Services,Freight - OOS
J. F. Drake State CC & TC,10013939,HESI - ELSEVIER ,6/24/2021,440,Unrestricted Shared Services,Other - AP
J. F. Drake State CC & TC,10013940,Huntsville Emergency Medical Services Inc ,6/24/2021,50,Unrestricted Shared Services,Graduation Expense
J. F. Drake State CC & TC,10013941,Office Depot ,6/24/2021,103.85,Unrestricted Shared Services,Materials and Supplies - MS
J. F. Drake State CC & TC,10013943,Waste Management ,6/24/2021,1057.42,Unrestricted Shared Services,Waste Disposal - UC
J. F. Drake State CC & TC,10013944,Xerox Corporation ,6/24/2021,145.89,Unrestricted Shared Services,Operating Lease Payments
J. F. Drake State CC & TC,10013945,Assessment Technologies Institute LLC ,6/29/2021,45,Unrestricted Shared Services,Other - AP
J. F. Drake State CC & TC,10013946,Carney Rose,6/29/2021,277.74,Unrestricted Shared Services,Student 3rd Party Reimbursement-AR
J. F. Drake State CC & TC,10013947,Community Colleges of Appalachia Region ,6/29/2021,750,Unrestricted Shared Services,Memberships - PS
J. F. Drake State CC & TC,10013948,Dynamic Security Inc ,6/29/2021,2881.94,Unrestricted Shared Services,Other Contractual Services - PS
J. F. Drake State CC & TC,10013949,Hawthorne Deion,6/29/2021,70.51,Unrestricted Shared Services,Student 3rd Party Reimbursement-AR
J. F. Drake State CC & TC,10013950,In10sity Interactive LLC ,6/29/2021,299,Unrestricted Shared Services,Other Contractual Services - PS
J. F. Drake State CC & TC,10013951,M. Battle LLC ,6/29/2021,9882.42,Unrestricted Shared Services,Other Contractual Services - PS
J. F. Drake State CC & TC,10013952,Sims Patricia,6/29/2021,403.75,Unrestricted Shared Services,Other Travel Expenses - IS
J. F. Drake State CC & TC,10013953,Wagner Appraisal Company ,6/29/2021,700,Unrestricted Shared Services,Other Professional Fees - PS
J. F. Drake State CC & TC,10013954,Walker 360 Inc ,6/29/2021,439,Unrestricted Shared Services,Printing and Binding - OOS
J. F. Drake State CC & TC,10013966,Copeland Cleaners ,7/1/2021,212,Unrestricted Shared Services,Other Contractual Services - PS
J. F. Drake State CC & TC,10013967,International Women's Forum Alabama ,7/1/2021,500,Unrestricted Shared Services,Memberships - PS
J. F. Drake State CC & TC,10013968,OJs Photography ,7/1/2021,360,Unrestricted Shared Services,Other Professional Fees - PS
J. F. Drake State CC & TC,10013969,The Pitney Bowes Bank Inc ,7/1/2021,698.46,Unrestricted Shared Services,Short-Term Equipment Rentals - OOS
J. F. Drake State CC & TC,10013970,WEX Inc ,7/1/2021,114.21,Unrestricted Shared Services,Gasoline & Oil - Motor Veh - OOS
J. F. Drake State CC & TC,10013973,Alabama Media ,7/8/2021,335.1,Unrestricted Shared Services,Advertising & Promotions - OOS
J. F. Drake State CC & TC,10013974,Dynamic Security Inc ,7/8/2021,5791.86,Unrestricted Shared Services,Other Contractual Services - PS
J. F. Drake State CC & TC,10013975,Ecampus.com ,7/8/2021,33045.94,Unrestricted Shared Services,Bookstore - AP
J. F. Drake State CC & TC,10013976,Elliott Amanda,7/8/2021,600,Unrestricted Shared Services,Other Contractual Services - PS
J. F. Drake State CC & TC,10013977,Federal Express Corporation ,7/8/2021,7.92,Unrestricted Shared Services,Freight - OOS
J. F. Drake State CC & TC,10013978,Loomis ,7/8/2021,224.19,Unrestricted Shared Services,Other Contractual Services - PS
J. F. Drake State CC & TC,10013979,Lowe's ,7/8/2021,182.33,Unrestricted Shared Services,Maintenance & Repairs  - OOS
J. F. Drake State CC & TC,10013980,Lowe's Company ,7/8/2021,122.78,Unrestricted Shared Services,Materials and Supplies - MS
J. F. Drake State CC & TC,10013980,Lowe's Company ,7/8/2021,1175.86,Unrestricted Shared Services,Maintenance & Repairs  - OOS
J. F. Drake State CC & TC,10013981,Move Digital LLC ,7/8/2021,2000,Unrestricted Shared Services,Other Contractual Services - PS
J. F. Drake State CC & TC,10013982,Office Depot ,7/8/2021,144.21,Unrestricted Shared Services,Materials and Supplies - MS
J. F. Drake State CC & TC,10013984,Redline Striping ,7/8/2021,7194.2,Unrestricted Shared Services,Maintenance & Repairs  - OOS
J. F. Drake State CC & TC,10013985,Verizon Wireless ,7/8/2021,668.96,Unrestricted Shared Services,Internet - UC
J. F. Drake State CC & TC,10013986,Village of Promise ,7/8/2021,1000,Unrestricted Shared Services,Advertising & Promotions - OOS
J. F. Drake State CC & TC,10013987,Walker Rachel,7/8/2021,3500,Unrestricted Shared Services,Instructional Salaries(Temp/PT)-SW
J. F. Drake State CC & TC,10013988,WEX Inc ,7/8/2021,110.74,Unrestricted Shared Services,Gasoline & Oil - Motor Veh - OOS
J. F. Drake State CC & TC,10013989,4Imprint Inc ,7/15/2021,330.16,Unrestricted Shared Services,Advertising & Promotions - OOS
J. F. Drake State CC & TC,10013990,ACT Inc ,7/15/2021,29.93,Unrestricted Shared Services,Testing Expense
J. F. Drake State CC & TC,10013991,Alabama Media ,7/15/2021,77.7,Unrestricted Shared Services,Advertising & Promotions - OOS
J. F. Drake State CC & TC,10013992,Berney Office Solutions LLC ,7/15/2021,1109.75,Unrestricted Shared Services,Other Contractual Services - PS
J. F. Drake State CC & TC,10013993,Cad/cam Solutions Inc ,7/15/2021,100,Unrestricted Shared Services,Taxes & Licenses - OOS
J. F. Drake State CC & TC,10013994,Continental Service Group Inc ,7/15/2021,31.8,Unrestricted Shared Services,Debt Collection Expense - PS
J. F. Drake State CC & TC,10013995,Credentials Solutions LLC ,7/15/2021,35,Unrestricted Shared Services,Transcript Expense
J. F. Drake State CC & TC,10013996,Ecampus.com ,7/15/2021,3903.04,Unrestricted Shared Services,Bookstore - AP
J. F. Drake State CC & TC,10013997,Huntsville Rotary Club Foundation ,7/15/2021,1070,Unrestricted Shared Services,Memberships - PS
J. F. Drake State CC & TC,10013998,Huntsville Utilities ,7/15/2021,410.01,Unrestricted Shared Services,Gas & Heating Fuel - UC
J. F. Drake State CC & TC,10013998,Huntsville Utilities ,7/15/2021,1250.04,Unrestricted Shared Services,Water & Sewer - UC
J. F. Drake State CC & TC,10013998,Huntsville Utilities ,7/15/2021,21825.72,Unrestricted Shared Services,Electricity - UC
J. F. Drake State CC & TC,10013999,RP Media ,7/15/2021,17775,Unrestricted Shared Services,Advertising & Promotions - OOS
J. F. Drake State CC & TC,10014000,WideOpen West Inc ,7/15/2021,3024.11,Unrestricted Shared Services,Internet - UC
J. F. Drake State CC & TC,10014001,Alabama Lawnmaster Inc ,7/20/2021,3095,Unrestricted Shared Services,Other Contractual Services - PS
J. F. Drake State CC & TC,10014002,Dynamic Security Inc ,7/20/2021,2938.02,Unrestricted Shared Services,Other Contractual Services - PS
J. F. Drake State CC & TC,10014003,Ecampus.com ,7/20/2021,1259.25,Unrestricted Shared Services,Books (Non-Library)
J. F. Drake State CC & TC,10014004,Madison County Health Department ,7/20/2021,85,Unrestricted Shared Services,Taxes & Licenses - OOS
J. F. Drake State CC & TC,10014005,Northwest-Shoals Community College ,7/20/2021,18,Unrestricted Shared Services,Materials and Supplies - MS
J. F. Drake State CC & TC,10014006,The Solutions Team Inc ,7/20/2021,200,Unrestricted Shared Services,Other Contractual Services - PS
J. F. Drake State CC & TC,10014007,Waste Management ,7/20/2021,1057.42,Unrestricted Shared Services,Waste Disposal - UC
J. F. Drake State CC & TC,10014008,Farrell Corporation ,7/21/2021,2463.55,Unrestricted Shared Services,Materials and Supplies - MS
J. F. Drake State CC & TC,10014009,Federal Express Corporation ,7/21/2021,35.56,Unrestricted Shared Services,Freight - OOS
J. F. Drake State CC & TC,10014010,Berney Office Solutions LLC ,7/22/2021,1109.75,Unrestricted Shared Services,Other Contractual Services - PS
J. F. Drake State CC & TC,10014012,Ecampus.com ,7/22/2021,522.57,Unrestricted Shared Services,Books (Non-Library)
J. F. Drake State CC & TC,10014013,Pearson Vue ,7/22/2021,810,Unrestricted Shared Services,Testing Expense
J. F. Drake State CC & TC,10014014,Xerox Corporation ,7/22/2021,154.48,Unrestricted Shared Services,Operating Lease Payments
J. F. Drake State CC & TC,10014015,Berney Office Solutions LLC ,7/26/2021,10068.99,Unrestricted Shared Services,Other Contractual Services - PS
J. F. Drake State CC & TC,10014016,Regroup ,7/26/2021,7254,Unrestricted Shared Services,Other Contractual Services - PS
J. F. Drake State CC & TC,10014017,Safety Kleen Systems Inc ,7/26/2021,188.48,Unrestricted Shared Services,Waste Disposal - UC
J. F. Drake State CC & TC,10014018,United Parcel Service Inc ,7/26/2021,14.96,Unrestricted Shared Services,Freight - OOS
J. F. Drake State CC & TC,10014019,Wittichen Supply Company Inc. ,7/26/2021,820,Unrestricted Shared Services,Short-Term Equipment Rentals - OOS
J. F. Drake State CC & TC,10014020,Alabama Community College System Global Associaton ,7/29/2021,150,Unrestricted Shared Services,Memberships - PS
J. F. Drake State CC & TC,10014021,Cook's Pest Control ,7/29/2021,331,Unrestricted Shared Services,Other Contractual Services - PS
J. F. Drake State CC & TC,10014022,Cool Stuff by Austin ,7/29/2021,300,Unrestricted Shared Services,Other Contractual Services - PS
J. F. Drake State CC & TC,10014023,Dynamic Security Inc ,7/29/2021,5819.84,Unrestricted Shared Services,Other Contractual Services - PS
J. F. Drake State CC & TC,10014024,Federal Express Corporation ,7/29/2021,41.38,Unrestricted Shared Services,Freight - OOS
J. F. Drake State CC & TC,10014025,In10sity Interactive LLC ,7/29/2021,299,Unrestricted Shared Services,Other Contractual Services - PS
J. F. Drake State CC & TC,10014026,Redline Striping ,7/29/2021,7194.2,Unrestricted Shared Services,Maintenance & Repairs  - OOS
J. F. Drake State CC & TC,10014027,The College Board ,7/29/2021,1950,Unrestricted Shared Services,Testing Expense
J. F. Drake State CC & TC,10014028,WEX Inc ,7/29/2021,152.88,Unrestricted Shared Services,Gasoline & Oil - Motor Veh - OOS
J. F. Drake State CC & TC,10014029,WEX Inc ,7/29/2021,23.68,Unrestricted Shared Services,Gasoline & Oil - Motor Veh - OOS
J. F. Drake State CC & TC,10014040,Castle Branch Inc. ,8/2/2021,1187.5,Unrestricted Shared Services,Other - AP
J. F. Drake State CC & TC,10014041,HESI - ELSEVIER ,8/2/2021,715,Unrestricted Shared Services,Other - AP
J. F. Drake State CC & TC,10014042,Alabama Media ,8/5/2021,930.3,Unrestricted Shared Services,Advertising & Promotions - OOS
J. F. Drake State CC & TC,10014043,Brand Street LLC ,8/5/2021,802.77,Unrestricted Shared Services,Materials and Supplies - MS
J. F. Drake State CC & TC,10014044,Downtown Huntsville Inc ,8/5/2021,275,Unrestricted Shared Services,Advertising & Promotions - OOS
J. F. Drake State CC & TC,10014045,Farrell Corporation ,8/5/2021,159.3,Unrestricted Shared Services,Materials and Supplies - MS
J. F. Drake State CC & TC,10014046,Loomis ,8/5/2021,236.31,Unrestricted Shared Services,Other Contractual Services - PS
J. F. Drake State CC & TC,10014047,Lowe's Company ,8/5/2021,265.05,Unrestricted Shared Services,Materials and Supplies - MS
J. F. Drake State CC & TC,10014047,Lowe's Company ,8/5/2021,612.38,Unrestricted Shared Services,Maintenance & Repairs  - OOS
J. F. Drake State CC & TC,10014048,Move Digital LLC ,8/5/2021,2000,Unrestricted Shared Services,Other Contractual Services - PS
J. F. Drake State CC & TC,10014049,Verizon Wireless ,8/5/2021,668.82,Unrestricted Shared Services,Internet - UC
J. F. Drake State CC & TC,10014050,Walker 360 Inc ,8/5/2021,270.6,Unrestricted Shared Services,Printing and Binding - OOS
J. F. Drake State CC & TC,10014051,4Imprint Inc ,8/9/2021,295.59,Unrestricted Shared Services,Materials and Supplies - MS
J. F. Drake State CC & TC,10014052,CDW LLC ,8/9/2021,116.1,Unrestricted Shared Services,Materials and Supplies - MS
J. F. Drake State CC & TC,10014053,Charlie Foster's ,8/9/2021,316,Unrestricted Shared Services,Culinary Consumables
J. F. Drake State CC & TC,10014055,Office Depot ,8/9/2021,248.75,Unrestricted Shared Services,Materials and Supplies - MS
J. F. Drake State CC & TC,10014056,RP Media ,8/9/2021,23132.39,Unrestricted Shared Services,Advertising & Promotions - OOS
J. F. Drake State CC & TC,10014058,Alabama Lawnmaster Inc ,8/16/2021,3095,Unrestricted Shared Services,Other Contractual Services - PS
J. F. Drake State CC & TC,10014059,Credentials Solutions LLC ,8/16/2021,87.5,Unrestricted Shared Services,Transcript Expense
J. F. Drake State CC & TC,10014060,Currie Systems/Printing  Solutions ,8/16/2021,1055.7,Unrestricted Shared Services,Advertising & Promotions - OOS
J. F. Drake State CC & TC,10014061,Dynamic Security Inc ,8/16/2021,4700.64,Unrestricted Shared Services,Other Contractual Services - PS
J. F. Drake State CC & TC,10014062,EverMoore LLC ,8/16/2021,250,Unrestricted Shared Services,Other Professional Fees - PS
J. F. Drake State CC & TC,10014063,Huntsville Utilities ,8/16/2021,464.55,Unrestricted Shared Services,Gas & Heating Fuel - UC
J. F. Drake State CC & TC,10014063,Huntsville Utilities ,8/16/2021,1377.7,Unrestricted Shared Services,Water & Sewer - UC
J. F. Drake State CC & TC,10014063,Huntsville Utilities ,8/16/2021,25649.22,Unrestricted Shared Services,Electricity - UC
J. F. Drake State CC & TC,10014064,Office Depot ,8/16/2021,21.34,Unrestricted Shared Services,Materials and Supplies - MS
J. F. Drake State CC & TC,10014065,ACT Inc ,8/18/2021,367.59,Unrestricted Shared Services,Testing Expense
J. F. Drake State CC & TC,10014066,Alabama Community College System President's Association ,8/18/2021,300,Unrestricted Shared Services,Registration Fees- IS
J. F. Drake State CC & TC,10014067,Berney Office Solutions LLC ,8/18/2021,1109.75,Unrestricted Shared Services,Other Contractual Services - PS
J. F. Drake State CC & TC,10014068,The Solutions Team Inc ,8/18/2021,200,Unrestricted Shared Services,Other Contractual Services - PS
J. F. Drake State CC & TC,10014069,Walker 360 Inc ,8/18/2021,149.01,Unrestricted Shared Services,Printing and Binding - OOS
J. F. Drake State CC & TC,10014070,Waste Management ,8/18/2021,1057.42,Unrestricted Shared Services,Waste Disposal - UC
J. F. Drake State CC & TC,10014071,WideOpen West Inc ,8/18/2021,3083.72,Unrestricted Shared Services,Internet - UC
J. F. Drake State CC & TC,10014072,Assessment Technologies Institute LLC ,8/23/2021,25,Unrestricted Shared Services,Other - AP
J. F. Drake State CC & TC,10014073,Dynamic Security Inc ,8/23/2021,2784.01,Unrestricted Shared Services,Other Contractual Services - PS
J. F. Drake State CC & TC,10014074,In10sity Interactive LLC ,8/23/2021,299,Unrestricted Shared Services,Other Contractual Services - PS
J. F. Drake State CC & TC,10014075,Office Depot ,8/23/2021,79.84,Unrestricted Shared Services,Materials and Supplies - MS
J. F. Drake State CC & TC,10014076,Xerox Corporation ,8/23/2021,148.11,Unrestricted Shared Services,Operating Lease Payments
J. F. Drake State CC & TC,10014078,Cook's Pest Control ,8/26/2021,331,Unrestricted Shared Services,Other Contractual Services - PS
J. F. Drake State CC & TC,10014079,Dynamic Security Inc ,8/26/2021,2560.17,Unrestricted Shared Services,Other Contractual Services - PS
J. F. Drake State CC & TC,10014080,Pataky J,8/26/2021,994.37,Unrestricted Shared Services,Printing and Binding - OOS
J. F. Drake State CC & TC,10014081,Safety Kleen Systems Inc ,8/26/2021,610,Unrestricted Shared Services,Waste Disposal - UC
J. F. Drake State CC & TC,10014082,WEX Inc ,8/26/2021,84.44,Unrestricted Shared Services,Gasoline & Oil - Motor Veh - OOS
J. F. Drake State CC & TC,10014083,WEX Inc ,8/26/2021,54.98,Unrestricted Shared Services,Gasoline & Oil - Motor Veh - OOS
J. F. Drake State CC & TC,10014084,Castle Branch Inc. ,8/30/2021,32,Unrestricted Shared Services,Other - AP
J. F. Drake State CC & TC,10014085,HESI - ELSEVIER ,8/30/2021,920,Unrestricted Shared Services,Other - AP
J. F. Drake State CC & TC,10014096,Alabama Community College System ,9/3/2021,3695.3,Unrestricted Shared Services,Bond Reserve Fee Expense - OOS
J. F. Drake State CC & TC,10014097,Alabama Media ,9/3/2021,653.97,Unrestricted Shared Services,Advertising & Promotions - OOS
J. F. Drake State CC & TC,10014098,Castle Branch Inc. ,9/3/2021,104.75,Unrestricted Shared Services,Other - AP
J. F. Drake State CC & TC,10014099,Dynamic Security Inc ,9/3/2021,2350.32,Unrestricted Shared Services,Other Contractual Services - PS
J. F. Drake State CC & TC,10014100,Koorsen Fire & Security ,9/3/2021,1125,Unrestricted Shared Services,Maintenance & Repairs  - OOS
J. F. Drake State CC & TC,10014101,Loomis ,9/3/2021,236.31,Unrestricted Shared Services,Other Contractual Services - PS
J. F. Drake State CC & TC,10014102,Lowe's Company ,9/3/2021,159.15,Unrestricted Shared Services,Maintenance & Repairs  - OOS
J. F. Drake State CC & TC,10014102,Lowe's Company ,9/3/2021,262.19,Unrestricted Shared Services,Materials and Supplies - MS
J. F. Drake State CC & TC,10014103,Move Digital LLC ,9/3/2021,2000,Unrestricted Shared Services,Other Contractual Services - PS
J. F. Drake State CC & TC,10014104,Sam's Club ,9/3/2021,55.78,Unrestricted Shared Services,Culinary Consumables
J. F. Drake State CC & TC,10014104,Sam's Club ,9/3/2021,85.04,Unrestricted Shared Services,Materials and Supplies - MS
J. F. Drake State CC & TC,10014106,United Parcel Service Inc ,9/3/2021,7.49,Unrestricted Shared Services,Freight - OOS
J. F. Drake State CC & TC,10014107,Verizon Wireless ,9/3/2021,668.84,Unrestricted Shared Services,Internet - UC
J. F. Drake State CC & TC,10014108,Pearson Vue ,9/8/2021,70,Unrestricted Shared Services,Books (Non-Library)
J. F. Drake State CC & TC,10014109,4Imprint Inc ,9/9/2021,159.36,Unrestricted Shared Services,Advertising & Promotions - OOS
J. F. Drake State CC & TC,10014109,4Imprint Inc ,9/9/2021,470.79,Unrestricted Shared Services,Participant Costs-Other
J. F. Drake State CC & TC,10014110,Alabama Lawnmaster Inc ,9/9/2021,3095,Unrestricted Shared Services,Other Contractual Services - PS
J. F. Drake State CC & TC,10014111,Continental Service Group Inc ,9/9/2021,127.2,Unrestricted Shared Services,Debt Collection Expense - PS
J. F. Drake State CC & TC,10014112,Dynamic Security Inc ,9/9/2021,2770.02,Unrestricted Shared Services,Other Contractual Services - PS
J. F. Drake State CC & TC,10014113,Ecampus.com ,9/9/2021,70326.46,Unrestricted Shared Services,Bookstore - AP
J. F. Drake State CC & TC,10014114,Federal Express Corporation ,9/9/2021,43.65,Unrestricted Shared Services,Freight - OOS
J. F. Drake State CC & TC,10014115,United Rentals ,9/9/2021,1462.4,Unrestricted Shared Services,Short-Term Equipment Rentals - OOS
J. F. Drake State CC & TC,10014116,Walker 360 Inc ,9/9/2021,686.3,Unrestricted Shared Services,Printing and Binding - OOS
J. F. Drake State CC & TC,10014116,Walker 360 Inc ,9/9/2021,1812.06,Unrestricted Shared Services,Advertising & Promotions - OOS
J. F. Drake State CC & TC,10014117,Xerox Corporation ,9/9/2021,151.75,Unrestricted Shared Services,Operating Lease Payments
J. F. Drake State CC & TC,10014118,Accreditation Commission For Ed In Nursing Inc. (ACEN) ,9/13/2021,2875,Unrestricted Shared Services,Accreditation Expense - PS
J. F. Drake State CC & TC,10014119,ACT Inc ,9/13/2021,329.48,Unrestricted Shared Services,Testing Expense
J. F. Drake State CC & TC,10014120,Carney Rose,9/13/2021,150.62,Unrestricted Shared Services,Student 3rd Party Reimbursement-AR
J. F. Drake State CC & TC,10014121,Credentials Solutions LLC ,9/13/2021,52.5,Unrestricted Shared Services,Transcript Expense
J. F. Drake State CC & TC,10014122,Huntsville Utilities ,9/13/2021,335.12,Unrestricted Shared Services,Gas & Heating Fuel - UC
J. F. Drake State CC & TC,10014122,Huntsville Utilities ,9/13/2021,1354.01,Unrestricted Shared Services,Water & Sewer - UC
J. F. Drake State CC & TC,10014122,Huntsville Utilities ,9/13/2021,22928.83,Unrestricted Shared Services,Electricity - UC
J. F. Drake State CC & TC,10014123,State of Alabama ,9/13/2021,11535,Unrestricted Shared Services,Other Contractual Services - PS
J. F. Drake State CC & TC,10014124,WideOpen West Inc ,9/13/2021,3076.89,Unrestricted Shared Services,Internet - UC
J. F. Drake State CC & TC,10014130,Dynamic Security Inc ,9/15/2021,2938.02,Unrestricted Shared Services,Other Contractual Services - PS
J. F. Drake State CC & TC,10014131,Pearson Vue ,9/15/2021,405,Unrestricted Shared Services,Testing Expense
J. F. Drake State CC & TC,10014132,RP Media ,9/15/2021,14013.3,Unrestricted Shared Services,Advertising & Promotions - OOS
J. F. Drake State CC & TC,10014133,The Hendley Group ,9/15/2021,681.25,Other Auxiliary- Fund Raising,Other Contractual Services - PS
J. F. Drake State CC & TC,10014134,4Imprint Inc ,9/21/2021,1565.62,Unrestricted Shared Services,Advertising & Promotions - OOS
J. F. Drake State CC & TC,10014135,Accreditation Commission For Ed In Nursing Inc. (ACEN) ,9/21/2021,1000,Unrestricted Shared Services,Accreditation Expense - PS
J. F. Drake State CC & TC,10014136,Alabama Community College System ,9/21/2021,2939,Unrestricted Shared Services,Bond Reserve Fee Expense - OOS
J. F. Drake State CC & TC,10014137,Berney Office Solutions LLC ,9/21/2021,1109.75,Unrestricted Shared Services,Other Contractual Services - PS
J. F. Drake State CC & TC,10014138,Elliott Amanda,9/21/2021,1900,Unrestricted Shared Services,Other Contractual Services - PS
J. F. Drake State CC & TC,10014139,The Solutions Team Inc ,9/21/2021,200,Unrestricted Shared Services,Other Contractual Services - PS
J. F. Drake State CC & TC,10014140,Walker Rachel,9/21/2021,3500,Unrestricted Shared Services,Instructional Salaries(Temp/PT)-SW
J. F. Drake State CC & TC,10014151,Dynamic Security Inc ,9/23/2021,2909.92,Unrestricted Shared Services,Other Contractual Services - PS
J. F. Drake State CC & TC,10014152,Federal Express Corporation ,9/23/2021,39.14,Unrestricted Shared Services,Freight - OOS
J. F. Drake State CC & TC,10014153,State of Alabama ,9/23/2021,147234.49,Unrestricted Shared Services,Institutional Use - OOS
J. F. Drake State CC & TC,10014154,Walker 360 Inc ,9/23/2021,739.19,Unrestricted Shared Services,Printing and Binding - OOS
J. F. Drake State CC & TC,10014155,Assessment Technologies Institute LLC ,9/24/2021,10600,Unrestricted Shared Services,Other - AP
J. F. Drake State CC & TC,10014156,Castle Branch Inc. ,9/24/2021,205.5,Unrestricted Shared Services,Other - AP
J. F. Drake State CC & TC,10014157,Mankins John,9/24/2021,1206.4,Unrestricted Shared Services,Other Professional Fees - PS
J. F. Drake State CC & TC,10014158,Montague Katrina,9/24/2021,142.49,Unrestricted Shared Services,Student 3rd Party Reimbursement-AR
J. F. Drake State CC & TC,10014159,4Imprint Inc ,9/29/2021,1662.97,Unrestricted Shared Services,Advertising & Promotions - OOS
J. F. Drake State CC & TC,10014160,Cook's Pest Control ,9/29/2021,331,Unrestricted Shared Services,Other Contractual Services - PS
J. F. Drake State CC & TC,10014161,Federal Express Corporation ,9/29/2021,19.36,Unrestricted Shared Services,Freight - OOS
J. F. Drake State CC & TC,10014162,Sam's Club ,9/29/2021,100,Unrestricted Shared Services,Participant Costs-Stipends
J. F. Drake State CC & TC,10014163,WEX Inc ,9/29/2021,204.63,Unrestricted Shared Services,Gasoline & Oil - Motor Veh - OOS
J. F. Drake State CC & TC,10014164,WEX Inc ,9/29/2021,84.34,Unrestricted Shared Services,Gasoline & Oil - Motor Veh - OOS
J. F. Drake State CC & TC,30013119,Donohoo Chevrolet LLC ,10/2/2020,34996,Chancellor - Special Allocation,Transportation Equip $5K-$25K - CE
J. F. Drake State CC & TC,30013120,State of Alabama ,10/2/2020,48.5,Chancellor - Special Allocation,Taxes & Licenses - OOS
J. F. Drake State CC & TC,30013231,ACT Inc ,10/8/2020,450,AE-State Regular,Testing Expense
J. F. Drake State CC & TC,30013232,CDW LLC ,10/8/2020,255,Carl Perkins Career & Tech,Materials and Supplies - MS
J. F. Drake State CC & TC,30013232,CDW LLC ,10/8/2020,747.66,Cares Act - College Relief,Materials and Supplies - MS
J. F. Drake State CC & TC,30013233,Diversified Management Solution LLC ,10/8/2020,7500,Title III (Activity A Prog Admin),Other Contractual Services - PS
J. F. Drake State CC & TC,30013234,Ecampus.com ,10/8/2020,1425.6,Dual Enrollment Scholarships,Books (Non-Library)
J. F. Drake State CC & TC,30013235,KANS LLC ,10/8/2020,8000,Title III (Activity A Institution),Professional Development - PS
J. F. Drake State CC & TC,30013236,Lowe's ,10/8/2020,331.14,Chancellor - Special Allocation,Maintenance & Repairs  - OOS
J. F. Drake State CC & TC,30013237,Trav-Ad Signs ,10/8/2020,1550,Chancellor - Special Allocation,Other Non-Capital Costs
J. F. Drake State CC & TC,30013238,W W Grainger Inc ,10/8/2020,2320,Automotive Manufacturing WFD,Materials and Supplies - MS
J. F. Drake State CC & TC,30013239,CDW LLC ,10/12/2020,296,Carl Perkins Career & Tech,Service Contracts on Equipment -OOS
J. F. Drake State CC & TC,30013240,Mr Rooter Plumbing ,10/12/2020,376.2,Chancellor - Special Allocation,Maintenance & Repairs  - OOS
J. F. Drake State CC & TC,30013241,Stericycle Inc ,10/12/2020,85.95,Future Act (Activity 1),Waste Disposal - UC
J. F. Drake State CC & TC,30013247,Dykes FoodService Solutions Inc. ,10/15/2020,1100,Carl Perkins Career & Tech,Materials and Supplies - MS
J. F. Drake State CC & TC,30013249,Turner Brittney,10/19/2020,700,STEAM - FlexFactor,Other Contractual Services - PS
J. F. Drake State CC & TC,30013250,Bergantz Letitia,10/20/2020,200,Title III (Activity 1),Other Professional Fees - PS
J. F. Drake State CC & TC,30013251,Pocket Nurse Enterprises Inc. ,10/20/2020,253.82,Title III SAFRA (Activity 1),Materials and Supplies - MS
J. F. Drake State CC & TC,30013252,Uline Inc ,10/20/2020,227.95,Cares Act - College Relief,Materials and Supplies - MS
J. F. Drake State CC & TC,30013256,PEEHIP ,10/22/2020,800,Title III (Activity 5),Group Health Insurance - FB
J. F. Drake State CC & TC,30013258,Berney Office Solutions LLC ,10/28/2020,55.85,Future Act (Activity 1),Materials and Supplies - MS
J. F. Drake State CC & TC,30013259,CDW LLC ,10/28/2020,13497.84,Cares Act - HBCU,Materials and Supplies - MS
J. F. Drake State CC & TC,30013260,Xerox Corporation ,10/28/2020,205.04,Title III (Activity 1),Operating Lease Payments
J. F. Drake State CC & TC,30013260,Xerox Corporation ,10/28/2020,368.02,Title III (Activity 6),Operating Lease Payments
J. F. Drake State CC & TC,30013261,CDW LLC ,11/4/2020,252.78,Title III (Activity 4),Materials and Supplies - MS
J. F. Drake State CC & TC,30013261,CDW LLC ,11/4/2020,1116.64,Cares Act - College Relief,Materials and Supplies - MS
J. F. Drake State CC & TC,30013261,CDW LLC ,11/4/2020,12125.51,Cares Act - College Relief,Technology - non capitalized - MS
J. F. Drake State CC & TC,30013262,Limbaugh Toyota ,11/4/2020,28141.5,Chancellor - Special Allocation,Transportation Equip > $25 000 - CE
J. F. Drake State CC & TC,30013263,PODS Enterprises Inc ,11/4/2020,159,Future Act (Activity 1),Short-Term Equipment Rentals - OOS
J. F. Drake State CC & TC,30013264,ProQuest ,11/4/2020,6458.03,Title III (Activity 2),Subscriptions - OOS
J. F. Drake State CC & TC,30013265,Schindler Elevator Corporation ,11/4/2020,1382.19,Title III (Activity 3),Maintenance & Repairs  - OOS
J. F. Drake State CC & TC,30013266,State of Alabama ,11/4/2020,24.25,Chancellor - Special Allocation,Taxes & Licenses - OOS
J. F. Drake State CC & TC,30013267,Stericycle Inc ,11/4/2020,85.95,Future Act (Activity 1),Waste Disposal - UC
J. F. Drake State CC & TC,30013268,TouchNet Information Systems Inc ,11/4/2020,250,Title III (Activity 6),Taxes & Licenses - OOS
J. F. Drake State CC & TC,30013269,Vero Software Inc ,11/4/2020,355,Title III (Activity 1),Computer Software(non capital) - MS
J. F. Drake State CC & TC,30013271,ACT Inc ,11/12/2020,20,AE-State Regular 2XX0-2XX1,Testing Expense
J. F. Drake State CC & TC,30013272,CDW LLC ,11/12/2020,73.07,Title III (Activity 4),Materials and Supplies - MS
J. F. Drake State CC & TC,30013272,CDW LLC ,11/12/2020,1194.76,Cares Act - College Relief,Materials and Supplies - MS
J. F. Drake State CC & TC,30013273,PODS Enterprises Inc ,11/12/2020,159,Future Act (Activity 1),Short-Term Equipment Rentals - OOS
J. F. Drake State CC & TC,30013274,State of Alabama ,11/16/2020,9,ICI Equipment - Vizitech,Unearned Revenue - AL
J. F. Drake State CC & TC,30013274,State of Alabama ,11/16/2020,5728.2,Automotive Manufacturing WFD,Unearned Revenue - AL
J. F. Drake State CC & TC,30013276,ACCS Human Resources Management Association ,11/18/2020,250,Title III (Activity 6),Memberships - PS
J. F. Drake State CC & TC,30013277,CDW LLC ,11/18/2020,2319.24,Cares Act - College Relief,Materials and Supplies - MS
J. F. Drake State CC & TC,30013277,CDW LLC ,11/18/2020,12999,Cares Act - HBCU,Furniture and Equip $5K - $25K - CE
J. F. Drake State CC & TC,30013278,Krueger International Inc ,11/18/2020,5598.45,Cares Act - HBCU,Other Non-Capital Costs
J. F. Drake State CC & TC,30013278,Krueger International Inc ,11/18/2020,23207.45,Chancellor - Special Allocation,Furniture and Equip $5K - $25K - CE
J. F. Drake State CC & TC,30013278,Krueger International Inc ,11/18/2020,46342.25,Chancellor - Special Allocation,Furniture and Equip > $25K - CE
J. F. Drake State CC & TC,30013279,National Association of HBCU Title III Administrators ,11/18/2020,300,Title III (Activity A Prog Admin),Memberships - PS
J. F. Drake State CC & TC,30013280,Thomas Electric Inc ,11/18/2020,1857,Chancellor - Special Allocation,Other Contractual Services - PS
J. F. Drake State CC & TC,30013280,Thomas Electric Inc ,11/18/2020,4755,Title III (Activity 3),Other Contractual Services - PS
J. F. Drake State CC & TC,30013281,Trav-Ad Signs ,11/18/2020,1935.14,Cares Act - HBCU,Other Non-Capital Costs
J. F. Drake State CC & TC,30013283,Acro Service Corporation ,11/24/2020,1521,Cares Act - HBCU,Other Contractual Services - PS
J. F. Drake State CC & TC,30013284,Ecampus.com ,11/24/2020,2113.93,Dual Enrollment Scholarships,Books (Non-Library)
J. F. Drake State CC & TC,30013285,Huntsville Times ,11/24/2020,52.9,Title III (Activity 2),Subscriptions - OOS
J. F. Drake State CC & TC,30013286,Kingsbury Consulting Management ,11/24/2020,5472,Chancellor - Special Allocation,Other Professional Fees - PS
J. F. Drake State CC & TC,30013287,MSC Industrial Supply ,11/24/2020,140.72,Title III (Activity 1),Materials and Supplies - MS
J. F. Drake State CC & TC,30013288,Thomas Electric Inc ,11/24/2020,3187,Chancellor - Special Allocation,Maintenance & Repairs  - OOS
J. F. Drake State CC & TC,30013289,Nebraska Health Care Association ,12/1/2020,73.03,Future Act (Activity 1),Books (Non-Library)
J. F. Drake State CC & TC,30013290,Office Depot ,12/1/2020,108.33,Title III (Activity 6),Materials and Supplies - MS
J. F. Drake State CC & TC,30013291,Stericycle Inc ,12/1/2020,85.95,Future Act (Activity 1),Waste Disposal - UC
J. F. Drake State CC & TC,30013292,The Trim Shop ,12/1/2020,2300,Chancellor - Special Allocation,Other Contractual Services - PS
J. F. Drake State CC & TC,30013293,Turner Brittney,12/1/2020,3960,STEAM - FlexFactor,Other Contractual Services - PS
J. F. Drake State CC & TC,30013294,Xerox Corporation ,12/1/2020,203.3,Title III (Activity 1),Operating Lease Payments
J. F. Drake State CC & TC,30013294,Xerox Corporation ,12/1/2020,367.7,Title III (Activity 6),Operating Lease Payments
J. F. Drake State CC & TC,30013295,Acro Service Corporation ,12/4/2020,790.92,Cares Act - HBCU,Other Contractual Services - PS
J. F. Drake State CC & TC,30013296,Ecampus.com ,12/4/2020,183.83,Dual Enrollment Scholarships,Books (Non-Library)
J. F. Drake State CC & TC,30013297,Home Depot U.S.A. Inc ,12/4/2020,679.85,Cares Act - HBCU,Materials and Supplies - MS
J. F. Drake State CC & TC,30013297,Home Depot U.S.A. Inc ,12/4/2020,3029.5,Cares Act - HBCU,Equipment - non capitalized - MS
J. F. Drake State CC & TC,30013298,J.R. Enterprises ,12/4/2020,1587.64,Veterans Admin 2XX8-2XX9,Advertising & Promotions - OOS
J. F. Drake State CC & TC,30013299,Kingsbury Consulting Management ,12/4/2020,4428,Chancellor - Special Allocation,Other Professional Fees - PS
J. F. Drake State CC & TC,30013300,Office Depot ,12/4/2020,315.14,Title III (Activity 6),Materials and Supplies - MS
J. F. Drake State CC & TC,30013301,PODS Enterprises Inc ,12/4/2020,159,Future Act (Activity 1),Short-Term Equipment Rentals - OOS
J. F. Drake State CC & TC,30013302,Jackson Painting ,12/7/2020,400,Title III (Activity 3),Maintenance & Repairs  - OOS
J. F. Drake State CC & TC,30013305,AACC ,12/10/2020,2188,Title III (Activity 1),Memberships - PS
J. F. Drake State CC & TC,30013306,ACT Inc ,12/10/2020,126,AE-State Regular,Testing Expense
J. F. Drake State CC & TC,30013307,CDW LLC ,12/10/2020,-3325,Cares Act - College Relief,Materials and Supplies - MS
J. F. Drake State CC & TC,30013307,CDW LLC ,12/10/2020,7421.18,Cares Act - HBCU,Technology - non capitalized - MS
J. F. Drake State CC & TC,30013308,Economic Modeling LLC ,12/10/2020,6750,Title III (Activity 6),Other Contractual Services - PS
J. F. Drake State CC & TC,30013309,Esb Group Inc. The ,12/10/2020,39994,CARES Act - GEERF Education,Technology > $25K - CE
J. F. Drake State CC & TC,30013310,Harris Katrina,12/10/2020,23.75,Title III (Activity 6),Gasoline & Oil - Motor Veh - OOS
J. F. Drake State CC & TC,30013310,Harris Katrina,12/10/2020,300,Title III (Activity 6),Overnight (non tax per diem)- IS
J. F. Drake State CC & TC,30013311,SHI International Corp. ,12/10/2020,95094.18,CARES Act - GEERF Education,Art Museums and Collections - CE
J. F. Drake State CC & TC,30013312,WEX Inc ,12/10/2020,41.6,Title III (Activity 1),Gasoline & Oil - Motor Veh - OOS
J. F. Drake State CC & TC,30013313,Dell Marketing LP ,12/11/2020,2380,CARES Act - GEERF Education,Materials and Supplies - MS
J. F. Drake State CC & TC,30013313,Dell Marketing LP ,12/11/2020,92820,CARES Act - GEERF Education,Technology - non capitalized - MS
J. F. Drake State CC & TC,30013331,Acro Service Corporation ,12/16/2020,1115.4,Cares Act - HBCU,Other Contractual Services - PS
J. F. Drake State CC & TC,30013332,Krueger International Inc ,12/16/2020,31975.35,Cares Act - HBCU,Furniture and Equip $5K - $25K - CE
J. F. Drake State CC & TC,30013333,Nola Van Peursem Architects PC ,12/16/2020,8559.5,Chancellor - Special Allocation,Other Non-Capital Costs
J. F. Drake State CC & TC,30013333,Nola Van Peursem Architects PC ,12/16/2020,9619.26,Title III SAFRA (Activity 2),Engineering & Architectural Svc -PS
J. F. Drake State CC & TC,30013333,Nola Van Peursem Architects PC ,12/16/2020,30033.2,Chancellor - Special Allocation,Engineering & Architectural Svc -PS
J. F. Drake State CC & TC,30013333,Nola Van Peursem Architects PC ,12/16/2020,31731.62,Title III (Activity 3),Engineering & Architectural Svc -PS
J. F. Drake State CC & TC,30013334,Office Depot ,12/16/2020,224.27,Title III (Activity 1),Materials and Supplies - MS
J. F. Drake State CC & TC,30013335,Alabama Two-Year College Library Association ,12/17/2020,100,Title III (Activity 2),Memberships - PS
J. F. Drake State CC & TC,30013336,Office Depot ,12/17/2020,38.58,Title III (Activity 1),Materials and Supplies - MS
J. F. Drake State CC & TC,30013337,Ruffalo Noel Levitz LLC ,12/17/2020,3000,Title III (Activity 6),Taxes & Licenses - OOS
J. F. Drake State CC & TC,30013338,Stericycle Inc ,1/4/2021,85.95,Future Act (Activity 1),Waste Disposal - UC
J. F. Drake State CC & TC,30013339,ESCO Institute ,1/6/2021,2018,Cares Act - College Relief,Computer Software(non capital) - MS
J. F. Drake State CC & TC,30013340,PODS Enterprises Inc ,1/6/2021,159,Future Act (Activity 1),Short-Term Equipment Rentals - OOS
J. F. Drake State CC & TC,30013341,Quillin Concrete ,1/6/2021,2400,Chancellor - Special Allocation,Other Contractual Services - PS
J. F. Drake State CC & TC,30013342,Sally Beauty Supply ,1/6/2021,428.78,Title III (Activity 1),Materials and Supplies - MS
J. F. Drake State CC & TC,30013343,Turner Brittney,1/6/2021,300,STEAM - FlexFactor,Other Contractual Services - PS
J. F. Drake State CC & TC,30013344,Xerox Corporation ,1/6/2021,195.97,Title III (Activity 1),Operating Lease Payments
J. F. Drake State CC & TC,30013344,Xerox Corporation ,1/6/2021,397.79,Title III (Activity 6),Operating Lease Payments
J. F. Drake State CC & TC,30013345,Acro Service Corporation ,1/7/2021,1135.68,Cares Act - HBCU,Other Contractual Services - PS
J. F. Drake State CC & TC,30013346,Acro Service Corporation ,1/13/2021,202.8,Cares Act - HBCU,Other Contractual Services - PS
J. F. Drake State CC & TC,30013347,Schindler Elevator Corporation ,1/13/2021,1427.52,Title III (Activity 3),Maintenance & Repairs  - OOS
J. F. Drake State CC & TC,30013348,Valley Cabinet Refinishing ,1/13/2021,2122,Chancellor - Special Allocation,Other Contractual Services - PS
J. F. Drake State CC & TC,30013349,Alabama Department of Transportation ,1/14/2021,2569.81,Chancellor - Special Allocation,Other Non-Capital Costs
J. F. Drake State CC & TC,30013350,J F Drake State Community College & Technical College ,1/14/2021,15959.72,Dual Enrollment Scholarships,Scholarship and Waivers - SW
J. F. Drake State CC & TC,30013351,Driskill Joshua,1/20/2021,240,NASA Grant,Participant Costs-Stipends
J. F. Drake State CC & TC,30013352,Mason Jaiden,1/20/2021,240,NASA Grant,Participant Costs-Stipends
J. F. Drake State CC & TC,30013353,Acro Service Corporation ,1/21/2021,354.9,Cares Act - HBCU,Other Contractual Services - PS
J. F. Drake State CC & TC,30013354,Anthology Inc of NY ,1/21/2021,17429,Title III (Activity 6),Taxes & Licenses - OOS
J. F. Drake State CC & TC,30013355,Pinnacle Networx LLC ,1/21/2021,57000,Cares Act - HBCU,Other Contractual Services - PS
J. F. Drake State CC & TC,30013356,The Burmax Co. Inc. ,1/21/2021,474.16,Title III (Activity 1),Materials and Supplies - MS
J. F. Drake State CC & TC,30013357,Ynot Technology Inc. ,1/21/2021,3840,Cares Act - HBCU,Computer Software(non capital) - MS
J. F. Drake State CC & TC,30013358,ACCS Instructional Officers Association ,1/26/2021,300,Title III (Activity 1),Memberships - PS
J. F. Drake State CC & TC,30013359,Acro Service Corporation ,1/26/2021,344.76,Cares Act - HBCU,Other Contractual Services - PS
J. F. Drake State CC & TC,30013360,Bergantz Letitia,1/26/2021,200,Cares Act - College Relief,Other Professional Fees - PS
J. F. Drake State CC & TC,30013361,Home Depot U.S.A. Inc ,1/26/2021,322.92,Cares Act - HBCU,Materials and Supplies - MS
J. F. Drake State CC & TC,30013362,Home Depot U.S.A. Inc ,1/26/2021,2802.46,Cares Act - HBCU,Materials and Supplies - MS
J. F. Drake State CC & TC,30013363,Mr. Rootor ,1/26/2021,8900,Chancellor - Special Allocation,Maintenance & Repairs  - OOS
J. F. Drake State CC & TC,30013364,R & R Sports ,1/26/2021,1720.45,NASA Grant,Other Non-Capital Costs
J. F. Drake State CC & TC,30013365,Strickland Paper Company Inc ,1/26/2021,1086,Title III (Activity A Prog Admin),Materials and Supplies - MS
J. F. Drake State CC & TC,30013366,Valley Cabinet Refinishing ,1/26/2021,9329,Chancellor - Special Allocation,Other Contractual Services - PS
J. F. Drake State CC & TC,30013367,Williams Daniel,1/26/2021,2560,AE - Career Pathways,Other Contractual Services - PS
J. F. Drake State CC & TC,30013368,Xerox Corporation ,1/26/2021,192.01,Title III (Activity 1),Operating Lease Payments
J. F. Drake State CC & TC,30013368,Xerox Corporation ,1/26/2021,360.99,Title III (Activity 6),Operating Lease Payments
J. F. Drake State CC & TC,30013531,ACCS Financial Management Association ,1/28/2021,400,Title III (Activity 6),Registration Fees- IS
J. F. Drake State CC & TC,30013536,ACCS Financial Management Association ,2/2/2021,500,Title III (Activity 6),Memberships - PS
J. F. Drake State CC & TC,30013537,EBSCO Industries Inc ,2/2/2021,47059,Cares Act - College Relief,Computer Software(non capital) - MS
J. F. Drake State CC & TC,30013538,Home Depot U.S.A. Inc ,2/2/2021,1759.7,Cares Act - HBCU,Materials and Supplies - MS
J. F. Drake State CC & TC,30013539,MSC Industrial Supply ,2/2/2021,549,Special Pops Equipment MTT,Equipment - non capitalized - MS
J. F. Drake State CC & TC,30013540,PODS Enterprises Inc ,2/2/2021,159,Future Act (Activity 1),Short-Term Equipment Rentals - OOS
J. F. Drake State CC & TC,30013541,Sexton Welding Supply ,2/2/2021,1419.2,NASA Grant,Materials and Supplies - MS
J. F. Drake State CC & TC,30013542,Stericycle Inc ,2/2/2021,89.92,Future Act (Activity 1),Waste Disposal - UC
J. F. Drake State CC & TC,30013543,Trav-Ad Signs ,2/2/2021,3187.28,Cares Act - HBCU,Other Non-Capital Costs
J. F. Drake State CC & TC,30013544,Ecampus.com ,2/4/2021,403.64,Future Act (Activity 1),Books (Non-Library)
J. F. Drake State CC & TC,30013545,Pocket Nurse Enterprises Inc. ,2/4/2021,2105,Cares Act - HBCU,Materials and Supplies - MS
J. F. Drake State CC & TC,30013547,ACCS Human Resources Management Association ,2/9/2021,500,Title III (Activity 1),Registration Fees- IS
J. F. Drake State CC & TC,30013548,Home Depot U.S.A. Inc ,2/9/2021,3118.51,Cares Act - HBCU,Materials and Supplies - MS
J. F. Drake State CC & TC,30013549,Karma Management ,2/9/2021,690,Project Success Grant 2XX0-2XX1,Participant Costs-Stipends
J. F. Drake State CC & TC,30013550,MG Roofing Inc ,2/9/2021,10176.37,Title III (Activity 3),Construction in Progress - CE
J. F. Drake State CC & TC,30013551,Nola Van Peursem Architects PC ,2/9/2021,23054.66,Title III (Activity 3),Engineering & Architectural Svc -PS
J. F. Drake State CC & TC,30013552,Office Depot ,2/9/2021,182.63,Title III (Activity 1),Materials and Supplies - MS
J. F. Drake State CC & TC,30013553,Staples Business Advantage ,2/9/2021,325.13,Title III (Activity 3),Materials and Supplies - MS
J. F. Drake State CC & TC,30013554,The Burmax Co. Inc. ,2/9/2021,142.55,Title III (Activity 1),Materials and Supplies - MS
J. F. Drake State CC & TC,30013555,WEX Inc ,2/9/2021,229.36,NASA Grant,Gasoline & Oil - Motor Veh - OOS
J. F. Drake State CC & TC,30013556,ACT Inc ,2/11/2021,31.5,AE-State Regular 2XX0-2XX1,Testing Expense
J. F. Drake State CC & TC,30013557,Ecampus.com ,2/11/2021,4736.94,Dual Enrollment  Sch. 2XX0-2XX1,Books (Non-Library)
J. F. Drake State CC & TC,30013558,Graybar Electric ,2/11/2021,343.26,Title III (Activity 3),Maintenance & Repairs  - OOS
J. F. Drake State CC & TC,30013558,Graybar Electric ,2/11/2021,10118.13,Chancellor - Special Allocation,Materials and Supplies - MS
J. F. Drake State CC & TC,30013559,Jackson Painting ,2/11/2021,10500,Chancellor - Special Allocation,Other Contractual Services - PS
J. F. Drake State CC & TC,30013560,Kingsbury Consulting Management ,2/11/2021,3411,Chancellor - Special Allocation,Other Professional Fees - PS
J. F. Drake State CC & TC,30013569,Office Depot ,2/17/2021,77.65,Title III (Activity 6),Materials and Supplies - MS
J. F. Drake State CC & TC,30013569,Office Depot ,2/17/2021,149.99,Title III (Activity 1),Materials and Supplies - MS
J. F. Drake State CC & TC,30013570,The Webster Tree Company Inc. ,2/17/2021,5680,Chancellor - Special Allocation,Other Contractual Services - PS
J. F. Drake State CC & TC,30013571,Coots Harold,2/23/2021,203,NASA Grant,Other Travel Expenses - OS
J. F. Drake State CC & TC,30013572,Ecampus.com ,2/23/2021,663.92,Dual Enrollment  Sch. 2XX0-2XX1,Books (Non-Library)
J. F. Drake State CC & TC,30013573,Grissim Robert,2/23/2021,203,NASA Grant,Other Travel Expenses - OS
J. F. Drake State CC & TC,30013574,Phillips Corporation ,2/23/2021,10490,ARC Grant,Furniture and Equip $5K - $25K - CE
J. F. Drake State CC & TC,30013576,Acro Service Corporation ,2/25/2021,1328.34,Cares Act - HBCU,Other Contractual Services - PS
J. F. Drake State CC & TC,30013577,CDW LLC ,2/25/2021,10091.7,Cares Act - College Relief,Technology - non capitalized - MS
J. F. Drake State CC & TC,30013577,CDW LLC ,2/25/2021,10630,Cares Act - College Relief,Materials and Supplies - MS
J. F. Drake State CC & TC,30013578,Ellis John,2/25/2021,203,NASA Grant,Other Travel Expenses - OS
J. F. Drake State CC & TC,30013579,Home Depot U.S.A. Inc ,2/25/2021,448.52,Title III (Activity 3),Materials and Supplies - MS
J. F. Drake State CC & TC,30013579,Home Depot U.S.A. Inc ,2/25/2021,951.62,Cares Act - HBCU,Materials and Supplies - MS
J. F. Drake State CC & TC,30013580,Home Depot U.S.A. Inc ,2/25/2021,271.94,Cares Act - HBCU,Materials and Supplies - MS
J. F. Drake State CC & TC,30013581,Manufacturing Skill Standards Council ,2/25/2021,33570,MSSC ICI Certifications,Testing Expense
J. F. Drake State CC & TC,30013582,Office Depot ,2/25/2021,451.93,Title III (Activity 6),Materials and Supplies - MS
J. F. Drake State CC & TC,30013583,Stanley Steemer of Northern Alabama LLC ,2/25/2021,6088.57,Cares Act - College Relief,Other Contractual Services - PS
J. F. Drake State CC & TC,30013584,Zatowski Jeanette,2/25/2021,203,NASA Grant,Other Travel Expenses - OS
J. F. Drake State CC & TC,30013586,AACRAO ,3/4/2021,524,Title III (Activity 5),Memberships - PS
J. F. Drake State CC & TC,30013587,American Library Association ,3/4/2021,425,Title III (Activity 2),Memberships - PS
J. F. Drake State CC & TC,30013588,Ballard Kent,3/4/2021,150,Title III (Activity 1),Other Travel Expenses - IS
J. F. Drake State CC & TC,30013589,CDW LLC ,3/4/2021,1393.2,Cares Act - College Relief,Materials and Supplies - MS
J. F. Drake State CC & TC,30013590,Decatur Container Sales & Rental ,3/4/2021,3000,NASA Grant,Equipment - non capitalized - MS
J. F. Drake State CC & TC,30013591,Ecampus.com ,3/4/2021,61.75,Dual Enrollment  Sch. 2XX0-2XX1,Books (Non-Library)
J. F. Drake State CC & TC,30013592,Holston Gases Inc ,3/4/2021,876.82,Title III (Activity 1),Materials and Supplies - MS
J. F. Drake State CC & TC,30013593,Home Depot U.S.A. Inc ,3/4/2021,9867.85,Chancellor - Special Allocation,Materials and Supplies - MS
J. F. Drake State CC & TC,30013595,Modern Think ,3/4/2021,490,Title III (Activity 6),Other Contractual Services - PS
J. F. Drake State CC & TC,30013596,Phillips Corporation ,3/4/2021,166858,ARC Grant,Furniture and Equip $5K - $25K - CE
J. F. Drake State CC & TC,30013597,Stericycle Inc ,3/4/2021,89.92,Future Act (Activity 1),Waste Disposal - UC
J. F. Drake State CC & TC,30013598,Trav-Ad Signs ,3/4/2021,1454.04,Cares Act - HBCU,Materials and Supplies - MS
J. F. Drake State CC & TC,30013599,WEX Inc ,3/4/2021,56.43,Title III (Activity 1),Gasoline & Oil - Motor Veh - OOS
J. F. Drake State CC & TC,30013600,Lowe's ,3/5/2021,1016.59,Title III (Activity 1),Equipment - non capitalized - MS
J. F. Drake State CC & TC,30013600,Lowe's ,3/5/2021,2910.19,STEAM - FlexFactor,Materials and Supplies - MS
J. F. Drake State CC & TC,30013601,Acro Service Corporation ,3/11/2021,588.12,Cares Act - HBCU,Other Contractual Services - PS
J. F. Drake State CC & TC,30013602,Alexander Akeem,3/11/2021,58,Title III (Activity 6),Other Travel Expenses - IS
J. F. Drake State CC & TC,30013603,Grissim Robert,3/11/2021,150,Title III (Activity 1),Other Travel Expenses - IS
J. F. Drake State CC & TC,30013604,Harris Katrina,3/11/2021,455.91,Title III (Activity 6),Other Travel Expenses - IS
J. F. Drake State CC & TC,30013605,Learning Labs Inc ,3/11/2021,3600,Title III (Activity 1),Computer Software(non capital) - MS
J. F. Drake State CC & TC,30013606,PODS Enterprises Inc ,3/11/2021,159,Future Act (Activity 1),Short-Term Equipment Rentals - OOS
J. F. Drake State CC & TC,30013607,Showalter Darlene,3/11/2021,750,Title III (Activity 1),Other Professional Fees - PS
J. F. Drake State CC & TC,30013608,Trav-Ad Signs ,3/11/2021,3067.28,Cares Act - HBCU,Other Non-Capital Costs
J. F. Drake State CC & TC,30013609,Xerox Corporation ,3/11/2021,191.43,Title III (Activity 1),Operating Lease Payments
J. F. Drake State CC & TC,30013609,Xerox Corporation ,3/11/2021,361.29,Title III (Activity 6),Operating Lease Payments
J. F. Drake State CC & TC,30013615,Cengage Learning Inc. ,3/18/2021,1800,STEAM - FlexFactor,Materials and Supplies - MS
J. F. Drake State CC & TC,30013616,Electrical Concepts ,3/18/2021,850,Cares Act - HBCU,Maintenance & Repairs  - OOS
J. F. Drake State CC & TC,30013617,EMW Construction Inc ,3/18/2021,17146.45,Title III SAFRA (Activity 2),Construction in Progress - CE
J. F. Drake State CC & TC,30013617,EMW Construction Inc ,3/18/2021,17432.5,Chancellor - Special Allocation,Building Alterations - CE
J. F. Drake State CC & TC,30013618,Garner Marcus,3/18/2021,4930,Chancellor - Special Allocation,Other Contractual Services - PS
J. F. Drake State CC & TC,30013619,Huntsville Times ,3/18/2021,46.36,Title III (Activity 2),Subscriptions - OOS
J. F. Drake State CC & TC,30013620,Kingsbury Consulting Management ,3/18/2021,3906,Chancellor - Special Allocation,Other Professional Fees - PS
J. F. Drake State CC & TC,30013621,Staples Business Advantage ,3/18/2021,87.33,Title III (Activity 1),Materials and Supplies - MS
J. F. Drake State CC & TC,30013622,Acro Service Corporation ,3/23/2021,1297.92,Cares Act - HBCU,Other Contractual Services - PS
J. F. Drake State CC & TC,30013623,CDW LLC ,3/23/2021,12999,Cares Act - HBCU,Technology $5K to $25K - CE
J. F. Drake State CC & TC,30013624,Ecampus.com ,3/23/2021,1990,Cares Act - College Relief,Computer Software(non capital) - MS
J. F. Drake State CC & TC,30013625,MSC Industrial Supply ,3/23/2021,31.5,STEAM - FlexFactor,Materials and Supplies - MS
J. F. Drake State CC & TC,30013626,Office Depot ,3/23/2021,163.59,Title III (Activity 1),Materials and Supplies - MS
J. F. Drake State CC & TC,30013627,Pocket Nurse Enterprises Inc. ,3/23/2021,133.14,Future Act (Activity 1),Materials and Supplies - MS
J. F. Drake State CC & TC,30013628,The Burmax Co. Inc. ,3/23/2021,24.11,Title III (Activity 1),Materials and Supplies - MS
J. F. Drake State CC & TC,30013629,Xerox Corporation ,3/23/2021,195.63,Title III (Activity 1),Operating Lease Payments
J. F. Drake State CC & TC,30013629,Xerox Corporation ,3/23/2021,359.83,Title III (Activity 6),Operating Lease Payments
J. F. Drake State CC & TC,30014165,ACCS Human Resources Management Association ,3/30/2021,125,Title III (Activity 6),Registration Fees- IS
J. F. Drake State CC & TC,30014166,ACT Inc ,3/30/2021,105,AE-State Regular,Testing Expense
J. F. Drake State CC & TC,30014167,Pinnacle Networx LLC ,3/30/2021,131670,Cares Act - HBCU,Other Contractual Services - PS
J. F. Drake State CC & TC,30014168,Pocket Nurse Enterprises Inc. ,3/30/2021,6020.4,Cares Act - College Relief,Materials and Supplies - MS
J. F. Drake State CC & TC,30014169,WEX Inc ,3/30/2021,26.88,Title III (Activity 6),Gasoline & Oil - Motor Veh - OOS
J. F. Drake State CC & TC,30014170,Acro Service Corporation ,4/7/2021,456.3,Cares Act - HBCU,Other Contractual Services - PS
J. F. Drake State CC & TC,30014171,Bergantz Letitia,4/7/2021,1300,Cares Act - College Relief,Other Professional Fees - PS
J. F. Drake State CC & TC,30014172,Ecampus.com ,4/7/2021,230.88,Future Act (Activity 1),Books (Non-Library)
J. F. Drake State CC & TC,30014172,Ecampus.com ,4/7/2021,4333.02,Dual Enrollment  Sch. 2XX0-2XX1,Books (Non-Library)
J. F. Drake State CC & TC,30014173,Kingsbury Consulting Management ,4/7/2021,2772,Chancellor - Special Allocation,Other Professional Fees - PS
J. F. Drake State CC & TC,30014174,MSC Industrial Supply ,4/7/2021,711.25,CRRSAA - HEERF II Institutional,Materials and Supplies - MS
J. F. Drake State CC & TC,30014174,MSC Industrial Supply ,4/7/2021,31890,CRRSAA - HEERF II Institutional,Furniture and Equip $5K - $25K - CE
J. F. Drake State CC & TC,30014175,OCELOT ,4/7/2021,4200,Title III (Activity 5),Subscriptions - OOS
J. F. Drake State CC & TC,30014176,Office Depot ,4/7/2021,8.46,Title III (Activity 6),Materials and Supplies - MS
J. F. Drake State CC & TC,30014176,Office Depot ,4/7/2021,40.58,Title III (Activity 1),Materials and Supplies - MS
J. F. Drake State CC & TC,30014176,Office Depot ,4/7/2021,103.75,Title III (Activity 5),Materials and Supplies - MS
J. F. Drake State CC & TC,30014177,PODS Enterprises Inc ,4/7/2021,159,Future Act (Activity 1),Short-Term Equipment Rentals - OOS
J. F. Drake State CC & TC,30014178,Pryor Learning Solutions ,4/7/2021,1194,Title III (Activity 6),Professional Development - PS
J. F. Drake State CC & TC,30014179,Schindler Elevator Corporation ,4/7/2021,1427.52,Title III (Activity 3),Maintenance & Repairs  - OOS
J. F. Drake State CC & TC,30014180,Stericycle Inc ,4/7/2021,89.92,Future Act (Activity 1),Waste Disposal - UC
J. F. Drake State CC & TC,30014181,Turner Brittney,4/7/2021,1720,UAH/ADAMC Consortium,Other Contractual Services - PS
J. F. Drake State CC & TC,30014182,Alabama Flag & Banner Inc ,4/8/2021,2624.8,Chancellor - Special Allocation,Service Contracts on Equipment -OOS
J. F. Drake State CC & TC,30014182,Alabama Flag & Banner Inc ,4/8/2021,6287,Chancellor - Special Allocation,Other Non-Capital Costs
J. F. Drake State CC & TC,30014183,Acro Service Corporation ,4/13/2021,973.44,Cares Act - HBCU,Other Contractual Services - PS
J. F. Drake State CC & TC,30014184,ACT Inc ,4/13/2021,63,AE-State Regular,Testing Expense
J. F. Drake State CC & TC,30014185,Office Depot ,4/13/2021,52.97,Title III (Activity 6),Materials and Supplies - MS
J. F. Drake State CC & TC,30014185,Office Depot ,4/13/2021,165.89,Title III (Activity 5),Materials and Supplies - MS
J. F. Drake State CC & TC,30014188,CDW LLC ,4/20/2021,16093,Carl Perkins Career & Tech X0-X1,Technology - non capitalized - MS
J. F. Drake State CC & TC,30014189,Ecampus.com ,4/20/2021,131.72,Title III (Activity 2),Books - CE
J. F. Drake State CC & TC,30014189,Ecampus.com ,4/20/2021,1913.75,WIOA 2XX0-2XX1,Books (Non-Library)
J. F. Drake State CC & TC,30014190,Jackson Painting ,4/20/2021,4700,Chancellor - Special Allocation,Maintenance & Repairs  - OOS
J. F. Drake State CC & TC,30014191,Office Depot ,4/20/2021,442.59,Title III (Activity 6),Materials and Supplies - MS
J. F. Drake State CC & TC,30014192,Pinnacle Networx LLC ,4/20/2021,3270,CRRSAA - HBCU and Strengthening II,Other Contractual Services - PS
J. F. Drake State CC & TC,30014193,Werle Enterprises LLC ,4/20/2021,799,Title III (Activity 6),Service Contracts on Equipment -OOS
J. F. Drake State CC & TC,30014195,Acro Service Corporation ,4/22/2021,659.1,Cares Act - HBCU,Other Contractual Services - PS
J. F. Drake State CC & TC,30014196,Dunlap Contracting Inc ,4/22/2021,20472.5,Title III (Activity 3),Construction in Progress - CE
J. F. Drake State CC & TC,30014197,Ecampus.com ,4/22/2021,475.2,Dual Enrollment Scholarships,Books (Non-Library)
J. F. Drake State CC & TC,30014197,Ecampus.com ,4/22/2021,110266.77,Cares Act - College Relief,Computer Software(non capital) - MS
J. F. Drake State CC & TC,30014198,EMW Construction Inc ,4/22/2021,25926.45,Title III SAFRA (Activity 2),Construction in Progress - CE
J. F. Drake State CC & TC,30014198,EMW Construction Inc ,4/22/2021,41985.25,Chancellor - Special Allocation,Building Alterations - CE
J. F. Drake State CC & TC,30014199,MSC Industrial Supply ,4/22/2021,22770.75,CRRSAA - HEERF II Institutional,Furniture and Equip $5K - $25K - CE
J. F. Drake State CC & TC,30014200,Pinnacle Networx LLC ,4/22/2021,27107.44,Cares Act - HBCU,Taxes & Licenses - OOS
J. F. Drake State CC & TC,30014200,Pinnacle Networx LLC ,4/22/2021,105081.76,Cares Act - HBCU,Technology $5K to $25K - CE
J. F. Drake State CC & TC,30014200,Pinnacle Networx LLC ,4/22/2021,193998.96,Cares Act - HBCU,Other Contractual Services - PS
J. F. Drake State CC & TC,30014202,Acro Service Corporation ,4/29/2021,669.24,Cares Act - HBCU,Other Contractual Services - PS
J. F. Drake State CC & TC,30014203,Alabama Lawnmaster Inc ,4/29/2021,3800,Chancellor - Special Allocation,Other Contractual Services - PS
J. F. Drake State CC & TC,30014204,Chance Katie,4/29/2021,588.56,Title III (Activity 6),Other Travel Expenses - IS
J. F. Drake State CC & TC,30014205,Harris Katrina,4/29/2021,300,Title III (Activity 6),Overnight (non tax per diem)- IS
J. F. Drake State CC & TC,30014206,Xerox Corporation ,4/29/2021,253.52,Title III (Activity 1),Operating Lease Payments
J. F. Drake State CC & TC,30014206,Xerox Corporation ,4/29/2021,362.85,Title III (Activity 6),Operating Lease Payments
J. F. Drake State CC & TC,30014207,Rocket City Construction Inc. ,5/3/2021,7150,Chancellor - Special Allocation,Other Contractual Services - PS
J. F. Drake State CC & TC,30014208,AACUBO ,5/5/2021,700,Title III (Activity 6),Registration Fees- IS
J. F. Drake State CC & TC,30014209,AACUBO ,5/5/2021,500,Title III (Activity 6),Memberships - PS
J. F. Drake State CC & TC,30014210,ACCS Deans of Student Affairs Association ,5/5/2021,275,Title III (Activity 5),Memberships - PS
J. F. Drake State CC & TC,30014211,Association of American Colleges and Universities AAC&U ,5/5/2021,512.5,Title III (Activity 1),Memberships - PS
J. F. Drake State CC & TC,30014212,CDW LLC ,5/5/2021,6916.14,CRRSAA - HBCU and Strengthening II,Other Non-Capital Costs
J. F. Drake State CC & TC,30014212,CDW LLC ,5/5/2021,32387,Carl Perkins Career & Tech X0-X1,Technology - non capitalized - MS
J. F. Drake State CC & TC,30014213,Economic Modeling LLC ,5/5/2021,6750,Title III (Activity 6),Other Contractual Services - PS
J. F. Drake State CC & TC,30014214,Garner Marcus,5/5/2021,1950,Chancellor - Special Allocation,Other Contractual Services - PS
J. F. Drake State CC & TC,30014215,Kingsbury Consulting Management ,5/5/2021,5328,Chancellor - Special Allocation,Other Professional Fees - PS
J. F. Drake State CC & TC,30014216,MSC Industrial Supply ,5/5/2021,458.18,CRRSAA - HEERF II Institutional,Materials and Supplies - MS
J. F. Drake State CC & TC,30014217,National Assoc Of Student Financial Aid Admin ,5/5/2021,882,Title III (Activity 5),Memberships - PS
J. F. Drake State CC & TC,30014218,Office Depot ,5/5/2021,79.94,Title III (Activity 1),Materials and Supplies - MS
J. F. Drake State CC & TC,30014219,PeopleReady Inc ,5/5/2021,332.35,Chancellor - Special Allocation,Other Contractual Services - PS
J. F. Drake State CC & TC,30014220,PODS Enterprises Inc ,5/5/2021,159,Future Act (Activity 1),Short-Term Equipment Rentals - OOS
J. F. Drake State CC & TC,30014221,Stericycle Inc ,5/5/2021,89.92,Future Act (Activity 1),Waste Disposal - UC
J. F. Drake State CC & TC,30014222,Thomas Electric Inc ,5/5/2021,715,Title III (Activity 3),Maintenance & Repairs  - OOS
J. F. Drake State CC & TC,30014223,Trav-Ad Signs ,5/5/2021,2082.28,Chancellor - Special Allocation,Maintenance & Repairs  - OOS
J. F. Drake State CC & TC,30014224,Turner Brittney,5/5/2021,2320,UAH/ADAMC Consortium,Other Contractual Services - PS
J. F. Drake State CC & TC,30014226,ACCS Deans of Student Affairs Association ,5/11/2021,175,Title III (Activity 5),Registration Fees- IS
J. F. Drake State CC & TC,30014227,Acro Service Corporation ,5/11/2021,547.56,Cares Act - HBCU,Other Contractual Services - PS
J. F. Drake State CC & TC,30014228,Bergantz Letitia,5/11/2021,100,Cares Act - College Relief,Other Professional Fees - PS
J. F. Drake State CC & TC,30014229,CDW LLC ,5/11/2021,4158,CRRSAA - HBCU and Strengthening II,Equipment - non capitalized - MS
J. F. Drake State CC & TC,30014230,Dunlap Contracting Inc ,5/11/2021,15865,Title III (Activity 3),Construction in Progress - CE
J. F. Drake State CC & TC,30014231,GoEngineer Inc ,5/11/2021,3495,Carl Perkins Career & Tech X0-X1,Professional Development - PS
J. F. Drake State CC & TC,30014232,North Alabama Homebuilding Academy ,5/11/2021,4652,STEAM - FlexFactor,Other Professional Fees - PS
J. F. Drake State CC & TC,30014233,Office Depot ,5/11/2021,3391.6,SPIN-UP 2XX7-2XX8,Materials and Supplies - MS
J. F. Drake State CC & TC,30014234,Sams Donna,5/11/2021,699.6,Title III (Activity 1),Other Travel Expenses - OS
J. F. Drake State CC & TC,30014235,Acro Service Corporation ,5/18/2021,365.04,Cares Act - HBCU,Other Contractual Services - PS
J. F. Drake State CC & TC,30014236,Airgas Inc ,5/18/2021,90,Title III (Activity 1),Other Contractual Services - PS
J. F. Drake State CC & TC,30014237,CDW LLC ,5/18/2021,3.35,Cares Act - HBCU,Materials and Supplies - MS
J. F. Drake State CC & TC,30014237,CDW LLC ,5/18/2021,46.79,Cares Act - HBCU,Computer Software(non capital) - MS
J. F. Drake State CC & TC,30014238,Koorsen Fire & Security ,5/18/2021,970,Title III (Activity 3),Maintenance & Repairs  - OOS
J. F. Drake State CC & TC,30014239,ACT Inc ,5/20/2021,115.5,AE-State Regular 2XX0-2XX1,Testing Expense
J. F. Drake State CC & TC,30014240,Decatur Container Sales & Rental ,5/20/2021,2755,NASA Grant,Equipment - non capitalized - MS
J. F. Drake State CC & TC,30014241,Ecampus.com ,5/20/2021,387.2,Dual Enrollment  Sch. 2XX0-2XX1,Books (Non-Library)
J. F. Drake State CC & TC,30014242,Facility and Safety Association (ACCSFSA) ,5/20/2021,250,Title III (Activity 3),Memberships - PS
J. F. Drake State CC & TC,30014243,Garner Marcus,5/20/2021,4200,Chancellor - Special Allocation,Other Contractual Services - PS
J. F. Drake State CC & TC,30014244,Home Depot U.S.A. Inc ,5/20/2021,10451.61,CRRSAA - HBCU and Strengthening II,Equipment - non capitalized - MS
J. F. Drake State CC & TC,30014245,Pinnacle Networx LLC ,5/20/2021,3867,CRRSAA - HBCU and Strengthening II,Other Contractual Services - PS
J. F. Drake State CC & TC,30014247,CamInstructor Inc. ,6/1/2021,1500,CRRSAA - HEERF II Institutional,Computer Software(non capital) - MS
J. F. Drake State CC & TC,30014248,EBSCO Industries Inc ,6/1/2021,6505,Title III (Activity 2),Subscriptions - OOS
J. F. Drake State CC & TC,30014249,Ecampus.com ,6/1/2021,1559.71,Dual Enrollment Scholarships,Scholarship and Waivers - SW
J. F. Drake State CC & TC,30014250,EMW Construction Inc ,6/1/2021,875,Cares Act - HBCU,Other Contractual Services - PS
J. F. Drake State CC & TC,30014250,EMW Construction Inc ,6/1/2021,6895,Chancellor - Special Allocation,Maintenance & Repairs  - OOS
J. F. Drake State CC & TC,30014251,Home Depot U.S.A. Inc ,6/1/2021,3609.91,WIOA 2XX0-2XX1,Equipment - non capitalized - MS
J. F. Drake State CC & TC,30014252,Home Depot U.S.A. Inc ,6/1/2021,-66.24,Cares Act - HBCU,Materials and Supplies - MS
J. F. Drake State CC & TC,30014252,Home Depot U.S.A. Inc ,6/1/2021,156.36,WIOA 2XX0-2XX1,Materials and Supplies - MS
J. F. Drake State CC & TC,30014253,Home Depot U.S.A. Inc ,6/1/2021,449.64,WIOA 2XX0-2XX1,Materials and Supplies - MS
J. F. Drake State CC & TC,30014254,Office Depot ,6/1/2021,547.36,Title III (Activity 6),Materials and Supplies - MS
J. F. Drake State CC & TC,30014255,Stericycle Inc ,6/1/2021,89.92,Future Act (Activity 1),Waste Disposal - UC
J. F. Drake State CC & TC,30014256,WEX Inc ,6/1/2021,48.13,Title III (Activity 6),Gasoline & Oil - Motor Veh - OOS
J. F. Drake State CC & TC,30014257,Xerox Corporation ,6/1/2021,193.3,Title III (Activity 1),Operating Lease Payments
J. F. Drake State CC & TC,30014257,Xerox Corporation ,6/1/2021,351.58,Title III (Activity 6),Operating Lease Payments
J. F. Drake State CC & TC,30014258,Ecampus.com ,6/3/2021,303.2,Dual Enrollment Scholarships,Scholarship and Waivers - SW
J. F. Drake State CC & TC,30014259,Home Depot U.S.A. Inc ,6/3/2021,2676.31,WIOA 2XX0-2XX1,Materials and Supplies - MS
J. F. Drake State CC & TC,30014259,Home Depot U.S.A. Inc ,6/3/2021,3565,WIOA 2XX0-2XX1,Equipment - non capitalized - MS
J. F. Drake State CC & TC,30014260,Home Depot U.S.A. Inc ,6/3/2021,293.2,WIOA 2XX0-2XX1,Equipment - non capitalized - MS
J. F. Drake State CC & TC,30014261,Home Depot U.S.A. Inc ,6/3/2021,3616.89,WIOA 2XX0-2XX1,Equipment - non capitalized - MS
J. F. Drake State CC & TC,30014261,Home Depot U.S.A. Inc ,6/3/2021,4006.62,WIOA 2XX0-2XX1,Materials and Supplies - MS
J. F. Drake State CC & TC,30014262,Home Depot U.S.A. Inc ,6/3/2021,311.46,WIOA 2XX0-2XX1,Materials and Supplies - MS
J. F. Drake State CC & TC,30014263,Jackson Painting ,6/3/2021,1200,Title III (Activity 3),Maintenance & Repairs  - OOS
J. F. Drake State CC & TC,30014264,Learning Labs Inc ,6/3/2021,1512,Title III (Activity 1),Materials and Supplies - MS
J. F. Drake State CC & TC,30014265,Lowe's ,6/3/2021,1085.25,WIOA 2XX0-2XX1,Materials and Supplies - MS
J. F. Drake State CC & TC,30014266,NurseTim Inc. ,6/3/2021,599,Future Act (Activity 1),Subscriptions - OOS
J. F. Drake State CC & TC,30014267,Office Depot ,6/3/2021,16.34,Title III (Activity 1),Materials and Supplies - MS
J. F. Drake State CC & TC,30014267,Office Depot ,6/3/2021,17.13,Title III (Activity 6),Materials and Supplies - MS
J. F. Drake State CC & TC,30014268,Parkway Scrubs Inc ,6/3/2021,269.88,Dual Enrollment Scholarships,Scholarship and Waivers - SW
J. F. Drake State CC & TC,30014269,PODS Enterprises Inc ,6/3/2021,159,Future Act (Activity 1),Short-Term Equipment Rentals - OOS
J. F. Drake State CC & TC,30014270,Sam's Club ,6/3/2021,138.84,SPIN-UP 2XX7-2XX8,Materials and Supplies - MS
J. F. Drake State CC & TC,30014271,Turner Brittney,6/3/2021,2200,UAH/ADAMC Consortium,Other Contractual Services - PS
J. F. Drake State CC & TC,30014272,Ecampus.com ,6/8/2021,166.07,Dual Enrollment Scholarships,Scholarship and Waivers - SW
J. F. Drake State CC & TC,30014273,Environmental Systems Corp. of Huntsville ,6/8/2021,16317,Chancellor - Special Allocation,Other Non-Capital Costs
J. F. Drake State CC & TC,30014274,Holston Gases Inc ,6/8/2021,250,Title III (Activity 1),Materials and Supplies - MS
J. F. Drake State CC & TC,30014275,Home Depot U.S.A. Inc ,6/8/2021,366.36,WIOA 2XX0-2XX1,Materials and Supplies - MS
J. F. Drake State CC & TC,30014276,Redstone Federal Credit Union ,6/8/2021,1000,Title III (Activity 6),Other Contractual Services - PS
J. F. Drake State CC & TC,30014277,KME Consulting Group ,6/11/2021,1623.06,Title III (Activity 6),Other Professional Fees - PS
J. F. Drake State CC & TC,30014383,ACT Inc ,6/15/2021,105,AE-State Regular 2XX0-2XX1,Testing Expense
J. F. Drake State CC & TC,30014384,CDW LLC ,6/15/2021,29.86,Cares Act - HBCU,Materials and Supplies - MS
J. F. Drake State CC & TC,30014384,CDW LLC ,6/15/2021,416.49,Cares Act - HBCU,Computer Software(non capital) - MS
J. F. Drake State CC & TC,30014385,Continental Service Group Inc ,6/15/2021,4984.85,CRRSAA - HBCU and Strengthening II,Debt Collection Expense - PS
J. F. Drake State CC & TC,30014386,Dunlap Contracting Inc ,6/15/2021,17100,Title III (Activity 3),Construction in Progress - CE
J. F. Drake State CC & TC,30014387,Ecampus.com ,6/15/2021,725.16,Dual Enrollment Scholarships,Scholarship and Waivers - SW
J. F. Drake State CC & TC,30014387,Ecampus.com ,6/15/2021,4739.48,WIOA 2XX0-2XX1,Books (Non-Library)
J. F. Drake State CC & TC,30014388,EMW Construction Inc ,6/15/2021,68847.25,Chancellor - Special Allocation,Building Alterations - CE
J. F. Drake State CC & TC,30014389,Home Depot U.S.A. Inc ,6/15/2021,173.04,WIOA 2XX0-2XX1,Materials and Supplies - MS
J. F. Drake State CC & TC,30014389,Home Depot U.S.A. Inc ,6/15/2021,241.86,WIOA 2XX0-2XX1,Equipment - non capitalized - MS
J. F. Drake State CC & TC,30014389,Home Depot U.S.A. Inc ,6/15/2021,28722.9,CRRSAA - HBCU and Strengthening II,Other Non-Capital Costs
J. F. Drake State CC & TC,30014390,Interior Elements LLC ,6/15/2021,37094.22,Chancellor - Special Allocation,Equipment - non capitalized - MS
J. F. Drake State CC & TC,30014390,Interior Elements LLC ,6/15/2021,54243.91,Chancellor - Special Allocation,Furniture and Equip $5K - $25K - CE
J. F. Drake State CC & TC,30014391,Office Depot ,6/15/2021,1143.39,WIOA 2XX0-2XX1,Materials and Supplies - MS
J. F. Drake State CC & TC,30014392,Rocket City Construction Inc. ,6/15/2021,49739,CRRSAA - HBCU and Strengthening II,Other Contractual Services - PS
J. F. Drake State CC & TC,30014393,AACRAO ,6/17/2021,532,Title III (Activity 5),Memberships - PS
J. F. Drake State CC & TC,30014394,Ecampus.com ,6/17/2021,381.31,Dual Enrollment Scholarships,Scholarship and Waivers - SW
J. F. Drake State CC & TC,30014395,Huntsville Tractor & Equipment Inc ,6/17/2021,15431.5,Chancellor - Special Allocation,Furniture and Equip $5K - $25K - CE
J. F. Drake State CC & TC,30014396,AL Assoc of Collegiate Registrars & Adm Officers ,6/17/2021,100,Title III (Activity 5),Memberships - PS
J. F. Drake State CC & TC,30014397,Strickland Paper Company Inc ,6/17/2021,1086,Title III (Activity A Prog Admin),Materials and Supplies - MS
J. F. Drake State CC & TC,30014398,The Burmax Co. Inc. ,6/17/2021,566.69,Title III (Activity 1),Materials and Supplies - MS
J. F. Drake State CC & TC,30014709,Alabama Association for Public Continuing & Adult Education ,6/24/2021,2050,AE-Fed Summer Conf 2XX0-2XX1,Other Travel Expenses - IS
J. F. Drake State CC & TC,30014710,All Phase Electric Supply Company ,6/24/2021,538.86,CRRSAA - HBCU and Strengthening II,Materials and Supplies - MS
J. F. Drake State CC & TC,30014711,Bell Angela,6/24/2021,142,Title III (Activity 5),Other Travel Expenses - IS
J. F. Drake State CC & TC,30014712,Ecampus.com ,6/24/2021,71.2,WIOA 2XX0-2XX1,Books (Non-Library)
J. F. Drake State CC & TC,30014713,Home Depot U.S.A. Inc ,6/24/2021,120.93,WIOA 2XX0-2XX1,Equipment - non capitalized - MS
J. F. Drake State CC & TC,30014714,Jackson Painting ,6/24/2021,1700,Future Act (Activity 1),Maintenance & Repairs  - OOS
J. F. Drake State CC & TC,30014715,Kingsbury Consulting Management ,6/24/2021,1602,Chancellor - Special Allocation,Other Professional Fees - PS
J. F. Drake State CC & TC,30014716,Office Depot ,6/24/2021,215.35,Title III (Activity 5),Materials and Supplies - MS
J. F. Drake State CC & TC,30014717,Predator Software Inc. ,6/24/2021,2945,STEAM - FlexFactor,Computer Software(non capital) - MS
J. F. Drake State CC & TC,30014718,Xerox Corporation ,6/24/2021,192.11,Title III (Activity 1),Operating Lease Payments
J. F. Drake State CC & TC,30014718,Xerox Corporation ,6/24/2021,369.27,Title III (Activity 6),Operating Lease Payments
J. F. Drake State CC & TC,30014719,Alabama Community College Association ,6/29/2021,1000,Title III (Activity 1),Memberships - PS
J. F. Drake State CC & TC,30014720,Alexander Akeem,6/29/2021,136.5,Title III (Activity 6),Other Travel Expenses - IS
J. F. Drake State CC & TC,30014721,BadgePass Inc ,6/29/2021,8019.94,CRRSAA - HBCU and Strengthening II,Equipment - non capitalized - MS
J. F. Drake State CC & TC,30014722,Harris Katrina,6/29/2021,136.5,Title III (Activity 6),Other Travel Expenses - IS
J. F. Drake State CC & TC,30014723,Home Depot U.S.A. Inc ,6/29/2021,72.1,WIOA 2XX0-2XX1,Materials and Supplies - MS
J. F. Drake State CC & TC,30014724,Interior Elements LLC ,6/29/2021,19122.8,Chancellor - Special Allocation,Equipment - non capitalized - MS
J. F. Drake State CC & TC,30014725,Office Depot ,6/29/2021,19.56,Title III (Activity 5),Materials and Supplies - MS
J. F. Drake State CC & TC,30014726,The Webster Tree Company Inc. ,6/29/2021,4800,Chancellor - Special Allocation,Other Contractual Services - PS
J. F. Drake State CC & TC,30014727,Bergantz Letitia,7/1/2021,100,Cares Act - College Relief,Other Professional Fees - PS
J. F. Drake State CC & TC,30014728,Home Depot U.S.A. Inc ,7/1/2021,1770.29,WIOA 2XX0-2XX1,Materials and Supplies - MS
J. F. Drake State CC & TC,30014729,Koorsen Fire & Security ,7/1/2021,664.61,Title III (Activity 3),Maintenance & Repairs  - OOS
J. F. Drake State CC & TC,30014730,SACRAO ,7/1/2021,100,Title III (Activity 5),Memberships - PS
J. F. Drake State CC & TC,30014731,Schindler Elevator Corporation ,7/1/2021,1427.52,Title III (Activity 3),Maintenance & Repairs  - OOS
J. F. Drake State CC & TC,30014732,Stericycle Inc ,7/1/2021,89.92,Future Act (Activity 1),Waste Disposal - UC
J. F. Drake State CC & TC,30014733,Turner Brittney,7/1/2021,2640,UAH/ADAMC Consortium,Other Contractual Services - PS
J. F. Drake State CC & TC,30014736,Dunlap Contracting Inc ,7/8/2021,18667.5,Title III (Activity 3),Construction in Progress - CE
J. F. Drake State CC & TC,30014737,EBSCO Industries Inc ,7/8/2021,29058.67,Title III (Activity 2),Subscriptions - OOS
J. F. Drake State CC & TC,30014738,EMW Construction Inc ,7/8/2021,36638.94,Title III SAFRA (Activity 2),Construction in Progress - CE
J. F. Drake State CC & TC,30014738,EMW Construction Inc ,7/8/2021,36965,Chancellor - Special Allocation,Building Alterations - CE
J. F. Drake State CC & TC,30014739,Golden Years Ice Cream Van LLC ,7/8/2021,252,Project Success Grant 2XX8-2XX9,Culinary Consumables
J. F. Drake State CC & TC,30014740,Holston Gases Inc ,7/8/2021,501.12,Title III (Activity 1),Materials and Supplies - MS
J. F. Drake State CC & TC,30014741,Koorsen Fire & Security ,7/8/2021,830,Title III (Activity 3),Maintenance & Repairs  - OOS
J. F. Drake State CC & TC,30014742,Learning Labs Inc ,7/8/2021,14990,Carl Perkins Career & Tech X0-X1,Technology $5K to $25K - CE
J. F. Drake State CC & TC,30014743,Office Depot ,7/8/2021,35.7,Title III (Activity 6),Materials and Supplies - MS
J. F. Drake State CC & TC,30014744,PODS Enterprises Inc ,7/8/2021,159,Future Act (Activity 1),Short-Term Equipment Rentals - OOS
J. F. Drake State CC & TC,30014745,Trav-Ad Signs ,7/8/2021,155453.28,Chancellor - Special Allocation,Improvements - Other - CE
J. F. Drake State CC & TC,30014746,WEX Inc ,7/8/2021,109.55,Title III (Activity 6),Gasoline & Oil - Motor Veh - OOS
J. F. Drake State CC & TC,30014746,WEX Inc ,7/8/2021,169.88,Title III (Activity 5),Other Travel Expenses - IS
J. F. Drake State CC & TC,30014747,Balch Jr Victor,7/9/2021,544,SPIN-UP 2XX7-2XX8,Participant Costs-Stipends
J. F. Drake State CC & TC,30014748,Ballard Jackson,7/9/2021,544,SPIN-UP 2XX7-2XX8,Participant Costs-Stipends
J. F. Drake State CC & TC,30014749,Birdsong Seth,7/9/2021,544,SPIN-UP 2XX7-2XX8,Participant Costs-Stipends
J. F. Drake State CC & TC,30014750,Bynum Kendrick,7/9/2021,544,SPIN-UP 2XX7-2XX8,Participant Costs-Stipends
J. F. Drake State CC & TC,30014751,Dorning Ethan,7/9/2021,544,SPIN-UP 2XX7-2XX8,Participant Costs-Stipends
J. F. Drake State CC & TC,30014752,Ernst Leandra,7/9/2021,544,SPIN-UP 2XX7-2XX8,Participant Costs-Stipends
J. F. Drake State CC & TC,30014753,Finley Daemon,7/9/2021,544,SPIN-UP 2XX7-2XX8,Participant Costs-Stipends
J. F. Drake State CC & TC,30014754,Forde-Clark Michael,7/9/2021,544,SPIN-UP 2XX7-2XX8,Participant Costs-Stipends
J. F. Drake State CC & TC,30014755,Ledlow Joshua,7/9/2021,544,SPIN-UP 2XX7-2XX8,Participant Costs-Stipends
J. F. Drake State CC & TC,30014756,Long Skylar,7/9/2021,544,SPIN-UP 2XX7-2XX8,Participant Costs-Stipends
J. F. Drake State CC & TC,30014757,Longino Jaelyn,7/9/2021,544,SPIN-UP 2XX7-2XX8,Participant Costs-Stipends
J. F. Drake State CC & TC,30014758,McIntosh Andrew,7/9/2021,544,SPIN-UP 2XX7-2XX8,Participant Costs-Stipends
J. F. Drake State CC & TC,30014759,Tucker Anna,7/9/2021,544,SPIN-UP 2XX7-2XX8,Participant Costs-Stipends
J. F. Drake State CC & TC,30014760,Valmir Jaleesa,7/9/2021,544,SPIN-UP 2XX7-2XX8,Participant Costs-Stipends
J. F. Drake State CC & TC,30014761,Ware Sam,7/9/2021,544,SPIN-UP 2XX7-2XX8,Participant Costs-Stipends
J. F. Drake State CC & TC,30014762,Wolverton Mercedes,7/9/2021,544,SPIN-UP 2XX7-2XX8,Participant Costs-Stipends
J. F. Drake State CC & TC,30014763,Wright Tanner,7/9/2021,544,SPIN-UP 2XX7-2XX8,Participant Costs-Stipends
J. F. Drake State CC & TC,30014764,Defelice Trevon,7/14/2021,360,NASA Grant,Participant Costs-Stipends
J. F. Drake State CC & TC,30014765,Green Joseph,7/14/2021,360,NASA Grant,Participant Costs-Stipends
J. F. Drake State CC & TC,30014766,ACT Inc ,7/15/2021,53.58,AE-State Regular 2XX0-2XX1,Testing Expense
J. F. Drake State CC & TC,30014767,Bevel Joseph,7/15/2021,500,Title III (Activity 1),Other Travel Expenses - IS
J. F. Drake State CC & TC,30014768,CDW LLC ,7/15/2021,70.12,Title III (Activity 6),Materials and Supplies - MS
J. F. Drake State CC & TC,30014769,Continental Service Group Inc ,7/15/2021,68.2,CRRSAA - HBCU and Strengthening II,Debt Collection Expense - PS
J. F. Drake State CC & TC,30014770,Hair Queen Beauty LLC ,7/15/2021,278,Dual Enrollment Scholarships,Scholarship and Waivers - SW
J. F. Drake State CC & TC,30014771,Huntsville Tractor & Equipment Inc ,7/15/2021,11519,CRRSAA - HBCU and Strengthening II,Furniture and Equip $5K - $25K - CE
J. F. Drake State CC & TC,30014772,National College Testing Association Inc ,7/15/2021,300,Title III (Activity 5),Memberships - PS
J. F. Drake State CC & TC,30014773,Rafferty Kory,7/15/2021,500,Title III (Activity 1),Other Travel Expenses - IS
J. F. Drake State CC & TC,30014774,Redstone Federal Credit Union ,7/15/2021,850,Title III (Activity 6),Other Contractual Services - PS
J. F. Drake State CC & TC,30014775,Sexton Welding Supply ,7/15/2021,685.65,NASA Grant,Materials and Supplies - MS
J. F. Drake State CC & TC,30014776,Staples Business Advantage ,7/15/2021,31.84,Title III (Activity 1),Materials and Supplies - MS
J. F. Drake State CC & TC,30014776,Staples Business Advantage ,7/15/2021,1182.79,WIOA 2XX0-2XX1,Materials and Supplies - MS
J. F. Drake State CC & TC,30014777,Thomas Trinity,7/15/2021,544,SPIN-UP 2XX7-2XX8,Participant Costs-Stipends
J. F. Drake State CC & TC,30014780,American Welding Society ,7/20/2021,264,Title III (Activity 1),Memberships - PS
J. F. Drake State CC & TC,30014781,Lyrasis ,7/20/2021,730,Title III (Activity 2),Memberships - PS
J. F. Drake State CC & TC,30014782,Black Data Processing Associates Huntsville Chapter ,7/22/2021,2400,SPIN-UP 2XX7-2XX8,Other Professional Fees - PS
J. F. Drake State CC & TC,30014783,Carl Zeiss Industrial Metrology LLC ,7/22/2021,50275.59,ETF - Appropriations Earmarks,Furniture and Equip > $25K - CE
J. F. Drake State CC & TC,30014784,Ecampus.com ,7/22/2021,157.95,Dual Enrollment Scholarships,Scholarship and Waivers - SW
J. F. Drake State CC & TC,30014785,Xerox Corporation ,7/22/2021,191.03,Title III (Activity 1),Operating Lease Payments
J. F. Drake State CC & TC,30014785,Xerox Corporation ,7/22/2021,395.63,Title III (Activity 6),Operating Lease Payments
J. F. Drake State CC & TC,30014787,Ecampus.com ,7/26/2021,640.05,Dual Enrollment Scholarships,Scholarship and Waivers - SW
J. F. Drake State CC & TC,30014788,Home Depot U.S.A. Inc ,7/26/2021,420.5,Title III (Activity 1),Materials and Supplies - MS
J. F. Drake State CC & TC,30014789,Librarica LLC ,7/26/2021,1956.08,Title III (Activity 2),Subscriptions - OOS
J. F. Drake State CC & TC,30014790,Mr Rooter Plumbing ,7/26/2021,14600,Chancellor - Special Allocation,Maintenance & Repairs  - OOS
J. F. Drake State CC & TC,30014791,4Imprint Inc ,7/29/2021,379,NASA Grant,Materials and Supplies - MS
J. F. Drake State CC & TC,30014792,Conditioned Air Solutions LLC ,7/29/2021,19000,Chancellor - Special Allocation,Other Contractual Services - PS
J. F. Drake State CC & TC,30014793,Currie Systems/Printing  Solutions ,7/29/2021,751.69,NASA Grant,Other Non-Capital Costs
J. F. Drake State CC & TC,30014794,Office Depot ,7/29/2021,58.24,Title III (Activity 5),Materials and Supplies - MS
J. F. Drake State CC & TC,30014795,Thomas Electric Inc ,7/29/2021,6088,Chancellor - Special Allocation,Other Contractual Services - PS
J. F. Drake State CC & TC,30014796,WEX Inc ,7/29/2021,32.71,Title III (Activity 1),Other Travel Expenses - IS
J. F. Drake State CC & TC,30014796,WEX Inc ,7/29/2021,49.52,Title III (Activity 1),Gasoline & Oil - Motor Veh - OOS
J. F. Drake State CC & TC,30014796,WEX Inc ,7/29/2021,184.51,NASA Grant,Other Travel Expenses - OS
J. F. Drake State CC & TC,30014797,Brustein & Manasevit PLLC ,8/2/2021,1130,Title III (Activity A Prog Admin),Materials and Supplies - MS
J. F. Drake State CC & TC,30014798,Ecampus.com ,8/2/2021,186.9,WIOA 2XX0-2XX1,Books (Non-Library)
J. F. Drake State CC & TC,30014799,Home Depot U.S.A. Inc ,8/2/2021,3004.99,STEAM - FlexFactor,Equipment - non capitalized - MS
J. F. Drake State CC & TC,30014800,Office Depot ,8/2/2021,2551.7,AE-Federal Regular 2XX0-2XX1,Materials and Supplies - MS
J. F. Drake State CC & TC,30014801,PODS Enterprises Inc ,8/2/2021,159,Future Act (Activity 1),Short-Term Equipment Rentals - OOS
J. F. Drake State CC & TC,30014802,Stericycle Inc ,8/2/2021,89.92,Future Act (Activity 1),Waste Disposal - UC
J. F. Drake State CC & TC,30014803,Turner Brittney,8/2/2021,1940,UAH/ADAMC Consortium,Other Contractual Services - PS
J. F. Drake State CC & TC,30014804,H.W. Wilson Co ,8/5/2021,175.5,Title III (Activity 2),Subscriptions - OOS
J. F. Drake State CC & TC,30014805,Hardiman Remediation Services Inc. ,8/5/2021,3400,Title III (Activity 3),Engineering & Architectural Svc -PS
J. F. Drake State CC & TC,30014805,Hardiman Remediation Services Inc. ,8/5/2021,10200,Title III SAFRA (Activity 2),Engineering & Architectural Svc -PS
J. F. Drake State CC & TC,30014805,Hardiman Remediation Services Inc. ,8/5/2021,11800,Chancellor - Special Allocation,Engineering & Architectural Svc -PS
J. F. Drake State CC & TC,30014806,Huntsville Times ,8/5/2021,46.36,Title III (Activity 2),Subscriptions - OOS
J. F. Drake State CC & TC,30014807,Pinnacle Networx LLC ,8/5/2021,1519.65,CRRSAA - HBCU and Strengthening II,Taxes & Licenses - OOS
J. F. Drake State CC & TC,30014807,Pinnacle Networx LLC ,8/5/2021,40232.21,Cares Act - HBCU,Technology > $25K - CE
J. F. Drake State CC & TC,30014808,RJ Young Company ,8/5/2021,2546.43,Cares Act - College Relief,Materials and Supplies - MS
J. F. Drake State CC & TC,30014808,RJ Young Company ,8/5/2021,19875,Cares Act - College Relief,Equipment - non capitalized - MS
J. F. Drake State CC & TC,30014808,RJ Young Company ,8/5/2021,35733.15,Cares Act - College Relief,Technology - non capitalized - MS
J. F. Drake State CC & TC,30014808,RJ Young Company ,8/5/2021,207149.6,Cares Act - College Relief,Technology $5K to $25K - CE
J. F. Drake State CC & TC,30014809,Alexander Akeem,8/9/2021,170,Title III (Activity 6),Other Travel Expenses - IS
J. F. Drake State CC & TC,30014810,Bergantz Letitia,8/9/2021,100,Cares Act - College Relief,Other Professional Fees - PS
J. F. Drake State CC & TC,30014811,Harbin Glenn,8/9/2021,170,Title III (Activity 4),Other Travel Expenses - IS
J. F. Drake State CC & TC,30014812,Home Depot U.S.A. Inc ,8/9/2021,72.96,WIOA 2XX0-2XX1,Materials and Supplies - MS
J. F. Drake State CC & TC,30014812,Home Depot U.S.A. Inc ,8/9/2021,73815,CRRSAA - HBCU and Strengthening II,Equipment - non capitalized - MS
J. F. Drake State CC & TC,30014813,Literacy Minnesota ,8/9/2021,1200,AE-Federal Regular 2XX0-2XX1,Taxes & Licenses - OOS
J. F. Drake State CC & TC,30014814,Office Depot ,8/9/2021,513.27,NASA Grant,Materials and Supplies - MS
J. F. Drake State CC & TC,30014815,The Burmax Co. Inc. ,8/9/2021,423.06,Title III (Activity 1),Materials and Supplies - MS
J. F. Drake State CC & TC,30014817,Fury Lilia,8/16/2021,375.63,AE-Fed Summer Conf 2XX0-2XX1,Other Travel Expenses - IS
J. F. Drake State CC & TC,30014818,Office Depot ,8/16/2021,1121.24,Title III (Activity 5),Materials and Supplies - MS
J. F. Drake State CC & TC,30014818,Office Depot ,8/16/2021,1625.21,AE-Federal Regular 2XX0-2XX1,Materials and Supplies - MS
J. F. Drake State CC & TC,30014819,Woodall Tawson,8/16/2021,544,SPIN-UP 2XX7-2XX8,Participant Costs-Stipends
J. F. Drake State CC & TC,30014845,ACT Inc ,8/18/2021,53.52,AE-State Regular 2XX0-2XX1,Testing Expense
J. F. Drake State CC & TC,30014846,Ellis John,8/18/2021,335.5,NASA Grant,Other Travel Expenses - OS
J. F. Drake State CC & TC,30014847,EMW Construction Inc ,8/18/2021,12235,Chancellor - Special Allocation,Building Alterations - CE
J. F. Drake State CC & TC,30014847,EMW Construction Inc ,8/18/2021,68700.68,Title III SAFRA (Activity 2),Construction in Progress - CE
J. F. Drake State CC & TC,30014848,Grissim Robert,8/18/2021,335.5,NASA Grant,Other Travel Expenses - OS
J. F. Drake State CC & TC,30014849,Huntsville Tractor & Equipment Inc ,8/18/2021,13948.72,CRRSAA - HBCU and Strengthening II,Furniture and Equip $5K - $25K - CE
J. F. Drake State CC & TC,30014850,Master Wholesale Inc. ,8/18/2021,13499.99,NASA Grant,Furniture and Equip $5K - $25K - CE
J. F. Drake State CC & TC,30014851,Office Depot ,8/18/2021,519.09,Future Act (Activity 1),Materials and Supplies - MS
J. F. Drake State CC & TC,30014852,Price Renea,8/18/2021,375.63,AE-Fed Summer Conf 2XX0-2XX1,Other Travel Expenses - IS
J. F. Drake State CC & TC,30014853,RJ Young Company ,8/18/2021,84353.63,CRRSAA - HBCU and Strengthening II,Technology > $25K - CE
J. F. Drake State CC & TC,30014854,Watermark Insights LLC ,8/18/2021,5775,Title III (Activity 6),Computer Software(non capital) - MS
J. F. Drake State CC & TC,30014855,Demco Software ,8/23/2021,647.3,Title III (Activity 2),Subscriptions - OOS
J. F. Drake State CC & TC,30014856,Hand Arendall Harrison Sale LLC ,8/23/2021,1889.92,Title III (Activity 1),Professional Development - PS
J. F. Drake State CC & TC,30014857,Howard Technology Solutions ,8/23/2021,12250,CRRSAA - HBCU and Strengthening II,Computer Software(non capital) - MS
J. F. Drake State CC & TC,30014858,Kingsbury Consulting Management ,8/23/2021,2124,Chancellor - Special Allocation,Other Professional Fees - PS
J. F. Drake State CC & TC,30014859,Next Gen Web Solutions ,8/23/2021,7500,Cares Act - HBCU,Computer Software(non capital) - MS
J. F. Drake State CC & TC,30014860,Office Depot ,8/23/2021,184.39,Title III (Activity 6),Materials and Supplies - MS
J. F. Drake State CC & TC,30014860,Office Depot ,8/23/2021,212.38,Title III (Activity 5),Materials and Supplies - MS
J. F. Drake State CC & TC,30014860,Office Depot ,8/23/2021,625.66,NASA Grant,Materials and Supplies - MS
J. F. Drake State CC & TC,30014861,Southern Controls ,8/23/2021,7200,ETF - Appropriations Earmarks,Computer Software(non capital) - MS
J. F. Drake State CC & TC,30014861,Southern Controls ,8/23/2021,7200,Spcl Pops Ind Training 2XX0-2XX1,Computer Software(non capital) - MS
J. F. Drake State CC & TC,30014862,Xerox Corporation ,8/23/2021,191.34,Title III (Activity 1),Operating Lease Payments
J. F. Drake State CC & TC,30014862,Xerox Corporation ,8/23/2021,395.39,Title III (Activity 6),Operating Lease Payments
J. F. Drake State CC & TC,30014863,Andrews Darise,8/25/2021,544,SPIN-UP 2XX7-2XX8,Participant Costs-Stipends
J. F. Drake State CC & TC,30014864,Arnold Luke,8/25/2021,544,SPIN-UP 2XX7-2XX8,Participant Costs-Stipends
J. F. Drake State CC & TC,30014865,Carter Aaron,8/25/2021,544,SPIN-UP 2XX7-2XX8,Participant Costs-Stipends
J. F. Drake State CC & TC,30014866,Cooper Deondra,8/25/2021,544,SPIN-UP 2XX7-2XX8,Participant Costs-Stipends
J. F. Drake State CC & TC,30014867,Crowley Jack,8/25/2021,544,SPIN-UP 2XX7-2XX8,Participant Costs-Stipends
J. F. Drake State CC & TC,30014868,King Tristan,8/25/2021,544,SPIN-UP 2XX7-2XX8,Participant Costs-Stipends
J. F. Drake State CC & TC,30014869,Salmon Jaimie,8/25/2021,544,SPIN-UP 2XX7-2XX8,Participant Costs-Stipends
J. F. Drake State CC & TC,30014870,Schoenig Dalton,8/25/2021,544,SPIN-UP 2XX7-2XX8,Participant Costs-Stipends
J. F. Drake State CC & TC,30014871,Simmons Durruntay,8/25/2021,544,SPIN-UP 2XX7-2XX8,Participant Costs-Stipends
J. F. Drake State CC & TC,30014872,Thompson Christopher,8/25/2021,544,SPIN-UP 2XX7-2XX8,Participant Costs-Stipends
J. F. Drake State CC & TC,30014873,White Zachary,8/25/2021,544,SPIN-UP 2XX7-2XX8,Participant Costs-Stipends
J. F. Drake State CC & TC,30014874,Holston Gases Inc ,8/26/2021,1866.66,Title III (Activity 1),Materials and Supplies - MS
J. F. Drake State CC & TC,30014875,Home Depot U.S.A. Inc ,8/26/2021,18.24,WIOA 2XX0-2XX1,Materials and Supplies - MS
J. F. Drake State CC & TC,30014876,Learning Labs Inc ,8/26/2021,4000,NASA Grant,Materials and Supplies - MS
J. F. Drake State CC & TC,30014877,The Burmax Co. Inc. ,8/26/2021,299.94,Title III (Activity 1),Materials and Supplies - MS
J. F. Drake State CC & TC,30014878,WEX Inc ,8/26/2021,54.29,Title III (Activity 4),Gasoline & Oil - Motor Veh - OOS
J. F. Drake State CC & TC,30014878,WEX Inc ,8/26/2021,55.13,NASA Grant,Other Travel Expenses - OS
J. F. Drake State CC & TC,30014879,Ynot Technology Inc. ,8/26/2021,690,CRRSAA - HBCU and Strengthening II,Computer Software(non capital) - MS
J. F. Drake State CC & TC,30014880,Ecampus.com ,8/30/2021,2317.3,Dual Enrollment  Sch. 2XX0-2XX1,Books (Non-Library)
J. F. Drake State CC & TC,30014880,Ecampus.com ,8/30/2021,5093.23,Title III (Activity 2),Books - CE
J. F. Drake State CC & TC,30014881,Home Depot U.S.A. Inc ,8/30/2021,1465.84,Title III (Activity 3),Maintenance & Repairs  - OOS
J. F. Drake State CC & TC,30014882,J F Drake State Community College & Technical College ,8/30/2021,7881.29,Dual Enrollment  Sch. 2XX0-2XX1,Scholarship and Waivers - SW
J. F. Drake State CC & TC,30014883,Woods Kishna,8/30/2021,375.63,AE-Fed Summer Conf 2XX0-2XX1,Other Travel Expenses - IS
J. F. Drake State CC & TC,30014884,CDW LLC ,9/3/2021,5763.54,Cares Act - College Relief,Technology - non capitalized - MS
J. F. Drake State CC & TC,30014885,Custom Guide ,9/3/2021,2040,Ready to Work 2XX0-2XX1,Technology - non capitalized - MS
J. F. Drake State CC & TC,30014886,Huntsville Tractor & Equipment Inc ,9/3/2021,273,CRRSAA - HBCU and Strengthening II,Materials and Supplies - MS
J. F. Drake State CC & TC,30014887,LMS Metal Sales ,9/3/2021,5954.4,NASA Grant,Materials and Supplies - MS
J. F. Drake State CC & TC,30014888,Lowe's Company ,9/3/2021,182.34,CRRSAA - HBCU and Strengthening II,Materials and Supplies - MS
J. F. Drake State CC & TC,30014888,Lowe's Company ,9/3/2021,1991.45,WIOA 2XX0-2XX1,Materials and Supplies - MS
J. F. Drake State CC & TC,30014889,Office Depot ,9/3/2021,24.99,Title III (Activity 6),Materials and Supplies - MS
J. F. Drake State CC & TC,30014889,Office Depot ,9/3/2021,346.54,Title III (Activity 5),Materials and Supplies - MS
J. F. Drake State CC & TC,30014890,PODS Enterprises Inc ,9/3/2021,159,Future Act (Activity 1),Short-Term Equipment Rentals - OOS
J. F. Drake State CC & TC,30014891,SACRAO ,9/3/2021,100,Title III (Activity 5),Memberships - PS
J. F. Drake State CC & TC,30014892,Stericycle Inc ,9/3/2021,89.92,Future Act (Activity 1),Waste Disposal - UC
J. F. Drake State CC & TC,30014893,The Burmax Co. Inc. ,9/3/2021,1866.42,Title III (Activity 1),Materials and Supplies - MS
J. F. Drake State CC & TC,30015013,4Imprint Inc ,9/9/2021,500.28,CRRSAA - HBCU and Strengthening II,Materials and Supplies - MS
J. F. Drake State CC & TC,30015014,Ecampus.com ,9/9/2021,2618.45,Dual Enrollment  Sch. 2XX0-2XX1,Books (Non-Library)
J. F. Drake State CC & TC,30015014,Ecampus.com ,9/9/2021,3378.2,NASA Grant,Books (Non-Library)
J. F. Drake State CC & TC,30015015,Howard Technology Solutions ,9/9/2021,4070,Title III (Activity 6),Equipment - non capitalized - MS
J. F. Drake State CC & TC,30015016,Humboldt Mfg Co ,9/9/2021,3124,NASA Grant,Materials and Supplies - MS
J. F. Drake State CC & TC,30015017,MSC Industrial Supply ,9/9/2021,3455.58,STEAM - FlexFactor,Equipment - non capitalized - MS
J. F. Drake State CC & TC,30015017,MSC Industrial Supply ,9/9/2021,11541.78,STEAM - FlexFactor,Materials and Supplies - MS
J. F. Drake State CC & TC,30015018,Office Depot ,9/9/2021,266.37,Title III (Activity 1),Materials and Supplies - MS
J. F. Drake State CC & TC,30015019,Xerox Corporation ,9/9/2021,195.3,Title III (Activity 1),Operating Lease Payments
J. F. Drake State CC & TC,30015019,Xerox Corporation ,9/9/2021,367.83,Title III (Activity 6),Operating Lease Payments
J. F. Drake State CC & TC,30015020,ACT Inc ,9/13/2021,44.6,AE-State Regular 2XX0-2XX1,Testing Expense
J. F. Drake State CC & TC,30015021,Essential Education ,9/13/2021,8966.5,AE-State Regular 2XX0-2XX1,Materials and Supplies - MS
J. F. Drake State CC & TC,30015022,G & S Moore Inc ,9/13/2021,697.5,Chancellor - Special Allocation,Maintenance & Repairs  - OOS
J. F. Drake State CC & TC,30015023,Holston Gases Inc ,9/13/2021,1861.1,Title III (Activity 1),Materials and Supplies - MS
J. F. Drake State CC & TC,30015023,Holston Gases Inc ,9/13/2021,5726.9,Title III (Activity 1),Materials and Supplies - MS
J. F. Drake State CC & TC,30015024,OCELOT ,9/13/2021,4200,Title III (Activity 5),Subscriptions - OOS
J. F. Drake State CC & TC,30015025,Office Depot ,9/13/2021,13.14,Title III (Activity 1),Materials and Supplies - MS
J. F. Drake State CC & TC,30015025,Office Depot ,9/13/2021,529.67,Ready to Work 2XX0-2XX1,Materials and Supplies - MS
J. F. Drake State CC & TC,30015025,Office Depot ,9/13/2021,4997.65,AE-State Regular 2XX0-2XX1,Materials and Supplies - MS
J. F. Drake State CC & TC,30015026,Signs By Tomorrow ,9/13/2021,1602.49,Chancellor - Special Allocation,Materials and Supplies - MS
J. F. Drake State CC & TC,30015038,AspirEDU Inc. ,9/15/2021,6720,CRRSAA - HBCU and Strengthening II,Computer Software(non capital) - MS
J. F. Drake State CC & TC,30015039,Dunlap Contracting Inc ,9/15/2021,117310.62,Title III (Activity 3),Construction in Progress - CE
J. F. Drake State CC & TC,30015040,Ecampus.com ,9/15/2021,315.9,Dual Enrollment  Sch. 2XX0-2XX1,Books (Non-Library)
J. F. Drake State CC & TC,30015041,Holston Gases Inc ,9/15/2021,419,Title III (Activity 1),Materials and Supplies - MS
J. F. Drake State CC & TC,30015042,Innovative Educators Inc ,9/15/2021,9995,CRRSAA - HBCU and Strengthening II,Computer Software(non capital) - MS
J. F. Drake State CC & TC,30015043,Nola Van Peursem Architects PC ,9/15/2021,11626.94,Title III (Activity 3),Engineering & Architectural Svc -PS
J. F. Drake State CC & TC,30015043,Nola Van Peursem Architects PC ,9/15/2021,17070.74,Chancellor - Special Allocation,Engineering & Architectural Svc -PS
J. F. Drake State CC & TC,30015043,Nola Van Peursem Architects PC ,9/15/2021,21717.67,Title III SAFRA (Activity 2),Engineering & Architectural Svc -PS
J. F. Drake State CC & TC,30015044,Turner Construction Company ,9/15/2021,36789,Chancellor - Special Allocation,Improvements - Other - CE
J. F. Drake State CC & TC,30015045,Dean Plumbing Co. ,9/21/2021,14204.39,Chancellor - Special Allocation,Maintenance & Repairs  - OOS
J. F. Drake State CC & TC,30015046,Ecampus.com ,9/21/2021,257.85,Dual Enrollment  Sch. 2XX0-2XX1,Books (Non-Library)
J. F. Drake State CC & TC,30015047,J F Drake State Community College & Technical College ,9/21/2021,1746.09,Dual Enrollment  Sch. 2XX0-2XX1,Scholarship and Waivers - SW
J. F. Drake State CC & TC,30015048,Kingsbury Consulting Management ,9/21/2021,5760,Chancellor - Special Allocation,Other Professional Fees - PS
J. F. Drake State CC & TC,30015049,Turner Construction Company ,9/21/2021,4275.67,Chancellor - Special Allocation,Improvements - Other - CE
J. F. Drake State CC & TC,30015050,J F Drake State Community College & Technical College ,9/21/2021,458.76,Title III (Activity 1),Materials and Supplies - MS
J. F. Drake State CC & TC,30015054,CDW LLC ,9/23/2021,166900,CRRSAA - HBCU and Strengthening II,Equipment - non capitalized - MS
J. F. Drake State CC & TC,30015055,Conditioned Air Solutions LLC ,9/23/2021,2425,CRRSAA - HBCU and Strengthening II,Maintenance & Repairs  - OOS
J. F. Drake State CC & TC,30015056,Koorsen Fire & Security ,9/23/2021,475,Title III (Activity 3),Maintenance & Repairs  - OOS
J. F. Drake State CC & TC,30015057,Nola Van Peursem Architects PC ,9/23/2021,5873.62,Title III (Activity 3),Engineering & Architectural Svc -PS
J. F. Drake State CC & TC,30015058,Payton Sakura,9/23/2021,724,Refund Fund,Clearing Refunds - SP
J. F. Drake State CC & TC,30015059,Thomas Electric Inc ,9/23/2021,2407,Chancellor - Special Allocation,Maintenance & Repairs  - OOS
J. F. Drake State CC & TC,30015060,Williams Jeffrey,9/23/2021,965.66,Title III (Activity 1),Other Travel Expenses - OS
J. F. Drake State CC & TC,30015061,Ecampus.com ,9/24/2021,4750,NASA Grant,Books (Non-Library)
J. F. Drake State CC & TC,30015062,Ecampus.com ,9/29/2021,498.21,Dual Enrollment  Sch. 2XX0-2XX1,Books (Non-Library)
J. F. Drake State CC & TC,30015062,Ecampus.com ,9/29/2021,3135,NASA Grant,Books (Non-Library)
J. F. Drake State CC & TC,30015063,EMW Construction Inc ,9/29/2021,5134.75,Chancellor - Special Allocation,Building Alterations - CE
J. F. Drake State CC & TC,30015063,EMW Construction Inc ,9/29/2021,100062.69,Title III SAFRA (Activity 2),Construction in Progress - CE
J. F. Drake State CC & TC,30015064,Kingsbury Consulting Management ,9/29/2021,4212,Chancellor - Special Allocation,Other Professional Fees - PS
J. F. Drake State CC & TC,30015065,PODS Enterprises Inc ,9/29/2021,89,Future Act (Activity 1),Short-Term Equipment Rentals - OOS
J. F. Drake State CC & TC,30015066,Sam's Club ,9/29/2021,370,Project Success Grant 2XX0-2XX1,Participant Costs-Stipends
J. F. Drake State CC & TC,30015067,WEX Inc ,9/29/2021,139.41,Title III (Activity 5),Gasoline & Oil - Motor Veh - OOS
J. F. Drake State CC & TC,900009938,Azor Zelda,10/15/2020,2402.4,Title III SAFRA (Activity 1),Payroll
J. F. Drake State CC & TC,900009939,Poursaied Shahla,10/15/2020,728,Title III SAFRA (Activity 1),Payroll
J. F. Drake State CC & TC,900009940,Fowlks-Turner Deaviance,10/15/2020,1653.6,Title III SAFRA (Activity 1),Payroll
J. F. Drake State CC & TC,900009941,James Bobby,10/15/2020,468,Title III SAFRA (Activity 1),Payroll
J. F. Drake State CC & TC,900009942,Kamalu Ngozi,10/15/2020,3385.2,Title III SAFRA (Activity 1),Payroll
J. F. Drake State CC & TC,900009943,Keith Zuleika,10/15/2020,1216.8,Title III SAFRA (Activity 1),Payroll
J. F. Drake State CC & TC,900009944,Alexander Cora,10/15/2020,748.8,AE-State Regular,Payroll
J. F. Drake State CC & TC,900009945,Augustin Lysa,10/15/2020,549.12,AE-State Regular,Payroll
J. F. Drake State CC & TC,900009946,Hammon Gary,10/15/2020,2667.6,MSSC Training Iniatives,Payroll
J. F. Drake State CC & TC,900009947,Mack Tamara,10/15/2020,561.6,AE-Federal Regular,Payroll
J. F. Drake State CC & TC,900009948,Tucker Augustus,10/15/2020,533.52,AE-Federal Regular,Payroll
J. F. Drake State CC & TC,900009949,Walker Anita,10/15/2020,1705.6,AE-Federal Regular,Payroll
J. F. Drake State CC & TC,900009951,Crosby Tomacenia,10/15/2020,624,Title III (Activity 5),Payroll
J. F. Drake State CC & TC,900009951,Crosby Tomacenia,10/15/2020,1560,Unrestricted Shared Services,Payroll
J. F. Drake State CC & TC,900009953,Woods Lynnell,10/15/2020,936,Title III (Activity 2),Payroll
J. F. Drake State CC & TC,900009956,Crutcher Marcus,10/15/2020,1468.5,Unrestricted Shared Services,Payroll
J. F. Drake State CC & TC,900009962,Humphrey Jessie,10/15/2020,2139.15,Unrestricted Shared Services,Payroll
J. F. Drake State CC & TC,900009963,Latimore Karmen,10/15/2020,640,SPIN-UP 2XX7-2XX8,Payroll
J. F. Drake State CC & TC,900009964,Milton Sammie,10/15/2020,1092,Unrestricted Shared Services,Payroll
J. F. Drake State CC & TC,900009965,Jackson Terell,10/30/2020,3992.25,Unrestricted Shared Services,Payroll
J. F. Drake State CC & TC,900009966,Sims Patricia,10/30/2020,16666.67,Unrestricted Shared Services,Payroll
J. F. Drake State CC & TC,900009967,Adams Carlos,10/30/2020,7527.78,Unrestricted Shared Services,Payroll
J. F. Drake State CC & TC,900009968,Davis Mattie,10/30/2020,8020.89,Unrestricted Shared Services,Payroll
J. F. Drake State CC & TC,900009969,Laut Pamela,10/30/2020,6005.33,Unrestricted Shared Services,Payroll
J. F. Drake State CC & TC,900009970,Rogers Michelle,10/30/2020,6005.33,Unrestricted Shared Services,Payroll
J. F. Drake State CC & TC,900009971,Sims Rebecca,10/30/2020,3497.17,Future Act (Activity 1),Payroll
J. F. Drake State CC & TC,900009972,Burruss Lauren,10/30/2020,6334.11,Future Act (Activity 1),Payroll
J. F. Drake State CC & TC,900009973,Ayokanmbi Gladys,10/30/2020,7013.78,Unrestricted Shared Services,Payroll
J. F. Drake State CC & TC,900009974,Sullins Charles,10/30/2020,351,Unrestricted Shared Services,Payroll
J. F. Drake State CC & TC,900009975,Johnson Claudine,10/30/2020,819,Unrestricted Shared Services,Payroll
J. F. Drake State CC & TC,900009976,Wright Mary,10/30/2020,1053,Unrestricted Shared Services,Payroll
J. F. Drake State CC & TC,900009977,Barnes Nelson,10/30/2020,702,Unrestricted Shared Services,Payroll
J. F. Drake State CC & TC,900009978,Egson Ronald,10/30/2020,4731.75,Unrestricted Shared Services,Payroll
J. F. Drake State CC & TC,900009979,Smothers Deloris,10/30/2020,8754.33,Unrestricted Shared Services,Payroll
J. F. Drake State CC & TC,900009980,Langford Tellus,10/30/2020,304.2,Unrestricted Shared Services,Payroll
J. F. Drake State CC & TC,900009981,Ellis John,10/30/2020,3425.92,Unrestricted Shared Services,Payroll
J. F. Drake State CC & TC,900009982,Goodloe Lardell,10/30/2020,7514.11,Unrestricted Shared Services,Payroll
J. F. Drake State CC & TC,900009983,Moore Alfred,10/30/2020,585,Unrestricted Shared Services,Payroll
J. F. Drake State CC & TC,900009984,Forbes Edwin,10/30/2020,5101.58,Unrestricted Shared Services,Payroll
J. F. Drake State CC & TC,900009985,Winchester Brandi,10/30/2020,4504,Unrestricted Shared Services,Payroll
J. F. Drake State CC & TC,900009986,Winn George,10/30/2020,6554.42,Unrestricted Shared Services,Payroll
J. F. Drake State CC & TC,900009987,Foster Rashanda,10/30/2020,702,Unrestricted Shared Services,Payroll
J. F. Drake State CC & TC,900009988,Kessio Japheth,10/30/2020,351,Unrestricted Shared Services,Payroll
J. F. Drake State CC & TC,900009989,Milling John,10/30/2020,702,Unrestricted Shared Services,Payroll
J. F. Drake State CC & TC,900009990,Canady Charlotte,10/30/2020,702,Unrestricted Shared Services,Payroll
J. F. Drake State CC & TC,900009991,Holmes Khalid,10/30/2020,4780.75,Unrestricted Shared Services,Payroll
J. F. Drake State CC & TC,900009992,London-Thomas Laricca,10/30/2020,585,Unrestricted Shared Services,Payroll
J. F. Drake State CC & TC,900009993,McCaa-Burke Petura,10/30/2020,585,Unrestricted Shared Services,Payroll
J. F. Drake State CC & TC,900009994,McCastle-Arutere Toye,10/30/2020,1170,Unrestricted Shared Services,Payroll
J. F. Drake State CC & TC,900009995,Rentz Joyce,10/30/2020,7724.11,Unrestricted Shared Services,Payroll
J. F. Drake State CC & TC,900009996,Edwards Vernessa,10/30/2020,585,Unrestricted Shared Services,Payroll
J. F. Drake State CC & TC,900009997,Wilson Tracey,10/30/2020,936,Unrestricted Shared Services,Payroll
J. F. Drake State CC & TC,900009998,Fury Lilia,10/30/2020,3695.44,AE-Federal Regular 2XX0-2XX1,Payroll
J. F. Drake State CC & TC,900009999,Price Renea,10/30/2020,3418.33,AE-State Regular 2XX0-2XX1,Payroll
J. F. Drake State CC & TC,900010000,Taylor Docquinn,10/30/2020,1515,Unrestricted Shared Services,Payroll
J. F. Drake State CC & TC,900010000,Taylor Docquinn,10/30/2020,4545,AE-State Regular 2XX0-2XX1,Payroll
J. F. Drake State CC & TC,900010001,Battle Ben,10/30/2020,6704.67,Unrestricted Shared Services,Payroll
J. F. Drake State CC & TC,900010002,Little Bertha,10/30/2020,1989,Unrestricted Shared Services,Payroll
J. F. Drake State CC & TC,900010003,Malone Ulrekia,10/30/2020,1872,Unrestricted Shared Services,Payroll
J. F. Drake State CC & TC,900010004,Pruitt Marquita,10/30/2020,1989,Unrestricted Shared Services,Payroll
J. F. Drake State CC & TC,900010005,Sams Donna,10/30/2020,1404,Unrestricted Shared Services,Payroll
J. F. Drake State CC & TC,900010006,Tate Tralandar,10/30/2020,912.6,Unrestricted Shared Services,Payroll
J. F. Drake State CC & TC,900010007,Williams Kelly,10/30/2020,5625.44,Unrestricted Shared Services,Payroll
J. F. Drake State CC & TC,900010008,McDaniel Darvin,10/30/2020,4257.42,Unrestricted Shared Services,Payroll
J. F. Drake State CC & TC,900010009,Henry Casey,10/30/2020,5554.22,Unrestricted Shared Services,Payroll
J. F. Drake State CC & TC,900010010,Williams Jeffrey,10/30/2020,5061,Unrestricted Shared Services,Payroll
J. F. Drake State CC & TC,900010011,Bevel Joseph,10/30/2020,5225.44,Unrestricted Shared Services,Payroll
J. F. Drake State CC & TC,900010012,Swaim Richard,10/30/2020,5554.22,Unrestricted Shared Services,Payroll
J. F. Drake State CC & TC,900010013,Villa Christopher,10/30/2020,702,Unrestricted Shared Services,Payroll
J. F. Drake State CC & TC,900010014,Grissim Robert,10/30/2020,698.94,NASA Grant,Payroll
J. F. Drake State CC & TC,900010014,Grissim Robert,10/30/2020,6290.48,Unrestricted Shared Services,Payroll
J. F. Drake State CC & TC,900010015,Ray Karen,10/30/2020,3744.58,Unrestricted Shared Services,Payroll
J. F. Drake State CC & TC,900010016,Rafferty Kory,10/30/2020,4732.33,Unrestricted Shared Services,Payroll
J. F. Drake State CC & TC,900010017,Bell Angela,10/30/2020,8564.98,Unrestricted Shared Services,Payroll
J. F. Drake State CC & TC,900010018,Clark Taska,10/30/2020,4074.75,Unrestricted Shared Services,Payroll
J. F. Drake State CC & TC,900010019,Henderson Carolyn,10/30/2020,10046.59,Unrestricted Shared Services,Payroll
J. F. Drake State CC & TC,900010020,Borden Dennis,10/30/2020,5676.56,Unrestricted Shared Services,Payroll
J. F. Drake State CC & TC,900010021,Clift Carla,10/30/2020,6662.78,Unrestricted Shared Services,Payroll
J. F. Drake State CC & TC,900010022,Booker Veronica,10/30/2020,3497.17,Title III (Activity 5),Payroll
J. F. Drake State CC & TC,900010023,Saunders Ray,10/30/2020,3250.08,Title III (Activity 5),Payroll
J. F. Drake State CC & TC,900010024,Ward Mattavia,10/30/2020,3415.17,Title III (Activity 5),Payroll
J. F. Drake State CC & TC,900010025,Jones Donyale,10/30/2020,3992.58,Unrestricted Shared Services,Payroll
J. F. Drake State CC & TC,900010026,Green Tiffany,10/30/2020,4404.5,Unrestricted Shared Services,Payroll
J. F. Drake State CC & TC,900010027,Lawrence Kia,10/30/2020,2672.25,Unrestricted Shared Services,Payroll
J. F. Drake State CC & TC,900010028,Slay Jody,10/30/2020,110.19,Career Coach 2XX0-2XX1,Payroll
J. F. Drake State CC & TC,900010028,Slay Jody,10/30/2020,2644.64,Unrestricted Shared Services,Payroll
J. F. Drake State CC & TC,900010029,Hambrick Neoka,10/30/2020,3992.25,Unrestricted Shared Services,Payroll
J. F. Drake State CC & TC,900010030,Morrison Bruce,10/30/2020,4982.17,Unrestricted Shared Services,Payroll
J. F. Drake State CC & TC,900010031,O'Linger Jennifer,10/30/2020,7150.75,Unrestricted Shared Services,Payroll
J. F. Drake State CC & TC,900010032,Holmes Danon,10/30/2020,3332.25,Unrestricted Shared Services,Payroll
J. F. Drake State CC & TC,900010033,Pearce Regina,10/30/2020,2755.42,Unrestricted Shared Services,Payroll
J. F. Drake State CC & TC,900010034,Sudeall-Hawkins Monica,10/30/2020,7317.41,Unrestricted Shared Services,Payroll
J. F. Drake State CC & TC,900010035,Alexander Akeem,10/30/2020,7652.67,Unrestricted Shared Services,Payroll
J. F. Drake State CC & TC,900010036,Carter Deleshia,10/30/2020,3992.25,Unrestricted Shared Services,Payroll
J. F. Drake State CC & TC,900010037,Chavers Audrey,10/30/2020,162.99,Title III (Activity A Prog Admin),Payroll
J. F. Drake State CC & TC,900010037,Chavers Audrey,10/30/2020,3911.76,Unrestricted Shared Services,Payroll
J. F. Drake State CC & TC,900010038,Harris Katrina,10/30/2020,9150.75,Unrestricted Shared Services,Payroll
J. F. Drake State CC & TC,900010039,Walker Letitia,10/30/2020,4652.5,Unrestricted Shared Services,Payroll
J. F. Drake State CC & TC,900010040,Chance Katie,10/30/2020,4404.92,Unrestricted Shared Services,Payroll
J. F. Drake State CC & TC,900010041,Patton Tina,10/30/2020,2672.92,Unrestricted Shared Services,Payroll
J. F. Drake State CC & TC,900010042,Parrish Tessa,10/30/2020,3662.33,Title III (Activity A Prog Admin),Payroll
J. F. Drake State CC & TC,900010043,Raymond Alice,10/30/2020,2741.3,Unrestricted Shared Services,Payroll
J. F. Drake State CC & TC,900010043,Raymond Alice,10/30/2020,7414.12,Title III (Activity 1),Payroll
J. F. Drake State CC & TC,900010044,Shotts Lesley,10/30/2020,3130.28,Title III (Activity A Prog Admin),Payroll
J. F. Drake State CC & TC,900010044,Shotts Lesley,10/30/2020,4504.55,Unrestricted Shared Services,Payroll
J. F. Drake State CC & TC,900010045,Baker Elijah,10/30/2020,3084.5,Unrestricted Shared Services,Payroll
J. F. Drake State CC & TC,900010046,Malone Jennifer,10/30/2020,6828.08,Unrestricted Shared Services,Payroll
J. F. Drake State CC & TC,900010047,Harbin Glenn,10/30/2020,4899.25,Unrestricted Shared Services,Payroll
J. F. Drake State CC & TC,900010048,Harlow George,10/30/2020,3497.17,Cares Act - HBCU,Payroll
J. F. Drake State CC & TC,900010049,Bulluck Bruce,10/30/2020,7634.83,Unrestricted Shared Services,Payroll
J. F. Drake State CC & TC,900010050,Hampton Darlene,10/30/2020,2590.42,Unrestricted Shared Services,Payroll
J. F. Drake State CC & TC,900010051,McCarty Demetrius,10/30/2020,2755.42,Unrestricted Shared Services,Payroll
J. F. Drake State CC & TC,900010052,Azor Zelda,11/13/2020,2293.2,Future Act (Activity 1),Payroll
J. F. Drake State CC & TC,900010053,Poursaied Shahla,11/13/2020,1547,Future Act (Activity 1),Payroll
J. F. Drake State CC & TC,900010054,Fowlks-Turner Deaviance,11/13/2020,2496,Future Act (Activity 1),Payroll
J. F. Drake State CC & TC,900010055,James Bobby,11/13/2020,592.8,Future Act (Activity 1),Payroll
J. F. Drake State CC & TC,900010056,Kamalu Ngozi,11/13/2020,2766.4,Future Act (Activity 1),Payroll
J. F. Drake State CC & TC,900010057,Keith Zuleika,11/13/2020,1279.2,Future Act (Activity 1),Payroll
J. F. Drake State CC & TC,900010058,Alexander Cora,11/13/2020,998.4,AE-State Regular 2XX0-2XX1,Payroll
J. F. Drake State CC & TC,900010059,Augustin Lysa,11/13/2020,732.16,AE-State Regular 2XX0-2XX1,Payroll
J. F. Drake State CC & TC,900010060,Hammon Gary,11/13/2020,2527.2,MSSC Training Iniatives,Payroll
J. F. Drake State CC & TC,900010061,Mack Tamara,11/13/2020,665.6,AE-Federal Regular 2XX0-2XX1,Payroll
J. F. Drake State CC & TC,900010062,Tucker Augustus,11/13/2020,1047.28,AE-Federal Regular 2XX0-2XX1,Payroll
J. F. Drake State CC & TC,900010063,Walker Anita,11/13/2020,1705.6,AE-Federal Regular 2XX0-2XX1,Payroll
J. F. Drake State CC & TC,900010065,Zatowski Jeanette,11/13/2020,1138.8,NASA Grant,Payroll
J. F. Drake State CC & TC,900010066,Crosby Tomacenia,11/13/2020,561.6,Title III (Activity 5),Payroll
J. F. Drake State CC & TC,900010066,Crosby Tomacenia,11/13/2020,1248,STEAM,Payroll
J. F. Drake State CC & TC,900010068,Woods Lynnell,11/13/2020,821.6,Title III (Activity 2),Payroll
J. F. Drake State CC & TC,900010071,Long Pamela,11/13/2020,634.4,Title III (Activity 5),Payroll
J. F. Drake State CC & TC,900010072,Crutcher Marcus,11/13/2020,1254,Unrestricted Shared Services,Payroll
J. F. Drake State CC & TC,900010080,Humphrey Jessie,11/13/2020,1879.48,Unrestricted Shared Services,Payroll
J. F. Drake State CC & TC,900010081,Latimore Karmen,11/13/2020,600,SPIN-UP 2XX7-2XX8,Payroll
J. F. Drake State CC & TC,900010082,Milton Sammie,11/13/2020,1079,Unrestricted Shared Services,Payroll
J. F. Drake State CC & TC,900010083,Jackson Terell,11/30/2020,3992.25,Unrestricted Shared Services,Payroll
J. F. Drake State CC & TC,900010084,Sims Patricia,11/30/2020,16666.67,Unrestricted Shared Services,Payroll
J. F. Drake State CC & TC,900010085,Adams Carlos,11/30/2020,7527.78,Unrestricted Shared Services,Payroll
J. F. Drake State CC & TC,900010086,Davis Mattie,11/30/2020,8020.89,Unrestricted Shared Services,Payroll
J. F. Drake State CC & TC,900010087,Laut Pamela,11/30/2020,6005.33,Unrestricted Shared Services,Payroll
J. F. Drake State CC & TC,900010088,Rogers Michelle,11/30/2020,6005.33,Unrestricted Shared Services,Payroll
J. F. Drake State CC & TC,900010089,Sims Rebecca,11/30/2020,3497.17,Future Act (Activity 1),Payroll
J. F. Drake State CC & TC,900010090,Burruss Lauren,11/30/2020,6334.11,Future Act (Activity 1),Payroll
J. F. Drake State CC & TC,900010091,Ayokanmbi Gladys,11/30/2020,7013.78,Unrestricted Shared Services,Payroll
J. F. Drake State CC & TC,900010092,Sullins Charles,11/30/2020,351,Unrestricted Shared Services,Payroll
J. F. Drake State CC & TC,900010093,Johnson Claudine,11/30/2020,819,Unrestricted Shared Services,Payroll
J. F. Drake State CC & TC,900010094,Wright Mary,11/30/2020,1053,Unrestricted Shared Services,Payroll
J. F. Drake State CC & TC,900010095,Barnes Nelson,11/30/2020,702,Unrestricted Shared Services,Payroll
J. F. Drake State CC & TC,900010096,Egson Ronald,11/30/2020,4731.75,Unrestricted Shared Services,Payroll
J. F. Drake State CC & TC,900010097,Smothers Deloris,11/30/2020,8754.33,Unrestricted Shared Services,Payroll
J. F. Drake State CC & TC,900010098,Langford Tellus,11/30/2020,304.2,Unrestricted Shared Services,Payroll
J. F. Drake State CC & TC,900010099,Ellis John,11/30/2020,3425.92,Unrestricted Shared Services,Payroll
J. F. Drake State CC & TC,900010100,Goodloe Lardell,11/30/2020,7514.11,Unrestricted Shared Services,Payroll
J. F. Drake State CC & TC,900010101,Moore Alfred,11/30/2020,585,Unrestricted Shared Services,Payroll
J. F. Drake State CC & TC,900010102,Forbes Edwin,11/30/2020,5101.58,Unrestricted Shared Services,Payroll
J. F. Drake State CC & TC,900010103,Winchester Brandi,11/30/2020,4504,Unrestricted Shared Services,Payroll
J. F. Drake State CC & TC,900010104,Winn George,11/30/2020,6554.42,Unrestricted Shared Services,Payroll
J. F. Drake State CC & TC,900010105,Foster Rashanda,11/30/2020,702,Unrestricted Shared Services,Payroll
J. F. Drake State CC & TC,900010106,Kessio Japheth,11/30/2020,351,Unrestricted Shared Services,Payroll
J. F. Drake State CC & TC,900010107,Milling John,11/30/2020,702,Unrestricted Shared Services,Payroll
J. F. Drake State CC & TC,900010108,Canady Charlotte,11/30/2020,702,Unrestricted Shared Services,Payroll
J. F. Drake State CC & TC,900010109,Holmes Khalid,11/30/2020,4780.75,Unrestricted Shared Services,Payroll
J. F. Drake State CC & TC,900010110,London-Thomas Laricca,11/30/2020,585,Unrestricted Shared Services,Payroll
J. F. Drake State CC & TC,900010111,McCaa-Burke Petura,11/30/2020,585,Unrestricted Shared Services,Payroll
J. F. Drake State CC & TC,900010112,McCastle-Arutere Toye,11/30/2020,1170,Unrestricted Shared Services,Payroll
J. F. Drake State CC & TC,900010113,Rentz Joyce,11/30/2020,7724.11,Unrestricted Shared Services,Payroll
J. F. Drake State CC & TC,900010114,Edwards Vernessa,11/30/2020,585,Unrestricted Shared Services,Payroll
J. F. Drake State CC & TC,900010115,Wilson Tracey,11/30/2020,936,Unrestricted Shared Services,Payroll
J. F. Drake State CC & TC,900010116,Fury Lilia,11/30/2020,3695.44,AE-Federal Regular 2XX0-2XX1,Payroll
J. F. Drake State CC & TC,900010117,Price Renea,11/30/2020,3418.33,AE-State Regular 2XX0-2XX1,Payroll
J. F. Drake State CC & TC,900010118,Taylor Docquinn,11/30/2020,1515,Unrestricted Shared Services,Payroll
J. F. Drake State CC & TC,900010118,Taylor Docquinn,11/30/2020,4545,AE-State Regular 2XX0-2XX1,Payroll
J. F. Drake State CC & TC,900010119,Battle Ben,11/30/2020,6704.67,Unrestricted Shared Services,Payroll
J. F. Drake State CC & TC,900010120,Little Bertha,11/30/2020,1989,Unrestricted Shared Services,Payroll
J. F. Drake State CC & TC,900010121,Malone Ulrekia,11/30/2020,1872,Unrestricted Shared Services,Payroll
J. F. Drake State CC & TC,900010122,Pruitt Marquita,11/30/2020,1989,Unrestricted Shared Services,Payroll
J. F. Drake State CC & TC,900010123,Sams Donna,11/30/2020,1404,Unrestricted Shared Services,Payroll
J. F. Drake State CC & TC,900010124,Tate Tralandar,11/30/2020,912.6,Unrestricted Shared Services,Payroll
J. F. Drake State CC & TC,900010125,Williams Kelly,11/30/2020,5625.44,Unrestricted Shared Services,Payroll
J. F. Drake State CC & TC,900010126,McDaniel Darvin,11/30/2020,4257.42,Unrestricted Shared Services,Payroll
J. F. Drake State CC & TC,900010127,Henry Casey,11/30/2020,5554.22,Unrestricted Shared Services,Payroll
J. F. Drake State CC & TC,900010128,Williams Jeffrey,11/30/2020,5061,Unrestricted Shared Services,Payroll
J. F. Drake State CC & TC,900010129,Bevel Joseph,11/30/2020,5225.44,Unrestricted Shared Services,Payroll
J. F. Drake State CC & TC,900010130,Swaim Richard,11/30/2020,5554.22,Unrestricted Shared Services,Payroll
J. F. Drake State CC & TC,900010131,Villa Christopher,11/30/2020,702,Unrestricted Shared Services,Payroll
J. F. Drake State CC & TC,900010132,Grissim Robert,11/30/2020,419.37,NASA Grant,Payroll
J. F. Drake State CC & TC,900010132,Grissim Robert,11/30/2020,6570.05,Unrestricted Shared Services,Payroll
J. F. Drake State CC & TC,900010133,Ray Karen,11/30/2020,3744.58,Unrestricted Shared Services,Payroll
J. F. Drake State CC & TC,900010134,Rafferty Kory,11/30/2020,4732.33,Unrestricted Shared Services,Payroll
J. F. Drake State CC & TC,900010135,Clark Taska,11/30/2020,4074.75,Unrestricted Shared Services,Payroll
J. F. Drake State CC & TC,900010136,Henderson Carolyn,11/30/2020,10046.59,Unrestricted Shared Services,Payroll
J. F. Drake State CC & TC,900010137,Borden Dennis,11/30/2020,5676.56,Unrestricted Shared Services,Payroll
J. F. Drake State CC & TC,900010138,Clift Carla,11/30/2020,6662.78,Unrestricted Shared Services,Payroll
J. F. Drake State CC & TC,900010139,Bell Angela,11/30/2020,9531.92,Unrestricted Shared Services,Payroll
J. F. Drake State CC & TC,900010140,Booker Veronica,11/30/2020,3497.17,Title III (Activity 5),Payroll
J. F. Drake State CC & TC,900010141,Saunders Ray,11/30/2020,3250.08,Title III (Activity 5),Payroll
J. F. Drake State CC & TC,900010142,Ward Mattavia,11/30/2020,3415.17,Title III (Activity 5),Payroll
J. F. Drake State CC & TC,900010143,Jones Donyale,11/30/2020,3992.58,Unrestricted Shared Services,Payroll
J. F. Drake State CC & TC,900010144,Green Tiffany,11/30/2020,4404.5,Unrestricted Shared Services,Payroll
J. F. Drake State CC & TC,900010145,Lawrence Kia,11/30/2020,2672.25,Unrestricted Shared Services,Payroll
J. F. Drake State CC & TC,900010146,Slay Jody,11/30/2020,1239.67,Unrestricted Shared Services,Payroll
J. F. Drake State CC & TC,900010146,Slay Jody,11/30/2020,1515.16,Career Coach 2XX0-2XX1,Payroll
J. F. Drake State CC & TC,900010147,Hambrick Neoka,11/30/2020,3992.25,Unrestricted Shared Services,Payroll
J. F. Drake State CC & TC,900010148,Morrison Bruce,11/30/2020,4982.17,Unrestricted Shared Services,Payroll
J. F. Drake State CC & TC,900010149,O'Linger Jennifer,11/30/2020,7150.75,Unrestricted Shared Services,Payroll
J. F. Drake State CC & TC,900010150,Holmes Danon,11/30/2020,3332.25,Unrestricted Shared Services,Payroll
J. F. Drake State CC & TC,900010151,Pearce Regina,11/30/2020,2755.42,Unrestricted Shared Services,Payroll
J. F. Drake State CC & TC,900010152,Sudeall-Hawkins Monica,11/30/2020,7317.41,Unrestricted Shared Services,Payroll
J. F. Drake State CC & TC,900010153,Alexander Akeem,11/30/2020,7652.67,Unrestricted Shared Services,Payroll
J. F. Drake State CC & TC,900010154,Carter Deleshia,11/30/2020,3992.25,Unrestricted Shared Services,Payroll
J. F. Drake State CC & TC,900010155,Chavers Audrey,11/30/2020,529.72,Title III (Activity A Prog Admin),Payroll
J. F. Drake State CC & TC,900010155,Chavers Audrey,11/30/2020,3545.03,Unrestricted Shared Services,Payroll
J. F. Drake State CC & TC,900010156,Harris Katrina,11/30/2020,9150.75,Unrestricted Shared Services,Payroll
J. F. Drake State CC & TC,900010157,Walker Letitia,11/30/2020,4652.5,Unrestricted Shared Services,Payroll
J. F. Drake State CC & TC,900010158,Chance Katie,11/30/2020,4404.92,Unrestricted Shared Services,Payroll
J. F. Drake State CC & TC,900010159,Patton Tina,11/30/2020,2672.92,Unrestricted Shared Services,Payroll
J. F. Drake State CC & TC,900010160,Parrish Tessa,11/30/2020,3662.33,Title III (Activity A Prog Admin),Payroll
J. F. Drake State CC & TC,900010161,Raymond Alice,11/30/2020,1951.08,Title III (Activity 1),Payroll
J. F. Drake State CC & TC,900010161,Raymond Alice,11/30/2020,8204.34,Unrestricted Shared Services,Payroll
J. F. Drake State CC & TC,900010162,Shotts Lesley,11/30/2020,1374.27,Title III (Activity A Prog Admin),Payroll
J. F. Drake State CC & TC,900010162,Shotts Lesley,11/30/2020,6260.56,Unrestricted Shared Services,Payroll
J. F. Drake State CC & TC,900010163,Baker Elijah,11/30/2020,3084.5,Unrestricted Shared Services,Payroll
J. F. Drake State CC & TC,900010164,Malone Jennifer,11/30/2020,6828.08,Unrestricted Shared Services,Payroll
J. F. Drake State CC & TC,900010165,Harbin Glenn,11/30/2020,4899.25,Unrestricted Shared Services,Payroll
J. F. Drake State CC & TC,900010166,Harlow George,11/30/2020,3497.17,Cares Act - HBCU,Payroll
J. F. Drake State CC & TC,900010167,Nkwa Tabe Terence,11/30/2020,2510.07,Unrestricted Shared Services,Payroll
J. F. Drake State CC & TC,900010168,Bulluck Bruce,11/30/2020,7634.83,Unrestricted Shared Services,Payroll
J. F. Drake State CC & TC,900010169,Hampton Darlene,11/30/2020,2590.42,Unrestricted Shared Services,Payroll
J. F. Drake State CC & TC,900010170,McCarty Demetrius,11/30/2020,2755.42,Unrestricted Shared Services,Payroll
J. F. Drake State CC & TC,900010171,Azor Zelda,12/15/2020,1765.4,Future Act (Activity 1),Payroll
J. F. Drake State CC & TC,900010172,Fowlks-Turner Deaviance,12/15/2020,2246.4,Future Act (Activity 1),Payroll
J. F. Drake State CC & TC,900010173,James Bobby,12/15/2020,530.4,Future Act (Activity 1),Payroll
J. F. Drake State CC & TC,900010174,Kamalu Ngozi,12/15/2020,1856.4,Future Act (Activity 1),Payroll
J. F. Drake State CC & TC,900010175,Keith Zuleika,12/15/2020,1279.2,Future Act (Activity 1),Payroll
J. F. Drake State CC & TC,900010176,Alexander Cora,12/15/2020,832,AE-State Regular 2XX0-2XX1,Payroll
J. F. Drake State CC & TC,900010177,Augustin Lysa,12/15/2020,846.56,AE-State Regular 2XX0-2XX1,Payroll
J. F. Drake State CC & TC,900010178,Hammon Gary,12/15/2020,1934.4,MSSC Training Iniatives,Payroll
J. F. Drake State CC & TC,900010179,Mack Tamara,12/15/2020,561.6,AE-Federal Regular 2XX0-2XX1,Payroll
J. F. Drake State CC & TC,900010180,Tucker Augustus,12/15/2020,1205.36,AE-Federal Regular 2XX0-2XX1,Payroll
J. F. Drake State CC & TC,900010181,Walker Anita,12/15/2020,1185.6,AE-Federal Regular 2XX0-2XX1,Payroll
J. F. Drake State CC & TC,900010185,Zatowski Jeanette,12/15/2020,2496,NASA Grant,Payroll
J. F. Drake State CC & TC,900010186,Crosby Tomacenia,12/15/2020,421.2,Title III (Activity 5),Payroll
J. F. Drake State CC & TC,900010186,Crosby Tomacenia,12/15/2020,1404,STEAM,Payroll
J. F. Drake State CC & TC,900010187,Woods Lynnell,12/15/2020,280.8,Title III (Activity 2),Payroll
J. F. Drake State CC & TC,900010189,Jones Chelsea,12/15/2020,1019.2,Title III (Activity 5),Payroll
J. F. Drake State CC & TC,900010191,Long Pamela,12/15/2020,260,Title III (Activity 5),Payroll
J. F. Drake State CC & TC,900010192,Crutcher Marcus,12/15/2020,1336.5,Unrestricted Shared Services,Payroll
J. F. Drake State CC & TC,900010199,Humphrey Jessie,12/15/2020,1694.01,Unrestricted Shared Services,Payroll
J. F. Drake State CC & TC,900010200,Milton Sammie,12/15/2020,1040,Unrestricted Shared Services,Payroll
J. F. Drake State CC & TC,900010201,Jackson Terell,12/18/2020,3992.25,Unrestricted Shared Services,Payroll
J. F. Drake State CC & TC,900010202,Sims Patricia,12/18/2020,16666.67,Unrestricted Shared Services,Payroll
J. F. Drake State CC & TC,900010203,Adams Carlos,12/18/2020,11485.23,Unrestricted Shared Services,Payroll
J. F. Drake State CC & TC,900010204,Davis Mattie,12/18/2020,8020.89,Unrestricted Shared Services,Payroll
J. F. Drake State CC & TC,900010205,Laut Pamela,12/18/2020,6005.33,Unrestricted Shared Services,Payroll
J. F. Drake State CC & TC,900010206,Rogers Michelle,12/18/2020,6005.33,Unrestricted Shared Services,Payroll
J. F. Drake State CC & TC,900010207,Sims Rebecca,12/18/2020,3497.17,Future Act (Activity 1),Payroll
J. F. Drake State CC & TC,900010208,Burruss Lauren,12/18/2020,6334.11,Future Act (Activity 1),Payroll
J. F. Drake State CC & TC,900010209,Ayokanmbi Gladys,12/18/2020,7013.78,Unrestricted Shared Services,Payroll
J. F. Drake State CC & TC,900010210,Sullins Charles,12/18/2020,351,Unrestricted Shared Services,Payroll
J. F. Drake State CC & TC,900010211,Johnson Claudine,12/18/2020,819,Unrestricted Shared Services,Payroll
J. F. Drake State CC & TC,900010212,Wright Mary,12/18/2020,1053,Unrestricted Shared Services,Payroll
J. F. Drake State CC & TC,900010213,Barnes Nelson,12/18/2020,702,Unrestricted Shared Services,Payroll
J. F. Drake State CC & TC,900010214,Egson Ronald,12/18/2020,4731.75,Unrestricted Shared Services,Payroll
J. F. Drake State CC & TC,900010215,Smothers Deloris,12/18/2020,8754.33,Unrestricted Shared Services,Payroll
J. F. Drake State CC & TC,900010216,Langford Tellus,12/18/2020,304.2,Unrestricted Shared Services,Payroll
J. F. Drake State CC & TC,900010217,Ellis John,12/18/2020,3425.92,Unrestricted Shared Services,Payroll
J. F. Drake State CC & TC,900010218,Goodloe Lardell,12/18/2020,7514.11,Unrestricted Shared Services,Payroll
J. F. Drake State CC & TC,900010219,Moore Alfred,12/18/2020,585,Unrestricted Shared Services,Payroll
J. F. Drake State CC & TC,900010220,Forbes Edwin,12/18/2020,5101.58,Unrestricted Shared Services,Payroll
J. F. Drake State CC & TC,900010221,Winchester Brandi,12/18/2020,4504,Unrestricted Shared Services,Payroll
J. F. Drake State CC & TC,900010222,Winn George,12/18/2020,6554.42,Unrestricted Shared Services,Payroll
J. F. Drake State CC & TC,900010223,Foster Rashanda,12/18/2020,702,Unrestricted Shared Services,Payroll
J. F. Drake State CC & TC,900010224,Kessio Japheth,12/18/2020,351,Unrestricted Shared Services,Payroll
J. F. Drake State CC & TC,900010225,Milling John,12/18/2020,702,Unrestricted Shared Services,Payroll
J. F. Drake State CC & TC,900010226,Canady Charlotte,12/18/2020,702,Unrestricted Shared Services,Payroll
J. F. Drake State CC & TC,900010227,Holmes Khalid,12/18/2020,4780.75,Unrestricted Shared Services,Payroll
J. F. Drake State CC & TC,900010228,London-Thomas Laricca,12/18/2020,585,Unrestricted Shared Services,Payroll
J. F. Drake State CC & TC,900010229,McCaa-Burke Petura,12/18/2020,585,Unrestricted Shared Services,Payroll
J. F. Drake State CC & TC,900010230,McCastle-Arutere Toye,12/18/2020,1170,Unrestricted Shared Services,Payroll
J. F. Drake State CC & TC,900010231,Rentz Joyce,12/18/2020,7724.11,Unrestricted Shared Services,Payroll
J. F. Drake State CC & TC,900010232,Edwards Vernessa,12/18/2020,585,Unrestricted Shared Services,Payroll
J. F. Drake State CC & TC,900010233,Wilson Tracey,12/18/2020,936,Unrestricted Shared Services,Payroll
J. F. Drake State CC & TC,900010234,Fury Lilia,12/18/2020,3695.44,AE-Federal Regular 2XX0-2XX1,Payroll
J. F. Drake State CC & TC,900010235,Price Renea,12/18/2020,3149.63,AE-State Regular 2XX0-2XX1,Payroll
J. F. Drake State CC & TC,900010236,Taylor Docquinn,12/18/2020,1515,Unrestricted Shared Services,Payroll
J. F. Drake State CC & TC,900010236,Taylor Docquinn,12/18/2020,4545,AE-State Regular 2XX0-2XX1,Payroll
J. F. Drake State CC & TC,900010237,Battle Ben,12/18/2020,10229.4,Unrestricted Shared Services,Payroll
J. F. Drake State CC & TC,900010238,Little Bertha,12/18/2020,3884.31,Unrestricted Shared Services,Payroll
J. F. Drake State CC & TC,900010239,Malone Ulrekia,12/18/2020,1872,Unrestricted Shared Services,Payroll
J. F. Drake State CC & TC,900010240,Pruitt Marquita,12/18/2020,1989,Unrestricted Shared Services,Payroll
J. F. Drake State CC & TC,900010241,Sams Donna,12/18/2020,1404,Unrestricted Shared Services,Payroll
J. F. Drake State CC & TC,900010242,Tate Tralandar,12/18/2020,912.6,Unrestricted Shared Services,Payroll
J. F. Drake State CC & TC,900010243,Williams Kelly,12/18/2020,5625.44,Unrestricted Shared Services,Payroll
J. F. Drake State CC & TC,900010244,McDaniel Darvin,12/18/2020,4257.42,Unrestricted Shared Services,Payroll
J. F. Drake State CC & TC,900010245,Henry Casey,12/18/2020,5554.22,Unrestricted Shared Services,Payroll
J. F. Drake State CC & TC,900010246,Williams Jeffrey,12/18/2020,5061,Unrestricted Shared Services,Payroll
J. F. Drake State CC & TC,900010247,Bevel Joseph,12/18/2020,5225.44,Unrestricted Shared Services,Payroll
J. F. Drake State CC & TC,900010248,Swaim Richard,12/18/2020,5554.22,Unrestricted Shared Services,Payroll
J. F. Drake State CC & TC,900010249,Villa Christopher,12/18/2020,702,Unrestricted Shared Services,Payroll
J. F. Drake State CC & TC,900010250,Grissim Robert,12/18/2020,978.52,NASA Grant,Payroll
J. F. Drake State CC & TC,900010250,Grissim Robert,12/18/2020,6010.9,Unrestricted Shared Services,Payroll
J. F. Drake State CC & TC,900010251,Ray Karen,12/18/2020,3744.58,Unrestricted Shared Services,Payroll
J. F. Drake State CC & TC,900010252,Rafferty Kory,12/18/2020,4732.33,Unrestricted Shared Services,Payroll
J. F. Drake State CC & TC,900010253,Clark Taska,12/18/2020,4074.75,Unrestricted Shared Services,Payroll
J. F. Drake State CC & TC,900010254,Henderson Carolyn,12/18/2020,10046.59,Unrestricted Shared Services,Payroll
J. F. Drake State CC & TC,900010255,Borden Dennis,12/18/2020,5676.56,Unrestricted Shared Services,Payroll
J. F. Drake State CC & TC,900010256,Clift Carla,12/18/2020,6662.78,Unrestricted Shared Services,Payroll
J. F. Drake State CC & TC,900010257,Bell Angela,12/18/2020,9562.59,Unrestricted Shared Services,Payroll
J. F. Drake State CC & TC,900010258,Booker Veronica,12/18/2020,807.03,Title III (Activity 5),Payroll
J. F. Drake State CC & TC,900010259,Saunders Ray,12/18/2020,3250.08,Title III (Activity 5),Payroll
J. F. Drake State CC & TC,900010260,Ward Mattavia,12/18/2020,3415.17,Title III (Activity 5),Payroll
J. F. Drake State CC & TC,900010261,Jones Donyale,12/18/2020,3992.58,Unrestricted Shared Services,Payroll
J. F. Drake State CC & TC,900010262,Green Tiffany,12/18/2020,4404.5,Unrestricted Shared Services,Payroll
J. F. Drake State CC & TC,900010263,Lawrence Kia,12/18/2020,2672.25,Unrestricted Shared Services,Payroll
J. F. Drake State CC & TC,900010264,Slay Jody,12/18/2020,1239.67,Unrestricted Shared Services,Payroll
J. F. Drake State CC & TC,900010264,Slay Jody,12/18/2020,1515.16,Career Coach 2XX0-2XX1,Payroll
J. F. Drake State CC & TC,900010265,Hambrick Neoka,12/18/2020,3992.25,Unrestricted Shared Services,Payroll
J. F. Drake State CC & TC,900010266,Morrison Bruce,12/18/2020,4982.17,Unrestricted Shared Services,Payroll
J. F. Drake State CC & TC,900010267,O'Linger Jennifer,12/18/2020,7150.75,Unrestricted Shared Services,Payroll
J. F. Drake State CC & TC,900010268,Holmes Danon,12/18/2020,3332.25,Unrestricted Shared Services,Payroll
J. F. Drake State CC & TC,900010269,Pearce Regina,12/18/2020,2755.42,Unrestricted Shared Services,Payroll
J. F. Drake State CC & TC,900010270,Sudeall-Hawkins Monica,12/18/2020,7317.41,Unrestricted Shared Services,Payroll
J. F. Drake State CC & TC,900010271,Alexander Akeem,12/18/2020,7652.67,Unrestricted Shared Services,Payroll
J. F. Drake State CC & TC,900010272,Carter Deleshia,12/18/2020,3992.25,Unrestricted Shared Services,Payroll
J. F. Drake State CC & TC,900010273,Chavers Audrey,12/18/2020,488.97,Title III (Activity A Prog Admin),Payroll
J. F. Drake State CC & TC,900010273,Chavers Audrey,12/18/2020,3585.78,Unrestricted Shared Services,Payroll
J. F. Drake State CC & TC,900010274,Harris Katrina,12/18/2020,9150.75,Unrestricted Shared Services,Payroll
J. F. Drake State CC & TC,900010275,Walker Letitia,12/18/2020,4652.5,Unrestricted Shared Services,Payroll
J. F. Drake State CC & TC,900010276,Chance Katie,12/18/2020,4404.92,Unrestricted Shared Services,Payroll
J. F. Drake State CC & TC,900010277,Patton Tina,12/18/2020,2672.92,Unrestricted Shared Services,Payroll
J. F. Drake State CC & TC,900010278,Parrish Tessa,12/18/2020,3662.33,Title III (Activity A Prog Admin),Payroll
J. F. Drake State CC & TC,900010279,Raymond Alice,12/18/2020,3219.29,Title III (Activity 1),Payroll
J. F. Drake State CC & TC,900010279,Raymond Alice,12/18/2020,6936.13,Unrestricted Shared Services,Payroll
J. F. Drake State CC & TC,900010280,Shotts Lesley,12/18/2020,763.48,Title III (Activity A Prog Admin),Payroll
J. F. Drake State CC & TC,900010280,Shotts Lesley,12/18/2020,6871.35,Unrestricted Shared Services,Payroll
J. F. Drake State CC & TC,900010281,Baker Elijah,12/18/2020,3084.5,Unrestricted Shared Services,Payroll
J. F. Drake State CC & TC,900010282,Malone Jennifer,12/18/2020,6828.08,Unrestricted Shared Services,Payroll
J. F. Drake State CC & TC,900010283,Harbin Glenn,12/18/2020,4899.25,Unrestricted Shared Services,Payroll
J. F. Drake State CC & TC,900010284,Harlow George,12/18/2020,3497.17,Cares Act - HBCU,Payroll
J. F. Drake State CC & TC,900010285,Nkwa Tabe Terence,12/18/2020,2589.75,Unrestricted Shared Services,Payroll
J. F. Drake State CC & TC,900010286,Bulluck Bruce,12/18/2020,7634.83,Unrestricted Shared Services,Payroll
J. F. Drake State CC & TC,900010287,Hampton Darlene,12/18/2020,2590.42,Unrestricted Shared Services,Payroll
J. F. Drake State CC & TC,900010288,McCarty Demetrius,12/18/2020,2755.42,Unrestricted Shared Services,Payroll
J. F. Drake State CC & TC,900010289,Azor Zelda,1/15/2021,564.2,Future Act (Activity 1),Payroll
J. F. Drake State CC & TC,900010290,Fowlks-Turner Deaviance,1/15/2021,873.6,Future Act (Activity 1),Payroll
J. F. Drake State CC & TC,900010291,James Bobby,1/15/2021,218.4,Future Act (Activity 1),Payroll
J. F. Drake State CC & TC,900010292,Keith Zuleika,1/15/2021,312,Future Act (Activity 1),Payroll
J. F. Drake State CC & TC,900010293,Alexander Cora,1/15/2021,665.6,AE-State Regular 2XX0-2XX1,Payroll
J. F. Drake State CC & TC,900010294,Augustin Lysa,1/15/2021,617.76,AE-State Regular 2XX0-2XX1,Payroll
J. F. Drake State CC & TC,900010295,Mack Tamara,1/15/2021,436.8,AE-Federal Regular 2XX0-2XX1,Payroll
J. F. Drake State CC & TC,900010296,Tucker Augustus,1/15/2021,1047.28,AE-Federal Regular 2XX0-2XX1,Payroll
J. F. Drake State CC & TC,900010297,Walker Anita,1/15/2021,1102.4,AE-Federal Regular 2XX0-2XX1,Payroll
J. F. Drake State CC & TC,900010301,Zatowski Jeanette,1/15/2021,1653.6,NASA Grant,Payroll
J. F. Drake State CC & TC,900010302,Crosby Tomacenia,1/15/2021,249.6,Title III (Activity 5),Payroll
J. F. Drake State CC & TC,900010302,Crosby Tomacenia,1/15/2021,780,STEAM,Payroll
J. F. Drake State CC & TC,900010304,Jones Chelsea,1/15/2021,520,Title III (Activity 5),Payroll
J. F. Drake State CC & TC,900010306,Crutcher Marcus,1/15/2021,858,Unrestricted Shared Services,Payroll
J. F. Drake State CC & TC,900010313,Humphrey Jessie,1/15/2021,1409.61,Unrestricted Shared Services,Payroll
J. F. Drake State CC & TC,900010314,Milton Sammie,1/15/2021,1183,Unrestricted Shared Services,Payroll
J. F. Drake State CC & TC,900010315,Jackson Terell,1/29/2021,3992.25,Unrestricted Shared Services,Payroll
J. F. Drake State CC & TC,900010316,Sims Patricia,1/29/2021,16666.67,Unrestricted Shared Services,Payroll
J. F. Drake State CC & TC,900010317,Davis Mattie,1/29/2021,8020.89,Unrestricted Shared Services,Payroll
J. F. Drake State CC & TC,900010318,Laut Pamela,1/29/2021,6005.33,Unrestricted Shared Services,Payroll
J. F. Drake State CC & TC,900010319,Rogers Michelle,1/29/2021,6005.33,Unrestricted Shared Services,Payroll
J. F. Drake State CC & TC,900010320,Sims Rebecca,1/29/2021,3497.17,Future Act (Activity 1),Payroll
J. F. Drake State CC & TC,900010321,Burruss Lauren,1/29/2021,6334.11,Future Act (Activity 1),Payroll
J. F. Drake State CC & TC,900010322,Ayokanmbi Gladys,1/29/2021,6662.78,Unrestricted Shared Services,Payroll
J. F. Drake State CC & TC,900010323,Egson Ronald,1/29/2021,4380.75,Unrestricted Shared Services,Payroll
J. F. Drake State CC & TC,900010324,Smothers Deloris,1/29/2021,8754.33,Unrestricted Shared Services,Payroll
J. F. Drake State CC & TC,900010325,Ellis John,1/29/2021,3425.92,Unrestricted Shared Services,Payroll
J. F. Drake State CC & TC,900010326,Goodloe Lardell,1/29/2021,7514.11,Unrestricted Shared Services,Payroll
J. F. Drake State CC & TC,900010327,Forbes Edwin,1/29/2021,4750.58,Unrestricted Shared Services,Payroll
J. F. Drake State CC & TC,900010328,Winchester Brandi,1/29/2021,4504,Unrestricted Shared Services,Payroll
J. F. Drake State CC & TC,900010329,Winn George,1/29/2021,5501.42,Unrestricted Shared Services,Payroll
J. F. Drake State CC & TC,900010330,Holmes Khalid,1/29/2021,4780.75,Unrestricted Shared Services,Payroll
J. F. Drake State CC & TC,900010331,Rentz Joyce,1/29/2021,7607.11,Unrestricted Shared Services,Payroll
J. F. Drake State CC & TC,900010332,Fury Lilia,1/29/2021,3695.44,AE-Federal Regular 2XX0-2XX1,Payroll
J. F. Drake State CC & TC,900010333,Price Renea,1/29/2021,3418.33,AE-State Regular 2XX0-2XX1,Payroll
J. F. Drake State CC & TC,900010334,Taylor Docquinn,1/29/2021,1515,Unrestricted Shared Services,Payroll
J. F. Drake State CC & TC,900010334,Taylor Docquinn,1/29/2021,4545,AE-State Regular 2XX0-2XX1,Payroll
J. F. Drake State CC & TC,900010335,Little Bertha,1/29/2021,5225.44,Unrestricted Shared Services,Payroll
J. F. Drake State CC & TC,900010336,Williams Kelly,1/29/2021,5625.44,Unrestricted Shared Services,Payroll
J. F. Drake State CC & TC,900010337,McDaniel Darvin,1/29/2021,4257.42,Unrestricted Shared Services,Payroll
J. F. Drake State CC & TC,900010338,Henry Casey,1/29/2021,5554.22,Unrestricted Shared Services,Payroll
J. F. Drake State CC & TC,900010339,Williams Jeffrey,1/29/2021,5061,Unrestricted Shared Services,Payroll
J. F. Drake State CC & TC,900010340,Bevel Joseph,1/29/2021,5225.44,Unrestricted Shared Services,Payroll
J. F. Drake State CC & TC,900010341,Swaim Richard,1/29/2021,5554.22,Unrestricted Shared Services,Payroll
J. F. Drake State CC & TC,900010342,Grissim Robert,1/29/2021,2166.72,NASA Grant,Payroll
J. F. Drake State CC & TC,900010342,Grissim Robert,1/29/2021,4822.7,Unrestricted Shared Services,Payroll
J. F. Drake State CC & TC,900010343,Ray Karen,1/29/2021,3744.58,Unrestricted Shared Services,Payroll
J. F. Drake State CC & TC,900010344,Rafferty Kory,1/29/2021,4732.33,Unrestricted Shared Services,Payroll
J. F. Drake State CC & TC,900010345,Ballard Kent,1/29/2021,3655.98,Unrestricted Shared Services,Payroll
J. F. Drake State CC & TC,900010346,Clark Taska,1/29/2021,4074.75,Unrestricted Shared Services,Payroll
J. F. Drake State CC & TC,900010347,Henderson Carolyn,1/29/2021,10046.59,Unrestricted Shared Services,Payroll
J. F. Drake State CC & TC,900010348,Borden Dennis,1/29/2021,5676.56,Unrestricted Shared Services,Payroll
J. F. Drake State CC & TC,900010349,Clift Carla,1/29/2021,6662.78,Unrestricted Shared Services,Payroll
J. F. Drake State CC & TC,900010350,Bell Angela,1/29/2021,9562.59,Unrestricted Shared Services,Payroll
J. F. Drake State CC & TC,900010351,Saunders Ray,1/29/2021,3250.08,Title III (Activity 5),Payroll
